Workbook

Sheet Main
B10: 2018-06-05
B12: Sheet No. | C12: Template Name | D12: Summary
B13: 1 | C13: Future Intra | D13: For Intraday trading in F&O segment
B14: 2 | C14: Cash Intra | D14: For Intraday trading in cash market segment
B15: 3 | C15: Mid-cap Intra | D15: For Intraday trading in Mid-cap stocks
B16: 4 | C16: Bulk Deals | D16: Reveals Bulk Deals carried on NSE & BSE
B17: 5 | C17: Call Tracker

Sheet Future Intra
M5: Back to Main Page
A6: FOR INTRA DAY TRADING | L6: =Main!B10 -> 2018-06-05
A9: Sr.no | B9: Sector | C9: Scrip | D9: CLOSE RATE | E9: Pivot Point | F9: Supports | I9: Resistances
B10: Sector | D10: Point | E10: Point | F10: S1 | G10: S2 | H10: S3 | I10: R1 | J10: R2 | K10: R3 | L10: HIGH | M10: LOW | N10: OI | O10: % Change in OI
A11: 1 | B11: Index | C11: BANKNIFTY | D11: 26190.10 | E11: 26408.40 | F11: 25917.80 | G11: 25645.50 | H11: 25154.90 | I11: 26680.70 | J11: 27171.30 | K11: 27443.60 | L11: 26899 | M11: 26136.1 | N11: 2660720 | O11: -3.43%
A12: 2 | B12: Index | C12: NIFTY | D12: 10598.70 | E12: 10639.52 | F12: 10546.83 | G12: 10494.97 | H12: 10402.28 | I12: 10691.38 | J12: 10784.07 | K12: 10835.93 | L12: 10732.2 | M12: 10587.65 | N12: 20969550 | O12: 4.24%
A13: 3 | B13: Index | C13: NIFTYCPSE | D13: 2463.55 | E13: 821.18 | F13: 1642.37 | G13: 821.18 | H13: 1642.37 | I13: 1642.37 | J13: 821.18 | K13: 1642.37 | L13: 0 | M13: 0 | N13: 0 | O13: 0.00%
A14: 4 | B14: Index | C14: NIFTYINFRA | D14: 3389.30 | E14: 1129.77 | F14: 2259.53 | G14: 1129.77 | H14: 2259.53 | I14: 2259.53 | J14: 1129.77 | K14: 2259.53 | L14: 0 | M14: 0 | N14: 0 | O14: 0.00%
A15: 5 | B15: Index | C15: NIFTYIT | D15: 13517.00 | E15: 13525.33 | F15: 13456.67 | G15: 13396.33 | H15: 13327.67 | I15: 13585.67 | J15: 13654.33 | K15: 13714.67 | L15: 13594 | M15: 13465 | N15: 47400 | O15: 5.92%
A16: 6 | B16: Index | C16: NIFTYMID50 | D16: 5065.85 | E16: 1688.62 | F16: 3377.23 | G16: 1688.62 | H16: 3377.23 | I16: 3377.23 | J16: 1688.62 | K16: 3377.23 | L16: 0 | M16: 0 | N16: 591400 | O16: 0.00%
A17: 7 | B17: Index | C17: NIFTYPSE | D17: 3915.30 | E17: 1305.10 | F17: 2610.20 | G17: 1305.10 | H17: 2610.20 | I17: 2610.20 | J17: 1305.10 | K17: 2610.20 | L17: 0 | M17: 0 | N17: 0 | O17: 0.00%
A18: 8 | B18: Cement | C18: ACC | D18: 1309.60 | E18: 1323.73 | F18: 1291.47 | G18: 1273.33 | H18: 1241.07 | I18: 1341.87 | J18: 1374.13 | K18: 1392.27 | L18: 1356 | M18: 1305.6 | N18: 3473600 | O18: -2.49%
A19: 9 | B19: Others | C19: ADANIENT | D19: 115.95 | E19: 117.08 | F19: 112.47 | G19: 108.98 | H19: 104.37 | I19: 120.57 | J19: 125.18 | K19: 128.67 | L19: 121.7 | M19: 113.6 | N19: 13044000 | O19: 5.40%
A20: 10 | B20: Others | C20: ADANIPORTS | D20: 378.75 | E20: 382.02 | F20: 373.48 | G20: 368.22 | H20: 359.68 | I20: 387.28 | J20: 395.82 | K20: 401.08 | L20: 390.55 | M20: 376.75 | N20: 11822500 | O20: 2.47%
A21: 11 | B21: Power | C21: ADANIPOWER | D21: 18.55 | E21: 18.87 | F21: 17.98 | G21: 17.42 | H21: 16.53 | I21: 19.43 | J21: 20.32 | K21: 20.88 | L21: 19.75 | M21: 18.3 | N21: 105900000 | O21: 2.74%
A22: 12 | B22: Pharma | C22: AJANTPHARM | D22: 934.00 | E22: 938.55 | F22: 924.10 | G22: 914.20 | H22: 899.75 | I22: 948.45 | J22: 962.90 | K22: 972.80 | L22: 953 | M22: 928.65 | N22: 976000 | O22: 1.67%
A23: 13 | B23: Banking | C23: ALBK | D23: 39.80 | E23: 39.83 | F23: 39.12 | G23: 38.43 | H23: 37.72 | I23: 40.52 | J23: 41.23 | K23: 41.92 | L23: 40.55 | M23: 39.15 | N23: 15782000 | O23: -0.12%
A24: 14 | B24: Automobile | C24: AMARAJABAT | D24: 742.60 | E24: 750.02 | F24: 727.18 | G24: 711.77 | H24: 688.93 | I24: 765.43 | J24: 788.27 | K24: 803.68 | L24: 772.85 | M24: 734.6 | N24: 1660400 | O24: 3.49%
A25: 15 | B25: Cement | C25: AMBUJACEM | D25: 202.35 | E25: 202.95 | F25: 200.20 | G25: 198.05 | H25: 195.30 | I25: 205.10 | J25: 207.85 | K25: 210.00 | L25: 205.7 | M25: 200.8 | N25: 16222500 | O25: -4.71%
A26: 16 | B26: Banking | C26: ANDHRABANK | D26: 34.05 | E26: 34.47 | F26: 33.38 | G26: 32.72 | H26: 31.63 | I26: 35.13 | J26: 36.22 | K26: 36.88 | L26: 35.55 | M26: 33.8 | N26: 21473000 | O26: 3.60%
A27: 17 | B27: Others | C27: APOLLOHOSP | D27: 943.40 | E27: 936.43 | F27: 924.62 | G27: 905.83 | H27: 894.02 | I27: 955.22 | J27: 967.03 | K27: 985.82 | L27: 948.25 | M27: 917.65 | N27: 1265500 | O27: 0.08%
A28: 18 | B28: Automobile | C28: APOLLOTYRE | D28: 266.85 | E28: 267.72 | F28: 264.03 | G28: 261.22 | H28: 257.53 | I28: 270.53 | J28: 274.22 | K28: 277.03 | L28: 271.4 | M28: 264.9 | N28: 9051000 | O28: 0.84%
A29: 19 | B29: Textile | C29: ARVIND | D29: 380.50 | E29: 382.10 | F29: 377.20 | G29: 373.90 | H29: 369.00 | I29: 385.40 | J29: 390.30 | K29: 393.60 | L29: 387 | M29: 378.8 | N29: 7966000 | O29: 2.60%
A30: 20 | B30: Automobile | C30: ASHOKLEY | D30: 147.55 | E30: 149.03 | F30: 145.72 | G30: 143.88 | H30: 140.57 | I30: 150.87 | J30: 154.18 | K30: 156.02 | L30: 152.35 | M30: 147.2 | N30: 59823000 | O30: 1.34%
A31: 21 | B31: FMCG | C31: ASIANPAINT | D31: 1280.65 | E31: 1280.25 | F31: 1265.70 | G31: 1250.75 | H31: 1236.20 | I31: 1295.20 | J31: 1309.75 | K31: 1324.70 | L31: 1294.8 | M31: 1265.3 | N31: 5127600 | O31: 1.36%
A32: 22 | B32: Pharma | C32: AUROPHARMA | D32: 534.00 | E32: 536.03 | F32: 526.07 | G32: 518.13 | H32: 508.17 | I32: 543.97 | J32: 553.93 | K32: 561.87 | L32: 546 | M32: 528.1 | N32: 23555600 | O32: 0.46%
A33: 23 | B33: Banking | C33: AXISBANK | D33: 536.15 | E33: 536.87 | F33: 530.03 | G33: 523.92 | H33: 517.08 | I33: 542.98 | J33: 549.82 | K33: 555.93 | L33: 543.7 | M33: 530.75 | N33: 43459200 | O33: -0.43%
A34: 24 | B34: Automobile | C34: BAJAJ-AUTO | D34: 2890.80 | E34: 2906.25 | F34: 2867.55 | G34: 2844.30 | H34: 2805.60 | I34: 2929.50 | J34: 2968.20 | K34: 2991.45 | L34: 2944.95 | M34: 2883 | N34: 2450000 | O34: -0.02%
A35: 25 | B35: Others | C35: BAJAJFINSV | D35: 5769.05 | E35: 5813.82 | F35: 5710.23 | G35: 5651.42 | H35: 5547.83 | I35: 5872.63 | J35: 5976.22 | K35: 6035.03 | L35: 5917.4 | M35: 5755 | N35: 678375 | O35: 1.06%
A36: 26 | B36: Finance | C36: BAJFINANCE | D36: 2066.30 | E36: 2076.62 | F36: 2050.68 | G36: 2035.07 | H36: 2009.13 | I36: 2092.23 | J36: 2118.17 | K36: 2133.78 | L36: 2102.55 | M36: 2061 | N36: 4661500 | O36: -0.47%
A37: 27 | B37: Others | C37: BALKRISIND | D37: 1121.50 | E37: 1126.13 | F37: 1110.37 | G37: 1099.23 | H37: 1083.47 | I37: 1137.27 | J37: 1153.03 | K37: 1164.17 | L37: 1141.9 | M37: 1115 | N37: 1066400 | O37: -0.45%
A38: 28 | B38: Others | C38: BALRAMCHIN | D38: 70.30 | E38: 70.12 | F38: 68.23 | G38: 66.17 | H38: 64.28 | I38: 72.18 | J38: 74.07 | K38: 76.13 | L38: 72 | M38: 68.05 | N38: 16348500 | O38: 2.46%
A39: 29 | B39: Banking | C39: BANKBARODA | D39: 132.20 | E39: 133.95 | F39: 129.85 | G39: 127.50 | H39: 123.40 | I39: 136.30 | J39: 140.40 | K39: 142.75 | L39: 138.05 | M39: 131.6 | N39: 59128000 | O39: 8.71%
A40: 30 | B40: Banking | C40: BANKINDIA | D40: 94.75 | E40: 95.67 | F40: 93.13 | G40: 91.52 | H40: 88.98 | I40: 97.28 | J40: 99.82 | K40: 101.43 | L40: 98.2 | M40: 94.05 | N40: 27030000 | O40: 2.36%
A41: 31 | B41: FMCG | C41: BATAINDIA | D41: 753.80 | E41: 760.93 | F41: 743.87 | G41: 733.93 | H41: 716.87 | I41: 770.87 | J41: 787.93 | K41: 797.87 | L41: 778 | M41: 751 | N41: 2388100 | O41: 3.93%
A42: 32 | B42: Capital_Goods | C42: BEL | D42: 112.40 | E42: 112.62 | F42: 110.33 | G42: 108.27 | H42: 105.98 | I42: 114.68 | J42: 116.97 | K42: 119.03 | L42: 114.9 | M42: 110.55 | N42: 34481700 | O42: 0.06%
A43: 33 | B43: Infrastructure | C43: BEML | D43: 874.00 | E43: 874.12 | F43: 861.88 | G43: 849.77 | H43: 837.53 | I43: 886.23 | J43: 898.47 | K43: 910.58 | L43: 886.35 | M43: 862 | N43: 2047900 | O43: 4.33%
A44: 34 | B44: Others | C44: BERGEPAINT | D44: 286.20 | E44: 286.18 | F44: 283.02 | G44: 279.83 | H44: 276.67 | I44: 289.37 | J44: 292.53 | K44: 295.72 | L44: 289.35 | M44: 283 | N44: 2085600 | O44: -1.25%
A45: 35 | B45: Finance | C45: BHARATFIN | D45: 1145.00 | E45: 1152.88 | F45: 1131.82 | G45: 1118.63 | H45: 1097.57 | I45: 1166.07 | J45: 1187.13 | K45: 1200.32 | L45: 1173.95 | M45: 1139.7 | N45: 5775000 | O45: 1.12%
A46: 36 | B46: Automobile | C46: BHARATFORG | D46: 639.60 | E46: 639.25 | F46: 627.55 | G46: 615.50 | H46: 603.80 | I46: 651.30 | J46: 663.00 | K46: 675.05 | L46: 650.95 | M46: 627.2 | N46: 9882000 | O46: 7.25%
A47: 37 | B47: Telecom | C47: BHARTIARTL | D47: 373.10 | E47: 377.00 | F47: 367.60 | G47: 362.10 | H47: 352.70 | I47: 382.50 | J47: 391.90 | K47: 397.40 | L47: 386.4 | M47: 371.5 | N47: 46727900 | O47: 0.46%
A48: 38 | B48: Capital_Goods | C48: BHEL | D48: 75.50 | E48: 77.23 | F48: 73.37 | G48: 71.23 | H48: 67.37 | I48: 79.37 | J48: 83.23 | K48: 85.37 | L48: 81.1 | M48: 75.1 | N48: 50887500 | O48: 7.19%
A49: 39 | B49: Pharma | C49: BIOCON | D49: 657.55 | E49: 656.65 | F49: 645.90 | G49: 634.25 | H49: 623.50 | I49: 668.30 | J49: 679.05 | K49: 690.70 | L49: 667.4 | M49: 645 | N49: 10302300 | O49: 5.98%
A50: 40 | B50: Automobile | C50: BOSCHLTD | D50: 18115.50 | E50: 18133.20 | F50: 17902.35 | G50: 17689.20 | H50: 17458.35 | I50: 18346.35 | J50: 18577.20 | K50: 18790.35 | L50: 18364.05 | M50: 17920.05 | N50: 131855 | O50: 0.71%
A51: 41 | B51: Oil_Gas | C51: BPCL | D51: 402.75 | E51: 401.00 | F51: 390.45 | G51: 378.15 | H51: 367.60 | I51: 413.30 | J51: 423.85 | K51: 436.15 | L51: 411.55 | M51: 388.7 | N51: 8546400 | O51: 5.14%
A52: 42 | B52: FMCG | C52: BRITANNIA | D52: 5765.15 | E52: 5784.38 | F52: 5690.77 | G52: 5616.38 | H52: 5522.77 | I52: 5858.77 | J52: 5952.38 | K52: 6026.77 | L52: 5878 | M52: 5710 | N52: 742000 | O52: -6.69%
A53: 43 | B53: Pharma | C53: CADILAHC | D53: 353.05 | E53: 355.10 | F53: 349.70 | G53: 346.35 | H53: 340.95 | I53: 358.45 | J53: 363.85 | K53: 367.20 | L53: 360.5 | M53: 351.75 | N53: 9603200 | O53: -0.30%
A54: 44 | B54: Banking | C54: CANBK | D54: 253.90 | E54: 255.83 | F54: 250.57 | G54: 247.23 | H54: 241.97 | I54: 259.17 | J54: 264.43 | K54: 267.77 | L54: 261.1 | M54: 252.5 | N54: 13102400 | O54: -0.96%
A55: 45 | B55: Others | C55: CANFINHOME | D55: 352.70 | E55: 358.28 | F55: 344.82 | G55: 336.93 | H55: 323.47 | I55: 366.17 | J55: 379.63 | K55: 387.52 | L55: 371.75 | M55: 350.4 | N55: 4763750 | O55: 2.23%
A56: 46 | B56: Finance | C56: CAPF | D56: 543.75 | E56: 551.93 | F56: 532.97 | G56: 522.18 | H56: 503.22 | I56: 562.72 | J56: 581.68 | K56: 592.47 | L56: 570.9 | M56: 541.15 | N56: 8868000 | O56: 1.67%
A57: 47 | B57: Oil_Gas | C57: CASTROLIND | D57: 173.00 | E57: 171.63 | F57: 169.37 | G57: 165.73 | H57: 163.47 | I57: 175.27 | J57: 177.53 | K57: 181.17 | L57: 173.9 | M57: 168 | N57: 10458000 | O57: 1.91%
A58: 48 | B58: Automobile | C58: CEATLTD | D58: 1334.00 | E58: 1340.23 | F58: 1319.87 | G58: 1305.73 | H58: 1285.37 | I58: 1354.37 | J58: 1374.73 | K58: 1388.87 | L58: 1360.6 | M58: 1326.1 | N58: 1601950 | O58: 2.51%
A59: 49 | B59: Textile | C59: CENTURYTEX | D59: 928.35 | E59: 919.50 | F59: 905.00 | G59: 881.65 | H59: 867.15 | I59: 942.85 | J59: 957.35 | K59: 980.70 | L59: 934 | M59: 896.15 | N59: 6393750 | O59: -0.32%
A60: 50 | B60: Power | C60: CESC | D60: 1010.50 | E60: 1019.68 | F60: 996.02 | G60: 981.53 | H60: 957.87 | I60: 1034.17 | J60: 1057.83 | K60: 1072.32 | L60: 1043.35 | M60: 1005.2 | N60: 5708450 | O60: 0.96%
A61: 51 | B61: Power | C61: CGPOWER | D61: 57.15 | E61: 57.87 | F61: 55.03 | G61: 52.92 | H61: 50.08 | I61: 59.98 | J61: 62.82 | K61: 64.93 | L61: 60.7 | M61: 55.75 | N61: 22356000 | O61: 6.58%
A62: 52 | B62: Others | C62: CHENNPETRO | D62: 288.15 | E62: 287.63 | F62: 284.07 | G62: 279.98 | H62: 276.42 | I62: 291.72 | J62: 295.28 | K62: 299.37 | L62: 291.2 | M62: 283.55 | N62: 2922000 | O62: -2.89%
A63: 53 | B63: Others | C63: CHOLAFIN | D63: 1585.90 | E63: 1593.63 | F63: 1562.27 | G63: 1538.63 | H63: 1507.27 | I63: 1617.27 | J63: 1648.63 | K63: 1672.27 | L63: 1625 | M63: 1570 | N63: 1065500 | O63: 4.61%
A64: 54 | B64: Pharma | C64: CIPLA | D64: 518.45 | E64: 520.57 | F64: 513.13 | G64: 507.82 | H64: 500.38 | I64: 525.88 | J64: 533.32 | K64: 538.63 | L64: 528 | M64: 515.25 | N64: 11969000 | O64: 3.24%
A65: 55 | B65: Others | C65: COALINDIA | D65: 293.40 | E65: 294.08 | F65: 291.17 | G65: 288.93 | H65: 286.02 | I65: 296.32 | J65: 299.23 | K65: 301.47 | L65: 297 | M65: 291.85 | N65: 18603200 | O65: 0.76%
A66: 56 | B66: FMCG | C66: COLPAL | D66: 1232.95 | E66: 1236.47 | F66: 1224.48 | G66: 1216.02 | H66: 1204.03 | I66: 1244.93 | J66: 1256.92 | K66: 1265.38 | L66: 1248.45 | M66: 1228 | N66: 1853600 | O66: 2.28%
A67: 57 | B67: Others | C67: CONCOR | D67: 1310.05 | E67: 1323.90 | F67: 1286.70 | G67: 1263.35 | H67: 1226.15 | I67: 1347.25 | J67: 1384.45 | K67: 1407.80 | L67: 1361.1 | M67: 1300.55 | N67: 1535625 | O67: 3.71%
A68: 58 | B68: Capital_Goods | C68: CUMMINSIND | D68: 676.60 | E68: 674.85 | F68: 664.75 | G68: 652.90 | H68: 642.80 | I68: 686.70 | J68: 696.80 | K68: 708.65 | L68: 684.95 | M68: 663 | N68: 869000 | O68: 8.49%
A69: 59 | B69: FMCG | C69: DABUR | D69: 385.85 | E69: 386.87 | F69: 384.03 | G69: 382.22 | H69: 379.38 | I69: 388.68 | J69: 391.52 | K69: 393.33 | L69: 389.7 | M69: 385.05 | N69: 13722500 | O69: 0.48%
A70: 60 | B70: Cement | C70: DALMIABHA | D70: 2694.05 | E70: 2706.05 | F70: 2669.20 | G70: 2644.35 | H70: 2607.50 | I70: 2730.90 | J70: 2767.75 | K70: 2792.60 | L70: 2742.9 | M70: 2681.2 | N70: 545100 | O70: 0.11%
A71: 61 | B71: Banking | C71: DCBBANK | D71: 175.55 | E71: 177.78 | F71: 172.37 | G71: 169.18 | H71: 163.77 | I71: 180.97 | J71: 186.38 | K71: 189.57 | L71: 183.2 | M71: 174.6 | N71: 7618500 | O71: 4.12%
A72: 62 | B72: Finance | C72: DHFL | D72: 601.45 | E72: 605.68 | F72: 593.47 | G72: 585.48 | H72: 573.27 | I72: 613.67 | J72: 625.88 | K72: 633.87 | L72: 617.9 | M72: 597.7 | N72: 26161500 | O72: 1.93%
A73: 63 | B73: Media | C73: DISHTV | D73: 73.55 | E73: 73.82 | F73: 72.43 | G73: 71.32 | H73: 69.93 | I73: 74.93 | J73: 76.32 | K73: 77.43 | L73: 75.2 | M73: 72.7 | N73: 46378000 | O73: -0.09%
A74: 64 | B74: Pharma | C74: DIVISLAB | D74: 1049.80 | E74: 1051.62 | F74: 1038.23 | G74: 1026.67 | H74: 1013.28 | I74: 1063.18 | J74: 1076.57 | K74: 1088.13 | L74: 1065 | M74: 1040.05 | N74: 3199200 | O74: 0.40%
A75: 65 | B75: Realty | C75: DLF | D75: 199.10 | E75: 201.97 | F75: 195.13 | G75: 191.17 | H75: 184.33 | I75: 205.93 | J75: 212.77 | K75: 216.73 | L75: 208.8 | M75: 198 | N75: 34440000 | O75: 1.95%
A76: 66 | B76: Pharma | C76: DRREDDY | D76: 1999.80 | E76: 2000.93 | F76: 1968.87 | G76: 1937.93 | H76: 1905.87 | I76: 2031.87 | J76: 2063.93 | K76: 2094.87 | L76: 2033 | M76: 1970 | N76: 4336250 | O76: -4.04%
A77: 67 | B77: Automobile | C77: EICHERMOT | D77: 29408.05 | E77: 29629.02 | F77: 29083.03 | G77: 28758.02 | H77: 28212.03 | I77: 29954.03 | J77: 30500.02 | K77: 30825.03 | L77: 30175 | M77: 29304 | N77: 205850 | O77: 2.66%
A78: 68 | B78: Infrastructure | C78: ENGINERSIN | D78: 133.65 | E78: 133.60 | F78: 130.90 | G78: 128.15 | H78: 125.45 | I78: 136.35 | J78: 139.05 | K78: 141.80 | L78: 136.3 | M78: 130.85 | N78: 10363500 | O78: 0.99%
A79: 69 | B79: Finance | C79: EQUITAS | D79: 159.85 | E79: 161.47 | F79: 155.63 | G79: 151.42 | H79: 145.58 | I79: 165.68 | J79: 171.52 | K79: 175.73 | L79: 167.3 | M79: 157.25 | N79: 22292000 | O79: 0.00%
A80: 70 | B80: Automobile | C80: ESCORTS | D80: 896.40 | E80: 911.23 | F80: 876.62 | G80: 856.83 | H80: 822.22 | I80: 931.02 | J80: 965.63 | K80: 985.42 | L80: 945.85 | M80: 891.45 | N80: 4774000 | O80: 4.88%
A81: 71 | B81: Automobile | C81: EXIDEIND | D81: 255.70 | E81: 256.45 | F81: 253.05 | G81: 250.40 | H81: 247.00 | I81: 259.10 | J81: 262.50 | K81: 265.15 | L81: 259.85 | M81: 253.8 | N81: 7320000 | O81: 1.22%
A82: 72 | B82: Banking | C82: FEDERALBNK | D82: 81.60 | E82: 82.07 | F82: 80.43 | G82: 79.27 | H82: 77.63 | I82: 83.23 | J82: 84.87 | K82: 86.03 | L82: 83.7 | M82: 80.9 | N82: 77511500 | O82: 0.91%
A83: 73 | B83: Oil_Gas | C83: GAIL | D83: 335.55 | E83: 338.07 | F83: 330.48 | G83: 325.42 | H83: 317.83 | I83: 343.13 | J83: 350.72 | K83: 355.78 | L83: 345.65 | M83: 333 | N83: 14343126 | O83: 0.37%
A84: 74 | B84: Pharma | C84: GLENMARK | D84: 541.40 | E84: 541.37 | F84: 533.53 | G84: 525.67 | H84: 517.83 | I84: 549.23 | J84: 557.07 | K84: 564.93 | L84: 549.2 | M84: 533.5 | N84: 4880400 | O84: 0.42%
A85: 75 | B85: Infrastructure | C85: GMRINFRA | D85: 16.40 | E85: 16.60 | F85: 15.95 | G85: 15.50 | H85: 14.85 | I85: 17.05 | J85: 17.70 | K85: 18.15 | L85: 17.25 | M85: 16.15 | N85: 280530000 | O85: -0.86%
A86: 76 | B86: Others | C86: GODFRYPHLP | D86: 727.00 | E86: 734.47 | F86: 715.53 | G86: 704.07 | H86: 685.13 | I86: 745.93 | J86: 764.87 | K86: 776.33 | L86: 753.4 | M86: 723 | N86: 521100 | O86: -2.49%
A87: 77 | B87: FMCG | C87: GODREJCP | D87: 1140.45 | E87: 1147.32 | F87: 1123.68 | G87: 1106.92 | H87: 1083.28 | I87: 1164.08 | J87: 1187.72 | K87: 1204.48 | L87: 1170.95 | M87: 1130.55 | N87: 2060000 | O87: -0.96%
A88: 78 | B88: FMCG | C88: GODREJIND | D88: 597.75 | E88: 599.32 | F88: 591.68 | G88: 585.62 | H88: 577.98 | I88: 605.38 | J88: 613.02 | K88: 619.08 | L88: 606.95 | M88: 593.25 | N88: 1680000 | O88: -2.61%
A89: 79 | B89: Pharma | C89: GRANULES | D89: 74.65 | E89: 75.57 | F89: 72.88 | G89: 71.12 | H89: 68.43 | I89: 77.33 | J89: 80.02 | K89: 81.78 | L89: 78.25 | M89: 73.8 | N89: 16150000 | O89: -0.03%
A90: 80 | B90: Cement | C90: GRASIM | D90: 1035.55 | E90: 1033.87 | F90: 1021.73 | G90: 1007.92 | H90: 995.78 | I90: 1047.68 | J90: 1059.82 | K90: 1073.63 | L90: 1046 | M90: 1020.05 | N90: 5308500 | O90: 0.24%
A91: 81 | B91: Others | C91: GSFC | D91: 112.55 | E91: 113.58 | F91: 110.97 | G91: 109.38 | H91: 106.77 | I91: 115.17 | J91: 117.78 | K91: 119.37 | L91: 116.2 | M91: 112 | N91: 16722000 | O91: 1.84%
A92: 82 | B92: Others | C92: HAVELLS | D92: 537.10 | E92: 540.13 | F92: 532.67 | G92: 528.23 | H92: 520.77 | I92: 544.57 | J92: 552.03 | K92: 556.47 | L92: 547.6 | M92: 535.7 | N92: 4398000 | O92: -0.57%
A93: 83 | B93: Others | C93: HCC | D93: 14.80 | E93: 14.88 | F93: 14.52 | G93: 14.23 | H93: 13.87 | I93: 15.17 | J93: 15.53 | K93: 15.82 | L93: 15.25 | M93: 14.6 | N93: 42099000 | O93: 1.70%
A94: 84 | B94: Technology | C94: HCLTECH | D94: 902.70 | E94: 907.12 | F94: 896.23 | G94: 889.77 | H94: 878.88 | I94: 913.58 | J94: 924.47 | K94: 930.93 | L94: 918 | M94: 900.65 | N94: 11449900 | O94: 0.71%
A95: 85 | B95: Finance | C95: HDFC | D95: 1836.20 | E95: 1847.73 | F95: 1819.47 | G95: 1802.73 | H95: 1774.47 | I95: 1864.47 | J95: 1892.73 | K95: 1909.47 | L95: 1876 | M95: 1831 | N95: 25031500 | O95: 3.72%
A96: 86 | B96: Banking | C96: HDFCBANK | D96: 2033.35 | E96: 2066.63 | F96: 1992.27 | G96: 1951.18 | H96: 1876.82 | I96: 2107.72 | J96: 2182.08 | K96: 2223.17 | L96: 2141 | M96: 2025.55 | N96: 24406000 | O96: 5.96%
A97: 88 | B97: Automobile | C97: HEROMOTOCO | D97: 3611.75 | E97: 3628.17 | F97: 3586.28 | G97: 3560.82 | H97: 3518.93 | I97: 3653.63 | J97: 3695.52 | K97: 3720.98 | L97: 3670.05 | M97: 3602.7 | N97: 1374600 | O97: -0.49%
A98: 89 | B98: Technology | C98: HEXAWARE | D98: 440.35 | E98: 437.40 | F98: 432.05 | G98: 423.75 | H98: 418.40 | I98: 445.70 | J98: 451.05 | K98: 459.35 | L98: 442.75 | M98: 429.1 | N98: 4659000 | O98: 2.98%
A99: 90 | B99: Metals | C99: HINDALCO | D99: 240.85 | E99: 239.93 | F99: 237.97 | G99: 235.08 | H99: 233.12 | I99: 242.82 | J99: 244.78 | K99: 247.67 | L99: 241.9 | M99: 237.05 | N99: 36459500 | O99: 1.87%
A100: 91 | B100: Oil_Gas | C100: HINDPETRO | D100: 311.15 | E100: 309.35 | F100: 300.95 | G100: 290.75 | H100: 282.35 | I100: 319.55 | J100: 327.95 | K100: 338.15 | L100: 317.75 | M100: 299.15 | N100: 26162325 | O100: -2.30%
A101: 92 | B101: FMCG | C101: HINDUNILVR | D101: 1556.20 | E101: 1563.97 | F101: 1544.63 | G101: 1533.07 | H101: 1513.73 | I101: 1575.53 | J101: 1594.87 | K101: 1606.43 | L101: 1583.3 | M101: 1552.4 | N101: 8619600 | O101: 1.53%
A102: 93 | B102: Metals | C102: HINDZINC | D102: 286.50 | E102: 287.47 | F102: 283.08 | G102: 279.67 | H102: 275.28 | I102: 290.88 | J102: 295.27 | K102: 298.68 | L102: 291.85 | M102: 284.05 | N102: 16076800 | O102: 0.76%
A103: 94 | B103: Finance | C103: IBULHSGFIN | D103: 1178.90 | E103: 1198.82 | F103: 1152.83 | G103: 1126.77 | H103: 1080.78 | I103: 1224.88 | J103: 1270.87 | K103: 1296.93 | L103: 1244.8 | M103: 1172.75 | N103: 14241700 | O103: 2.11%
A104: 95 | B104: Banking | C104: ICICIBANK | D104: 286.05 | E104: 287.35 | F104: 282.85 | G104: 279.65 | H104: 275.15 | I104: 290.55 | J104: 295.05 | K104: 298.25 | L104: 291.85 | M104: 284.15 | N104: 79381500 | O104: 0.88%
A105: 96 | B105: Others | C105: ICICIPRULI | D105: 408.80 | E105: 410.83 | F105: 404.22 | G105: 399.63 | H105: 393.02 | I105: 415.42 | J105: 422.03 | K105: 426.62 | L105: 417.45 | M105: 406.25 | N105: 4300400 | O105: -1.19%
A106: 97 | B106: Banking | C106: IDBI | D106: 61.20 | E106: 61.95 | F106: 59.20 | G106: 57.20 | H106: 54.45 | I106: 63.95 | J106: 66.70 | K106: 68.70 | L106: 64.7 | M106: 59.95 | N106: 60000000 | O106: 2.06%
A107: 98 | B107: Telecom | C107: IDEA | D107: 62.95 | E107: 62.90 | F107: 61.90 | G107: 60.85 | H107: 59.85 | I107: 63.95 | J107: 64.95 | K107: 66.00 | L107: 63.9 | M107: 61.85 | N107: 134561000 | O107: -0.39%
A108: 99 | B108: Finance | C108: IDFC | D108: 47.95 | E108: 48.52 | F108: 47.18 | G108: 46.42 | H108: 45.08 | I108: 49.28 | J108: 50.62 | K108: 51.38 | L108: 49.85 | M108: 47.75 | N108: 152763600 | O108: 0.71%
A109: 100 | B109: Banking | C109: IDFCBANK | D109: 39.35 | E109: 39.92 | F109: 38.53 | G109: 37.72 | H109: 36.33 | I109: 40.73 | J109: 42.12 | K109: 42.93 | L109: 41.3 | M109: 39.1 | N109: 199966000 | O109: 1.82%
A110: 101 | B110: Finance | C110: IFCI | D110: 16.95 | E110: 17.02 | F110: 16.73 | G110: 16.52 | H110: 16.23 | I110: 17.23 | J110: 17.52 | K110: 17.73 | L110: 17.3 | M110: 16.8 | N110: 66686000 | O110: 0.64%
A111: 102 | B111: Oil_Gas | C111: IGL | D111: 268.30 | E111: 268.27 | F111: 264.13 | G111: 259.97 | H111: 255.83 | I111: 272.43 | J111: 276.57 | K111: 280.73 | L111: 272.4 | M111: 264.1 | N111: 7009750 | O111: -5.17%
A112: 103 | B112: Cement | C112: INDIACEM | D112: 117.85 | E112: 120.40 | F112: 113.55 | G112: 109.25 | H112: 102.40 | I112: 124.70 | J112: 131.55 | K112: 135.85 | L112: 127.25 | M112: 116.1 | N112: 23670500 | O112: 1.06%
A113: 104 | B113: Banking | C113: INDIANB | D113: 327.60 | E113: 329.32 | F113: 323.78 | G113: 319.97 | H113: 314.43 | I113: 333.13 | J113: 338.67 | K113: 342.48 | L113: 334.85 | M113: 325.5 | N113: 2970000 | O113: 3.92%
A114: 105 | B114: Others | C114: INDIGO | D114: 1161.45 | E114: 1172.52 | F114: 1140.33 | G114: 1119.22 | H114: 1087.03 | I114: 1193.63 | J114: 1225.82 | K114: 1246.93 | L114: 1204.7 | M114: 1151.4 | N114: 4599600 | O114: 10.68%
A115: 106 | B115: Banking | C115: INDUSINDBK | D115: 1887.15 | E115: 1903.47 | F115: 1865.33 | G115: 1843.52 | H115: 1805.38 | I115: 1925.28 | J115: 1963.42 | K115: 1985.23 | L115: 1941.6 | M115: 1881.65 | N115: 7854900 | O115: 2.37%
A116: 107 | B116: Technology | C116: INFIBEAM | D116: 154.45 | E116: 157.47 | F116: 149.08 | G116: 143.72 | H116: 135.33 | I116: 162.83 | J116: 171.22 | K116: 176.58 | L116: 165.85 | M116: 152.1 | N116: 37064000 | O116: 4.44%
A117: 108 | B117: Telecom | C117: INFRATEL | D117: 291.00 | E117: 293.42 | F117: 286.53 | G117: 282.07 | H117: 275.18 | I117: 297.88 | J117: 304.77 | K117: 309.23 | L117: 300.3 | M117: 288.95 | N117: 6463400 | O117: 0.34%
A118: 109 | B118: Technology | C118: INFY | D118: 1205.90 | E118: 1201.20 | F118: 1191.25 | G118: 1176.60 | H118: 1166.65 | I118: 1215.85 | J118: 1225.80 | K118: 1240.45 | L118: 1211.15 | M118: 1186.55 | N118: 32118000 | O118: 1.02%
A119: 110 | B119: Oil_Gas | C119: IOC | D119: 171.35 | E119: 171.40 | F119: 168.60 | G119: 165.85 | H119: 163.05 | I119: 174.15 | J119: 176.95 | K119: 179.70 | L119: 174.2 | M119: 168.65 | N119: 35814000 | O119: 7.51%
A120: 111 | B120: Infrastructure | C120: IRB | D120: 225.95 | E120: 225.88 | F120: 222.02 | G120: 218.08 | H120: 214.22 | I120: 229.82 | J120: 233.68 | K120: 237.62 | L120: 229.75 | M120: 221.95 | N120: 18965000 | O120: 0.66%
A121: 112 | B121: FMCG | C121: ITC | D121: 269.30 | E121: 270.02 | F121: 267.78 | G121: 266.27 | H121: 264.03 | I121: 271.53 | J121: 273.77 | K121: 275.28 | L121: 272.25 | M121: 268.5 | N121: 81432000 | O121: 1.87%
A122: 113 | B122: Others | C122: JETAIRWAYS | D122: 403.35 | E122: 405.30 | F122: 396.15 | G122: 388.95 | H122: 379.80 | I122: 412.50 | J122: 421.65 | K122: 428.85 | L122: 414.45 | M122: 398.1 | N122: 6822000 | O122: 3.72%
A123: 114 | B123: Metals | C123: JINDALSTEL | D123: 230.25 | E123: 229.72 | F123: 226.13 | G123: 222.02 | H123: 218.43 | I123: 233.83 | J123: 237.42 | K123: 241.53 | L123: 233.3 | M123: 225.6 | N123: 30456000 | O123: 0.80%
A124: 115 | B124: Others | C124: JISLJALEQS | D124: 100.10 | E124: 101.25 | F124: 98.30 | G124: 96.50 | H124: 93.55 | I124: 103.05 | J124: 106.00 | K124: 107.80 | L124: 104.2 | M124: 99.45 | N124: 39024000 | O124: 2.68%
A125: 116 | B125: Realty | C125: JPASSOCIAT | D125: 14.25 | E125: 14.43 | F125: 13.97 | G125: 13.68 | H125: 13.22 | I125: 14.72 | J125: 15.18 | K125: 15.47 | L125: 14.9 | M125: 14.15 | N125: 180030000 | O125: -0.19%
A126: 117 | B126: Metals | C126: JSWSTEEL | D126: 333.20 | E126: 333.08 | F126: 330.67 | G126: 328.13 | H126: 325.72 | I126: 335.62 | J126: 338.03 | K126: 340.57 | L126: 335.5 | M126: 330.55 | N126: 64215000 | O126: 0.44%
A127: 118 | B127: Others | C127: JUBLFOOD | D127: 2558.50 | E127: 2534.52 | F127: 2494.03 | G127: 2429.57 | H127: 2389.08 | I127: 2598.98 | J127: 2639.47 | K127: 2703.93 | L127: 2575 | M127: 2470.05 | N127: 2335000 | O127: -6.00%
A128: 119 | B128: Others | C128: JUSTDIAL | D128: 559.60 | E128: 569.65 | F128: 542.35 | G128: 525.10 | H128: 497.80 | I128: 586.90 | J128: 614.20 | K128: 631.45 | L128: 596.95 | M128: 552.4 | N128: 2966600 | O128: 9.57%
A129: 120 | B129: Others | C129: KAJARIACER | D129: 518.15 | E129: 526.25 | F129: 506.00 | G129: 493.85 | H129: 473.60 | I129: 538.40 | J129: 558.65 | K129: 570.80 | L129: 546.5 | M129: 514.1 | N129: 1590600 | O129: 6.78%
A130: 121 | B130: Banking | C130: KOTAKBANK | D130: 1305.60 | E130: 1310.03 | F130: 1288.17 | G130: 1270.73 | H130: 1248.87 | I130: 1327.47 | J130: 1349.33 | K130: 1366.77 | L130: 1331.9 | M130: 1292.6 | N130: 15412000 | O130: -1.10%
A131: 122 | B131: Technology | C131: KPIT | D131: 278.10 | E131: 280.40 | F131: 272.80 | G131: 267.50 | H131: 259.90 | I131: 285.70 | J131: 293.30 | K131: 298.60 | L131: 288 | M131: 275.1 | N131: 6943500 | O131: -15.03%
A132: 123 | B132: Others | C132: KSCL | D132: 507.05 | E132: 513.87 | F132: 498.18 | G132: 489.32 | H132: 473.63 | I132: 522.73 | J132: 538.42 | K132: 547.28 | L132: 529.55 | M132: 505 | N132: 2100000 | O132: 1.16%
A133: 124 | B133: Banking | C133: KTKBANK | D133: 116.80 | E133: 118.07 | F133: 114.93 | G133: 113.07 | H133: 109.93 | I133: 119.93 | J133: 123.07 | K133: 124.93 | L133: 121.2 | M133: 116.2 | N133: 21544400 | O133: -0.78%
A134: 125 | B134: Finance | C134: L&TFH | D134: 164.85 | E134: 164.88 | F134: 162.87 | G134: 160.88 | H134: 158.87 | I134: 166.87 | J134: 168.88 | K134: 170.87 | L134: 166.9 | M134: 162.9 | N134: 30028500 | O134: -0.89%
A135: 126 | B135: Finance | C135: LICHSGFIN | D135: 474.25 | E135: 475.88 | F135: 470.07 | G135: 465.88 | H135: 460.07 | I135: 480.07 | J135: 485.88 | K135: 490.07 | L135: 481.7 | M135: 471.7 | N135: 13021800 | O135: -5.08%
A136: 127 | B136: Capital_Goods | C136: LT | D136: 1356.80 | E136: 1363.80 | F136: 1344.60 | G136: 1332.40 | H136: 1313.20 | I136: 1376.00 | J136: 1395.20 | K136: 1407.40 | L136: 1383 | M136: 1351.6 | N136: 13149750 | O136: 1.61%
A137: 128 | B137: Pharma | C137: LUPIN | D137: 774.55 | E137: 770.17 | F137: 759.38 | G137: 744.22 | H137: 733.43 | I137: 785.33 | J137: 796.12 | K137: 811.28 | L137: 780.95 | M137: 755 | N137: 12904200 | O137: -2.74%
A138: 129 | B138: Automobile | C138: M&M | D138: 915.90 | E138: 913.57 | F138: 908.33 | G138: 900.77 | H138: 895.53 | I138: 921.13 | J138: 926.37 | K138: 933.93 | L138: 918.8 | M138: 906 | N138: 14814000 | O138: -1.28%
A139: 130 | B139: Finance | C139: M&MFIN | D139: 472.50 | E139: 474.35 | F139: 467.20 | G139: 461.90 | H139: 454.75 | I139: 479.65 | J139: 486.80 | K139: 492.10 | L139: 481.5 | M139: 469.05 | N139: 8468750 | O139: -1.54%
A140: 131 | B140: Others | C140: MANAPPURAM | D140: 103.65 | E140: 104.15 | F140: 102.10 | G140: 100.55 | H140: 98.50 | I140: 105.70 | J140: 107.75 | K140: 109.30 | L140: 106.2 | M140: 102.6 | N140: 20352000 | O140: 0.41%
A141: 132 | B141: FMCG | C141: MARICO | D141: 323.50 | E141: 323.83 | F141: 321.02 | G141: 318.53 | H141: 315.72 | I141: 326.32 | J141: 329.13 | K141: 331.62 | L141: 326.65 | M141: 321.35 | N141: 4830800 | O141: -1.43%
A142: 133 | B142: Automobile | C142: MARUTI | D142: 8761.55 | E142: 8787.52 | F142: 8723.03 | G142: 8684.52 | H142: 8620.03 | I142: 8826.03 | J142: 8890.52 | K142: 8929.03 | L142: 8852 | M142: 8749 | N142: 2647800 | O142: -0.43%
A143: 134 | B143: FMCG | C143: MCDOWELL-N | D143: 3304.80 | E143: 3313.08 | F143: 3261.82 | G143: 3218.83 | H143: 3167.57 | I143: 3356.07 | J143: 3407.33 | K143: 3450.32 | L143: 3364.35 | M143: 3270.1 | N143: 2438250 | O143: -0.36%
A144: 135 | B144: Others | C144: MCX | D144: 815.00 | E144: 825.05 | F144: 800.05 | G144: 785.10 | H144: 760.10 | I144: 840.00 | J144: 865.00 | K144: 879.95 | L144: 850.05 | M144: 810.1 | N144: 3290400 | O144: 0.52%
A145: 136 | B145: Finance | C145: MFSL | D145: 467.65 | E145: 472.52 | F145: 457.13 | G145: 446.62 | H145: 431.23 | I145: 483.03 | J145: 498.42 | K145: 508.93 | L145: 487.9 | M145: 462 | N145: 2827800 | O145: 0.57%
A146: 137 | B146: Others | C146: MGL | D146: 815.70 | E146: 814.78 | F146: 803.87 | G146: 792.03 | H146: 781.12 | I146: 826.62 | J146: 837.53 | K146: 849.37 | L146: 825.7 | M146: 802.95 | N146: 2168400 | O146: 2.70%
A147: 138 | B147: Technology | C147: MINDTREE | D147: 1003.85 | E147: 1005.92 | F147: 994.88 | G147: 985.92 | H147: 974.88 | I147: 1014.88 | J147: 1025.92 | K147: 1034.88 | L147: 1016.95 | M147: 996.95 | N147: 3288000 | O147: 3.71%
A148: 139 | B148: Automobile | C148: MOTHERSUMI | D148: 306.95 | E148: 308.38 | F148: 304.47 | G148: 301.98 | H148: 298.07 | I148: 310.87 | J148: 314.78 | K148: 317.27 | L148: 312.3 | M148: 305.9 | N148: 13489600 | O148: 0.95%
A149: 140 | B149: Automobile | C149: MRF | D149: 74795.20 | E149: 75022.48 | F149: 74273.42 | G149: 73751.63 | H149: 73002.57 | I149: 75544.27 | J149: 76293.33 | K149: 76815.12 | L149: 75771.55 | M149: 74500.7 | N149: 29185 | O149: 2.84%
A150: 141 | B150: Others | C150: MRPL | D150: 89.55 | E150: 89.87 | F150: 88.48 | G150: 87.42 | H150: 86.03 | I150: 90.93 | J150: 92.32 | K150: 93.38 | L150: 91.25 | M150: 88.8 | N150: 5557500 | O150: 0.90%
A151: 142 | B151: Finance | C151: MUTHOOTFIN | D151: 376.65 | E151: 378.25 | F151: 369.55 | G151: 362.45 | H151: 353.75 | I151: 385.35 | J151: 394.05 | K151: 401.15 | L151: 386.95 | M151: 371.15 | N151: 2176500 | O151: 4.24%
A152: 143 | B152: Others | C152: NATIONALUM | D152: 69.15 | E152: 69.48 | F152: 68.27 | G152: 67.38 | H152: 66.17 | I152: 70.37 | J152: 71.58 | K152: 72.47 | L152: 70.7 | M152: 68.6 | N152: 40592000 | O152: 3.26%
A153: 144 | B153: Others | C153: NBCC | D153: 86.60 | E153: 87.58 | F153: 85.02 | G153: 83.43 | H153: 80.87 | I153: 89.17 | J153: 91.73 | K153: 93.32 | L153: 90.15 | M153: 86 | N153: 19638000 | O153: 1.96%
A154: 145 | B154: Infrastructure | C154: NCC | D154: 115.35 | E154: 117.15 | F154: 112.45 | G154: 109.55 | H154: 104.85 | I154: 120.05 | J154: 124.75 | K154: 127.65 | L154: 121.85 | M154: 114.25 | N154: 37392000 | O154: 1.15%
A155: 146 | B155: Others | C155: NESTLEIND | D155: 9845.45 | E155: 9900.15 | F155: 9760.30 | G155: 9675.15 | H155: 9535.30 | I155: 9985.30 | J155: 10125.15 | K155: 10210.30 | L155: 10040 | M155: 9815 | N155: 282200 | O155: 1.07%
A156: 147 | B156: Power | C156: NHPC | D156: 26.25 | E156: 26.43 | F156: 25.92 | G156: 25.58 | H156: 25.07 | I156: 26.77 | J156: 27.28 | K156: 27.62 | L156: 26.95 | M156: 26.1 | N156: 28215000 | O156: 2.05%
A157: 148 | B157: Technology | C157: NIITTECH | D157: 1090.80 | E157: 1098.03 | F157: 1078.57 | G157: 1066.33 | H157: 1046.87 | I157: 1110.27 | J157: 1129.73 | K157: 1141.97 | L157: 1117.5 | M157: 1085.8 | N157: 1158750 | O157: -1.97%
A158: 149 | B158: Metals | C158: NMDC | D158: 115.35 | E158: 115.55 | F158: 114.15 | G158: 112.95 | H158: 111.55 | I158: 116.75 | J158: 118.15 | K158: 119.35 | L158: 116.95 | M158: 114.35 | N158: 26370000 | O158: -0.45%
A159: 150 | B159: Power | C159: NTPC | D159: 162.30 | E159: 163.25 | F159: 161.00 | G159: 159.70 | H159: 157.45 | I159: 164.55 | J159: 166.80 | K159: 168.10 | L159: 165.5 | M159: 161.95 | N159: 44824000 | O159: 1.30%
A160: 151 | B160: Technology | C160: OFSS | D160: 3681.85 | E160: 3682.83 | F160: 3657.92 | G160: 3633.98 | H160: 3609.07 | I160: 3706.77 | J160: 3731.68 | K160: 3755.62 | L160: 3707.75 | M160: 3658.9 | N160: 73950 | O160: -0.20%
A161: 152 | B161: Oil_Gas | C161: OIL | D161: 218.60 | E161: 218.42 | F161: 215.53 | G161: 212.47 | H161: 209.58 | I161: 221.48 | J161: 224.37 | K161: 227.43 | L161: 221.3 | M161: 215.35 | N161: 2443881 | O161: -2.31%
A162: 153 | B162: Oil_Gas | C162: ONGC | D162: 171.30 | E162: 172.12 | F162: 169.98 | G162: 168.67 | H162: 166.53 | I162: 173.43 | J162: 175.57 | K162: 176.88 | L162: 174.25 | M162: 170.8 | N162: 46181250 | O162: -0.73%
A163: 154 | B163: Banking | C163: ORIENTBANK | D163: 76.45 | E163: 77.42 | F163: 74.88 | G163: 73.32 | H163: 70.78 | I163: 78.98 | J163: 81.52 | K163: 83.08 | L163: 79.95 | M163: 75.85 | N163: 14778000 | O163: 1.95%
A164: 155 | B164: Textile | C164: PAGEIND | D164: 24912.40 | E164: 24976.47 | F164: 24536.93 | G164: 24161.47 | H164: 23721.93 | I164: 25351.93 | J164: 25791.47 | K164: 26166.93 | L164: 25416 | M164: 24601 | N164: 56800 | O164: 3.13%
A165: 156 | B165: Others | C165: PCJEWELLER | D165: 130.55 | E165: 139.25 | F165: 118.50 | G165: 106.45 | H165: 85.70 | I165: 151.30 | J165: 172.05 | K165: 184.10 | L165: 160 | M165: 127.2 | N165: 9372000 | O165: 24.17%
A166: 157 | B166: Pharma | C166: PEL | D166: 2412.80 | E166: 2430.77 | F166: 2387.58 | G166: 2362.37 | H166: 2319.18 | I166: 2455.98 | J166: 2499.17 | K166: 2524.38 | L166: 2473.95 | M166: 2405.55 | N166: 2182856 | O166: 0.22%
A167: 158 | B167: Oil_Gas | C167: PETRONET | D167: 217.05 | E167: 218.15 | F167: 214.30 | G167: 211.55 | H167: 207.70 | I167: 220.90 | J167: 224.75 | K167: 227.50 | L167: 222 | M167: 215.4 | N167: 16995000 | O167: -0.84%
A168: 159 | B168: Finance | C168: PFC | D168: 82.10 | E168: 82.30 | F168: 80.80 | G168: 79.50 | H168: 78.00 | I168: 83.60 | J168: 85.10 | K168: 86.40 | L168: 83.8 | M168: 81 | N168: 97908000 | O168: 1.59%
A169: 160 | B169: FMCG | C169: PIDILITIND | D169: 1114.00 | E169: 1119.62 | F169: 1095.38 | G169: 1076.77 | H169: 1052.53 | I169: 1138.23 | J169: 1162.47 | K169: 1181.08 | L169: 1143.85 | M169: 1101 | N169: 3334000 | O169: 4.68%
A170: 161 | B170: Banking | C170: PNB | D170: 83.50 | E170: 83.80 | F170: 82.15 | G170: 80.80 | H170: 79.15 | I170: 85.15 | J170: 86.80 | K170: 88.15 | L170: 85.45 | M170: 82.45 | N170: 67940000 | O170: -0.65%
A171: 162 | B171: Power | C171: POWERGRID | D171: 199.15 | E171: 200.33 | F171: 197.02 | G171: 194.88 | H171: 191.57 | I171: 202.47 | J171: 205.78 | K171: 207.92 | L171: 203.65 | M171: 198.2 | N171: 53280000 | O171: 6.42%
A172: 163 | B172: Power | C172: PTC | D172: 81.05 | E172: 82.02 | F172: 79.53 | G172: 78.02 | H172: 75.53 | I172: 83.53 | J172: 86.02 | K172: 87.53 | L172: 84.5 | M172: 80.5 | N172: 21408000 | O172: -1.22%
A173: 164 | B173: Others | C173: PVR | D173: 1280.35 | E173: 1296.43 | F173: 1254.92 | G173: 1229.48 | H173: 1187.97 | I173: 1321.87 | J173: 1363.38 | K173: 1388.82 | L173: 1337.95 | M173: 1271 | N173: 1184800 | O173: 2.56%
A174: 165 | B174: Cement | C174: RAMCOCEM | D174: 759.75 | E174: 761.08 | F174: 753.27 | G174: 746.78 | H174: 738.97 | I174: 767.57 | J174: 775.38 | K174: 781.87 | L174: 768.9 | M174: 754.6 | N174: 924000 | O174: 5.96%
A175: 166 | B175: Others | C175: RAYMOND | D175: 952.15 | E175: 960.35 | F175: 934.35 | G175: 916.55 | H175: 890.55 | I175: 978.15 | J175: 1004.15 | K175: 1021.95 | L175: 986.35 | M175: 942.55 | N175: 4905600 | O175: 1.10%
A176: 167 | B176: Banking | C176: RBLBANK | D176: 509.00 | E176: 509.73 | F176: 503.97 | G176: 498.93 | H176: 493.17 | I176: 514.77 | J176: 520.53 | K176: 525.57 | L176: 515.5 | M176: 504.7 | N176: 3997400 | O176: -1.16%
A177: 168 | B177: Telecom | C177: RCOM | D177: 15.85 | E177: 15.98 | F177: 15.27 | G177: 14.68 | H177: 13.97 | I177: 16.57 | J177: 17.28 | K177: 17.87 | L177: 16.7 | M177: 15.4 | N177: 79100000 | O177: 2.43%
A178: 169 | B178: Power | C178: RECLTD | D178: 114.15 | E178: 115.52 | F178: 112.13 | G178: 110.12 | H178: 106.73 | I178: 117.53 | J178: 120.92 | K178: 122.93 | L178: 118.9 | M178: 113.5 | N178: 38556000 | O178: 4.59%
A179: 170 | B179: Finance | C179: RELCAPITAL | D179: 408.40 | E179: 410.72 | F179: 401.68 | G179: 394.97 | H179: 385.93 | I179: 417.43 | J179: 426.47 | K179: 433.18 | L179: 419.75 | M179: 404 | N179: 9690750 | O179: -0.55%
A180: 171 | B180: Oil_Gas | C180: RELIANCE | D180: 936.10 | E180: 935.97 | F180: 931.13 | G180: 926.17 | H180: 921.33 | I180: 940.93 | J180: 945.77 | K180: 950.73 | L180: 940.8 | M180: 931 | N180: 42111000 | O180: 1.23%
A181: 172 | B181: Power | C181: RELINFRA | D181: 431.20 | E181: 432.45 | F181: 426.45 | G181: 421.70 | H181: 415.70 | I181: 437.20 | J181: 443.20 | K181: 447.95 | L181: 438.45 | M181: 427.7 | N181: 6288100 | O181: 2.09%
A182: 173 | B182: Others | C182: REPCOHOME | D182: 569.60 | E182: 578.22 | F182: 557.38 | G182: 545.17 | H182: 524.33 | I182: 590.43 | J182: 611.27 | K182: 623.48 | L182: 599.05 | M182: 566 | N182: 573300 | O182: 8.52%
A183: 174 | B183: Power | C183: RPOWER | D183: 34.20 | E183: 34.60 | F183: 33.60 | G183: 33.00 | H183: 32.00 | I183: 35.20 | J183: 36.20 | K183: 36.80 | L183: 35.6 | M183: 34 | N183: 52767000 | O183: 2.09%
A184: 175 | B184: Metals | C184: SAIL | D184: 75.75 | E184: 74.88 | F184: 73.62 | G184: 71.48 | H184: 70.22 | I184: 77.02 | J184: 78.28 | K184: 80.42 | L184: 76.15 | M184: 72.75 | N184: 93000000 | O184: -3.79%
A185: 176 | B185: Banking | C185: SBIN | D185: 264.20 | E185: 265.27 | F185: 261.23 | G185: 258.27 | H185: 254.23 | I185: 268.23 | J185: 272.27 | K185: 275.23 | L185: 269.3 | M185: 262.3 | N185: 74004000 | O185: 2.08%
A186: 177 | B186: Cement | C186: SHREECEM | D186: 16388.00 | E186: 16477.68 | F186: 16135.32 | G186: 15882.63 | H186: 15540.27 | I186: 16730.37 | J186: 17072.73 | K186: 17325.42 | L186: 16820.05 | M186: 16225 | N186: 64800 | O186: 5.37%
A187: 178 | B187: Capital_Goods | C187: SIEMENS | D187: 995.40 | E187: 1004.80 | F187: 974.60 | G187: 953.80 | H187: 923.60 | I187: 1025.60 | J187: 1055.80 | K187: 1076.60 | L187: 1035 | M187: 984 | N187: 1244000 | O187: 5.11%
A188: 179 | B188: Banking | C188: SOUTHBANK | D188: 23.90 | E188: 24.05 | F188: 23.60 | G188: 23.30 | H188: 22.85 | I188: 24.35 | J188: 24.80 | K188: 25.10 | L188: 24.5 | M188: 23.75 | N188: 153277125 | O188: -0.30%
A189: 180 | B189: Others | C189: SREINFRA | D189: 71.80 | E189: 72.55 | F189: 70.35 | G189: 68.90 | H189: 66.70 | I189: 74.00 | J189: 76.20 | K189: 77.65 | L189: 74.75 | M189: 71.1 | N189: 17556000 | O189: 1.47%
A190: 181 | B190: Textile | C190: SRF | D190: 1897.65 | E190: 1898.60 | F190: 1874.20 | G190: 1850.75 | H190: 1826.35 | I190: 1922.05 | J190: 1946.45 | K190: 1969.90 | L190: 1923 | M190: 1875.15 | N190: 479500 | O190: 1.37%
A191: 182 | B191: Finance | C191: SRTRANSFIN | D191: 1451.15 | E191: 1456.73 | F191: 1433.42 | G191: 1415.68 | H191: 1392.37 | I191: 1474.47 | J191: 1497.78 | K191: 1515.52 | L191: 1480.05 | M191: 1439 | N191: 3586800 | O191: 1.86%
A192: 183 | B192: Pharma | C192: STAR | D192: 374.50 | E192: 377.58 | F192: 365.32 | G192: 356.13 | H192: 343.87 | I192: 386.77 | J192: 399.03 | K192: 408.22 | L192: 389.85 | M192: 368.4 | N192: 2714600 | O192: 6.02%
A193: 184 | B193: Pharma | C193: SUNPHARMA | D193: 480.55 | E193: 484.37 | F193: 475.43 | G193: 470.32 | H193: 461.38 | I193: 489.48 | J193: 498.42 | K193: 503.53 | L193: 493.3 | M193: 479.25 | N193: 56995400 | O193: 0.09%
A194: 185 | B194: Media | C194: SUNTV | D194: 919.65 | E194: 913.92 | F194: 900.33 | G194: 881.02 | H194: 867.43 | I194: 933.23 | J194: 946.82 | K194: 966.13 | L194: 927.5 | M194: 894.6 | N194: 4840000 | O194: -12.22%
A195: 186 | B195: Power | C195: SUZLON | D195: 8.10 | E195: 8.18 | F195: 7.87 | G195: 7.63 | H195: 7.32 | I195: 8.42 | J195: 8.73 | K195: 8.97 | L195: 8.5 | M195: 7.95 | N195: 296435000 | O195: 1.65%
A196: 187 | B196: Banking | C196: SYNDIBANK | D196: 48.10 | E196: 48.65 | F196: 47.40 | G196: 46.70 | H196: 45.45 | I196: 49.35 | J196: 50.60 | K196: 51.30 | L196: 49.9 | M196: 47.95 | N196: 25974000 | O196: -0.89%
A197: 188 | B197: Fertilisers | C197: TATACHEM | D197: 731.15 | E197: 731.47 | F197: 724.68 | G197: 718.22 | H197: 711.43 | I197: 737.93 | J197: 744.72 | K197: 751.18 | L197: 738.25 | M197: 725 | N197: 3988500 | O197: -3.48%
A198: 189 | B198: Telecom | C198: TATACOMM | D198: 600.45 | E198: 600.52 | F198: 594.58 | G198: 588.72 | H198: 582.78 | I198: 606.38 | J198: 612.32 | K198: 618.18 | L198: 606.45 | M198: 594.65 | N198: 4062400 | O198: -0.20%
A199: 190 | B199: Technology | C199: TATAELXSI | D199: 1209.40 | E199: 1212.97 | F199: 1197.43 | G199: 1185.47 | H199: 1169.93 | I199: 1224.93 | J199: 1240.47 | K199: 1252.43 | L199: 1228.5 | M199: 1201 | N199: 1756000 | O199: 2.38%
A200: 191 | B200: FMCG | C200: TATAGLOBAL | D200: 253.85 | E200: 256.18 | F200: 249.42 | G200: 244.98 | H200: 238.22 | I200: 260.62 | J200: 267.38 | K200: 271.82 | L200: 262.95 | M200: 251.75 | N200: 16776000 | O200: 0.62%
A201: 192 | B201: Automobile | C201: TATAMOTORS | D201: 287.75 | E201: 289.77 | F201: 284.68 | G201: 281.62 | H201: 276.53 | I201: 292.83 | J201: 297.92 | K201: 300.98 | L201: 294.85 | M201: 286.7 | N201: 92272500 | O201: 0.44%
A202: 193 | B202: Automobile | C202: TATAMTRDVR | D202: 172.20 | E202: 173.05 | F202: 169.45 | G202: 166.70 | H202: 163.10 | I202: 175.80 | J202: 179.40 | K202: 182.15 | L202: 176.65 | M202: 170.3 | N202: 26119600 | O202: -1.16%
A203: 194 | B203: Power | C203: TATAPOWER | D203: 77.55 | E203: 78.33 | F203: 76.22 | G203: 74.88 | H203: 72.77 | I203: 79.67 | J203: 81.78 | K203: 83.12 | L203: 80.45 | M203: 77 | N203: 41814000 | O203: 1.49%
A204: 195 | B204: Metals | C204: TATASTEEL | D204: 568.90 | E204: 568.95 | F204: 563.15 | G204: 557.40 | H204: 551.60 | I204: 574.70 | J204: 580.50 | K204: 586.25 | L204: 574.75 | M204: 563.2 | N204: 30025239 | O204: 2.34%
A205: 196 | B205: Technology | C205: TCS | D205: 1747.45 | E205: 1739.65 | F205: 1727.80 | G205: 1708.15 | H205: 1696.30 | I205: 1759.30 | J205: 1771.15 | K205: 1790.80 | L205: 1751.5 | M205: 1720 | N205: 11427500 | O205: 2.06%
A206: 197 | B206: Technology | C206: TECHM | D206: 701.15 | E206: 705.98 | F206: 694.32 | G206: 687.48 | H206: 675.82 | I206: 712.82 | J206: 724.48 | K206: 731.32 | L206: 717.65 | M206: 699.15 | N206: 14244000 | O206: 2.16%
... 35 more rows

Sheet Cash Intra
M5: Back to Main Page
A6: FOR INTRA DAY TRADING | K6: =Main!B10 -> 2018-06-05
A8: Sr.no | B8: Scrip | C8: CLOSE RATE | D8: Pivot Point | E8: Supports | H8: Resistances
C9: Point | E9: S1 | F9: S2 | G9: S3 | H9: R1 | I9: R2 | J9: R3 | K9: HIGH | L9: LOW | M9: Total Trade Quanity in Lakhs
A10: 1 | B10: Nifty 50 | C10: 10628.5 | D10: 10672.38 | E10: 10574.47 | F10: 10520.43 | G10: 10422.52 | H10: 10726.42 | I10: 10824.33 | J10: 10878.37 | K10: 10770.3 | L10: 10618.35
A11: 2 | B11: Nifty Bank | C11: 26257.55 | D11: 26503.67 | E11: 25959.78 | F11: 25662.02 | G11: 25118.13 | H11: 26801.43 | I11: 27345.32 | J11: 27643.08 | K11: 27047.55 | L11: 26205.9
A12: 3 | B12: Nifty CPSE | C12: 2369.6 | D12: 2380.90 | E12: 2352.95 | F12: 2336.30 | G12: 2308.35 | H12: 2397.55 | I12: 2425.50 | J12: 2442.15 | K12: 2408.85 | L12: 2364.25
A13: 4 | B13: Nifty Infra | C13: 3258.4 | D13: 3280.90 | E13: 3232.30 | F13: 3206.20 | G13: 3157.60 | H13: 3307.00 | I13: 3355.60 | J13: 3381.70 | K13: 3329.5 | L13: 3254.8
A14: 5 | B14: Nifty IT | C14: 13595.1 | D14: 13588.95 | E14: 13531.35 | F14: 13467.60 | G14: 13410.00 | H14: 13652.70 | I14: 13710.30 | J14: 13774.05 | K14: 13646.55 | L14: 13525.2
A15: 6 | B15: Nifty PSE | C15: 3757.15 | D15: 3776.95 | E15: 3729.65 | F15: 3702.15 | G15: 3654.85 | H15: 3804.45 | I15: 3851.75 | J15: 3879.25 | K15: 3824.25 | L15: 3749.45
A16: 7 | B16: Nifty Midcap 50 | C16: 4907.05 | D16: 4925.43 | E16: 4874.67 | F16: 4842.28 | G16: 4791.52 | H16: 4957.82 | I16: 5008.58 | J16: 5040.97 | K16: 4976.2 | L16: 4893.05
A17: 8 | B17: ABB | C17: 1185.25 | D17: 1191.37 | E17: 1167.83 | F17: 1150.42 | G17: 1126.88 | H17: 1208.78 | I17: 1232.32 | J17: 1249.73 | K17: 1214.9 | L17: 1173.95 | M17: 0.57698
A18: 9 | B18: ACC | C18: 1308.05 | D18: 1321.60 | E18: 1289.70 | F18: 1271.35 | G18: 1239.45 | H18: 1339.95 | I18: 1371.85 | J18: 1390.20 | K18: 1353.5 | L18: 1303.25 | M18: 5.58346
A19: 10 | B19: AIAENG | C19: 1555.4 | D19: 1557.25 | E19: 1536.15 | F19: 1516.90 | G19: 1495.80 | H19: 1576.50 | I19: 1597.60 | J19: 1616.85 | K19: 1578.35 | L19: 1538 | M19: 0.90218
A20: 11 | B20: AUBANK | C20: 699.05 | D20: 696.65 | E20: 693.30 | F20: 687.55 | G20: 684.20 | H20: 702.40 | I20: 705.75 | J20: 711.50 | K20: 700 | L20: 690.9 | M20: 0.61989
A21: 12 | B21: ADANIENT | C21: 116.25 | D21: 116.97 | E21: 112.93 | F21: 109.62 | G21: 105.58 | H21: 120.28 | I21: 124.32 | J21: 127.63 | K21: 121 | L21: 113.65 | M21: 51.53935
A22: 13 | B22: ADANIPORTS | C22: 378.55 | D22: 381.18 | E22: 373.42 | F22: 368.28 | G22: 360.52 | H22: 386.32 | I22: 394.08 | J22: 399.22 | K22: 388.95 | L22: 376.05 | M22: 24.81566
A23: 14 | B23: ADANIPOWER | C23: 18.45 | D23: 18.82 | E23: 17.88 | F23: 17.32 | G23: 16.38 | H23: 19.38 | I23: 20.32 | J23: 20.88 | K23: 19.75 | L23: 18.25 | M23: 158.17584
A24: 15 | B24: ABFRL | C24: 139.8 | D24: 141.53 | E24: 136.97 | F24: 134.13 | G24: 129.57 | H24: 144.37 | I24: 148.93 | J24: 151.77 | K24: 146.1 | L24: 138.7 | M24: 1.99572
A25: 16 | B25: AJANTPHARM | C25: 930 | D25: 934.57 | E25: 919.43 | F25: 908.87 | G25: 893.73 | H25: 945.13 | I25: 960.27 | J25: 970.83 | K25: 949.7 | L25: 924 | M25: 1.57028
A26: 17 | B26: ALKEM | C26: 1934.05 | D26: 1938.13 | E26: 1916.27 | F26: 1898.48 | G26: 1876.62 | H26: 1955.92 | I26: 1977.78 | J26: 1995.57 | K26: 1960 | L26: 1920.35 | M26: 0.18373
A27: 18 | B27: AMARAJABAT | C27: 762.2 | D27: 766.62 | E27: 749.03 | F27: 735.87 | G27: 718.28 | H27: 779.78 | I27: 797.37 | J27: 810.53 | K27: 784.2 | L27: 753.45 | M27: 3.13006
A28: 19 | B28: AMBUJACEM | C28: 201.45 | D28: 202.42 | E28: 199.38 | F28: 197.32 | G28: 194.28 | H28: 204.48 | I28: 207.52 | J28: 209.58 | K28: 205.45 | L28: 200.35 | M28: 63.13873
A29: 20 | B29: APOLLOHOSP | C29: 941.15 | D29: 934.78 | E29: 921.57 | F29: 901.98 | G29: 888.77 | H29: 954.37 | I29: 967.58 | J29: 987.17 | K29: 948 | L29: 915.2 | M29: 4.74667
A30: 21 | B30: APOLLOTYRE | C30: 266.05 | D30: 266.95 | E30: 263.45 | F30: 260.85 | G30: 257.35 | H30: 269.55 | I30: 273.05 | J30: 275.65 | K30: 270.45 | L30: 264.35 | M30: 20.99074
A31: 22 | B31: ARVIND | C31: 379.3 | D31: 381.10 | E31: 375.20 | F31: 371.10 | G31: 365.20 | H31: 385.20 | I31: 391.10 | J31: 395.20 | K31: 387 | L31: 377 | M31: 9.13457
A32: 23 | B32: ASHOKLEY | C32: 146.9 | D32: 148.42 | E32: 145.03 | F32: 143.17 | G32: 139.78 | H32: 150.28 | I32: 153.67 | J32: 155.53 | K32: 151.8 | L32: 146.55 | M32: 94.61068
A33: 24 | B33: ASIANPAINT | C33: 1284.45 | D33: 1282.32 | E33: 1267.13 | F33: 1249.82 | G33: 1234.63 | H33: 1299.63 | I33: 1314.82 | J33: 1332.13 | K33: 1297.5 | L33: 1265 | M33: 9.39794
A34: 25 | B34: AUROPHARMA | C34: 533.35 | D34: 534.70 | E34: 525.65 | F34: 517.95 | G34: 508.90 | H34: 542.40 | I34: 551.45 | J34: 559.15 | K34: 543.75 | L34: 527 | M34: 26.13575
A35: 26 | B35: DMART | C35: 1486.4 | D35: 1504.40 | E35: 1464.40 | F35: 1442.40 | G35: 1402.40 | H35: 1526.40 | I35: 1566.40 | J35: 1588.40 | K35: 1544.4 | L35: 1482.4 | M35: 10.84158
A36: 27 | B36: AXISBANK | C36: 537.05 | D36: 536.75 | E36: 531.55 | F36: 526.05 | G36: 520.85 | H36: 542.25 | I36: 547.45 | J36: 552.95 | K36: 541.95 | L36: 531.25 | M36: 42.91186
A37: 28 | B37: BAJAJ-AUTO | C37: 2878.5 | D37: 2890.70 | E37: 2858.85 | F37: 2839.20 | G37: 2807.35 | H37: 2910.35 | I37: 2942.20 | J37: 2961.85 | K37: 2922.55 | L37: 2871.05 | M37: 7.59197
A38: 29 | B38: BAJFINANCE | C38: 2062.85 | D38: 2072.30 | E38: 2045.85 | F38: 2028.85 | G38: 2002.40 | H38: 2089.30 | I38: 2115.75 | J38: 2132.75 | K38: 2098.75 | L38: 2055.3 | M38: 5.13152
A39: 30 | B39: BAJAJFINSV | C39: 5748.55 | D39: 5797.65 | E39: 5680.90 | F39: 5613.25 | G39: 5496.50 | H39: 5865.30 | I39: 5982.05 | J39: 6049.70 | K39: 5914.4 | L39: 5730 | M39: 1.03183
A40: 31 | B40: BALKRISIND | C40: 1117.6 | D40: 1121.07 | E40: 1107.13 | F40: 1096.67 | G40: 1082.73 | H40: 1131.53 | I40: 1145.47 | J40: 1155.93 | K40: 1135 | L40: 1110.6 | M40: 1.93901
A41: 32 | B41: BANKBARODA | C41: 131.55 | D41: 133.48 | E41: 129.07 | F41: 126.58 | G41: 122.17 | H41: 135.97 | I41: 140.38 | J41: 142.87 | K41: 137.9 | L41: 131 | M41: 222.67362
A42: 33 | B42: BANKINDIA | C42: 94.7 | D42: 95.53 | E42: 93.17 | F42: 91.63 | G42: 89.27 | H42: 97.07 | I42: 99.43 | J42: 100.97 | K42: 97.9 | L42: 94 | M42: 54.05199
A43: 34 | B43: BATAINDIA | C43: 751.9 | D43: 758.63 | E43: 741.27 | F43: 730.63 | G43: 713.27 | H43: 769.27 | I43: 786.63 | J43: 797.27 | K43: 776 | L43: 748 | M43: 5.05238
A44: 35 | B44: BERGEPAINT | C44: 287.7 | D44: 287.27 | E44: 283.68 | F44: 279.67 | G44: 276.08 | H44: 291.28 | I44: 294.87 | J44: 298.88 | K44: 290.85 | L44: 283.25 | M44: 5.28148
A45: 36 | B45: BEL | C45: 112.1 | D45: 112.17 | E45: 109.93 | F45: 107.77 | G45: 105.53 | H45: 114.33 | I45: 116.57 | J45: 118.73 | K45: 114.4 | L45: 110 | M45: 81.68201
A46: 37 | B46: BHARATFIN | C46: 1143.8 | D46: 1152.25 | E46: 1124.65 | F46: 1105.50 | G46: 1077.90 | H46: 1171.40 | I46: 1199.00 | J46: 1218.15 | K46: 1179.85 | L46: 1133.1 | M46: 8.35227
A47: 38 | B47: BHARATFORG | C47: 636.7 | D47: 636.22 | E47: 624.48 | F47: 612.27 | G47: 600.53 | H47: 648.43 | I47: 660.17 | J47: 672.38 | K47: 647.95 | L47: 624 | M47: 14.60273
A48: 39 | B48: BHEL | C48: 75.25 | D48: 76.95 | E48: 73.00 | F48: 70.75 | G48: 66.80 | H48: 79.20 | I48: 83.15 | J48: 85.40 | K48: 80.9 | L48: 74.7 | M48: 142.37353
A49: 40 | B49: BPCL | C49: 408.5 | D49: 406.20 | E49: 395.35 | F49: 382.20 | G49: 371.35 | H49: 419.35 | I49: 430.20 | J49: 443.35 | K49: 417.05 | L49: 393.05 | M49: 78.62335
A50: 41 | B50: BHARTIARTL | C50: 372.3 | D50: 376.38 | E50: 366.02 | F50: 359.73 | G50: 349.37 | H50: 382.67 | I50: 393.03 | J50: 399.32 | K50: 386.75 | L50: 370.1 | M50: 35.67479
A51: 42 | B51: INFRATEL | C51: 295.15 | D51: 297.10 | E51: 292.05 | F51: 288.95 | G51: 283.90 | H51: 300.20 | I51: 305.25 | J51: 308.35 | K51: 302.15 | L51: 294 | M51: 9.26733
A52: 43 | B52: BIOCON | C52: 654.55 | D52: 653.20 | E52: 642.55 | F52: 630.55 | G52: 619.90 | H52: 665.20 | I52: 675.85 | J52: 687.85 | K52: 663.85 | L52: 641.2 | M52: 27.26642
A53: 44 | B53: BOSCHLTD | C53: 18142.9 | D53: 18216.27 | E53: 17945.63 | F53: 17748.37 | G53: 17477.73 | H53: 18413.53 | I53: 18684.17 | J53: 18881.43 | K53: 18486.9 | L53: 18019 | M53: 0.07038
A54: 45 | B54: BRITANNIA | C54: 5766.2 | D54: 5780.28 | E54: 5696.52 | F54: 5626.83 | G54: 5543.07 | H54: 5849.97 | I54: 5933.73 | J54: 6003.42 | K54: 5864.05 | L54: 5710.6 | M54: 1.17493
A55: 46 | B55: CRISIL | C55: 1806.2 | D55: 1793.37 | E55: 1764.73 | F55: 1723.27 | G55: 1694.63 | H55: 1834.83 | I55: 1863.47 | J55: 1904.93 | K55: 1822 | L55: 1751.9 | M55: 0.30675
A56: 47 | B56: CADILAHC | C56: 352 | D56: 354.17 | E56: 348.38 | F56: 344.77 | G56: 338.98 | H56: 357.78 | I56: 363.57 | J56: 367.18 | K56: 359.95 | L56: 350.55 | M56: 13.06674
A57: 48 | B57: CANBK | C57: 253.15 | D57: 255.02 | E57: 250.33 | F57: 247.52 | G57: 242.83 | H57: 257.83 | I57: 262.52 | J57: 265.33 | K57: 259.7 | L57: 252.2 | M57: 57.16251
A58: 49 | B58: CASTROLIND | C58: 172.15 | D58: 170.85 | E58: 168.20 | F58: 164.25 | G58: 161.60 | H58: 174.80 | I58: 177.45 | J58: 181.40 | K58: 173.5 | L58: 166.9 | M58: 13.67342
A59: 50 | B59: CENTRALBK | C59: 74.4 | D59: 74.15 | E59: 73.30 | F59: 72.20 | G59: 71.35 | H59: 75.25 | I59: 76.10 | J59: 77.20 | K59: 75 | L59: 73.05 | M59: 2.96701
A60: 51 | B60: CENTURYTEX | C60: 925.2 | D60: 915.95 | E60: 901.30 | F60: 877.40 | G60: 862.75 | H60: 939.85 | I60: 954.50 | J60: 978.40 | K60: 930.6 | L60: 892.05 | M60: 11.64555
A61: 52 | B61: CHOLAFIN | C61: 1577.25 | D61: 1587.13 | E61: 1555.27 | F61: 1533.28 | G61: 1501.42 | H61: 1609.12 | I61: 1640.98 | J61: 1662.97 | K61: 1619 | L61: 1565.15 | M61: 4.10614
A62: 53 | B62: CIPLA | C62: 520.7 | D62: 522.28 | E62: 515.57 | F62: 510.43 | G62: 503.72 | H62: 527.42 | I62: 534.13 | J62: 539.27 | K62: 529 | L62: 517.15 | M62: 12.47023
A63: 54 | B63: COALINDIA | C63: 292.6 | D63: 293.95 | E63: 290.05 | F63: 287.50 | G63: 283.60 | H63: 296.50 | I63: 300.40 | J63: 302.95 | K63: 297.85 | L63: 291.4 | M63: 15.57911
A64: 55 | B64: COLPAL | C64: 1233.75 | D64: 1240.28 | E64: 1223.57 | F64: 1213.38 | G64: 1196.67 | H64: 1250.47 | I64: 1267.18 | J64: 1277.37 | K64: 1257 | L64: 1230.1 | M64: 2.41454
A65: 56 | B65: CONCOR | C65: 1313.3 | D65: 1325.40 | E65: 1292.90 | F65: 1272.50 | G65: 1240.00 | H65: 1345.80 | I65: 1378.30 | J65: 1398.70 | K65: 1357.9 | L65: 1305 | M65: 3.21992
A66: 57 | B66: COROMANDEL | C66: 450.7 | D66: 452.27 | E66: 443.63 | F66: 436.57 | G66: 427.93 | H66: 459.33 | I66: 467.97 | J66: 475.03 | K66: 460.9 | L66: 445.2 | M66: 0.69432
A67: 58 | B67: CROMPTON | C67: 223.85 | D67: 223.13 | E67: 220.77 | F67: 217.68 | G67: 215.32 | H67: 226.22 | I67: 228.58 | J67: 231.67 | K67: 225.5 | L67: 220.05 | M67: 1.99152
A68: 59 | B68: CUMMINSIND | C68: 682.25 | D68: 677.88 | E68: 667.37 | F68: 652.48 | G68: 641.97 | H68: 692.77 | I68: 703.28 | J68: 718.17 | K68: 688.4 | L68: 663 | M68: 7.84074
A69: 60 | B69: DLF | C69: 199.15 | D69: 201.92 | E69: 195.33 | F69: 191.52 | G69: 184.93 | H69: 205.73 | I69: 212.32 | J69: 216.13 | K69: 208.5 | L69: 198.1 | M69: 46.93026
A70: 61 | B70: DABUR | C70: 384.95 | D70: 386.13 | E70: 382.97 | F70: 380.98 | G70: 377.82 | H70: 388.12 | I70: 391.28 | J70: 393.27 | K70: 389.3 | L70: 384.15 | M70: 9.26051
A71: 62 | B71: DALMIABHA | C71: 2706.2 | D71: 2705.47 | E71: 2680.73 | F71: 2655.27 | G71: 2630.53 | H71: 2730.93 | I71: 2755.67 | J71: 2781.13 | K71: 2730.2 | L71: 2680 | M71: 0.87287
A72: 63 | B72: DHFL | C72: 601.6 | D72: 605.28 | E72: 594.22 | F72: 586.83 | G72: 575.77 | H72: 612.67 | I72: 623.73 | J72: 631.12 | K72: 616.35 | L72: 597.9 | M72: 43.46387
A73: 64 | B73: DISHTV | C73: 73.1 | D73: 73.42 | E73: 71.93 | F73: 70.77 | G73: 69.28 | H73: 74.58 | I73: 76.07 | J73: 77.23 | K73: 74.9 | L73: 72.25 | M73: 31.78226
A74: 65 | B74: DIVISLAB | C74: 1047.15 | D74: 1049.10 | E74: 1033.55 | F74: 1019.95 | G74: 1004.40 | H74: 1062.70 | I74: 1078.25 | J74: 1091.85 | K74: 1064.65 | L74: 1035.5 | M74: 4.0087
A75: 66 | B75: LALPATHLAB | C75: 861.95 | D75: 860.97 | E75: 848.98 | F75: 836.02 | G75: 824.03 | H75: 873.93 | I75: 885.92 | J75: 898.88 | K75: 872.95 | L75: 848 | M75: 1.91012
A76: 67 | B76: DRREDDY | C76: 1996 | D76: 1996.30 | E76: 1964.70 | F76: 1933.40 | G76: 1901.80 | H76: 2027.60 | I76: 2059.20 | J76: 2090.50 | K76: 2027.9 | L76: 1965 | M76: 14.00421
A77: 68 | B77: EDELWEISS | C77: 299.2 | D77: 301.38 | E77: 290.02 | F77: 280.83 | G77: 269.47 | H77: 310.57 | I77: 321.93 | J77: 331.12 | K77: 312.75 | L77: 292.2 | M77: 19.61796
A78: 69 | B78: EICHERMOT | C78: 29377.65 | D78: 29655.48 | E78: 29037.17 | F78: 28696.68 | G78: 28078.37 | H78: 29995.97 | I78: 30614.28 | J78: 30954.77 | K78: 30273.8 | L78: 29315 | M78: 0.34668
A79: 70 | B79: EMAMILTD | C79: 1031.85 | D79: 1034.60 | E79: 1022.30 | F79: 1012.75 | G79: 1000.45 | H79: 1044.15 | I79: 1056.45 | J79: 1066.00 | K79: 1046.9 | L79: 1025.05 | M79: 0.36776
A80: 71 | B80: ENDURANCE | C80: 1254.2 | D80: 1254.73 | E80: 1228.77 | F80: 1203.33 | G80: 1177.37 | H80: 1280.17 | I80: 1306.13 | J80: 1331.57 | K80: 1280.7 | L80: 1229.3 | M80: 0.51343
A81: 72 | B81: ENGINERSIN | C81: 133.5 | D81: 132.77 | E81: 130.98 | F81: 128.47 | G81: 126.68 | H81: 135.28 | I81: 137.07 | J81: 139.58 | K81: 134.55 | L81: 130.25 | M81: 23.47839
A82: 73 | B82: EXIDEIND | C82: 255.35 | D82: 255.43 | E82: 252.37 | F82: 249.38 | G82: 246.32 | H82: 258.42 | I82: 261.48 | J82: 264.47 | K82: 258.5 | L82: 252.45 | M82: 17.76473
A83: 74 | B83: FEDERALBNK | C83: 81.2 | D83: 81.67 | E83: 80.08 | F83: 78.97 | G83: 77.38 | H83: 82.78 | I83: 84.37 | J83: 85.48 | K83: 83.25 | L83: 80.55 | M83: 81.8719
A84: 75 | B84: GAIL | C84: 335.05 | D84: 337.82 | E84: 329.63 | F84: 324.22 | G84: 316.03 | H84: 343.23 | I84: 351.42 | J84: 356.83 | K84: 346 | L84: 332.4 | M84: 31.94664
A85: 76 | B85: GMRINFRA | C85: 16.35 | D85: 16.58 | E85: 15.87 | F85: 15.38 | G85: 14.67 | H85: 17.07 | I85: 17.78 | J85: 18.27 | K85: 17.3 | L85: 16.1 | M85: 411.9455
A86: 77 | B86: GSKCONS | C86: 6542.15 | D86: 6519.22 | E86: 6483.48 | F86: 6424.82 | G86: 6389.08 | H86: 6577.88 | I86: 6613.62 | J86: 6672.28 | K86: 6554.95 | L86: 6460.55 | M86: 0.12474
A87: 78 | B87: GLAXO | C87: 2520.5 | D87: 2521.02 | E87: 2502.23 | F87: 2483.97 | G87: 2465.18 | H87: 2539.28 | I87: 2558.07 | J87: 2576.33 | K87: 2539.8 | L87: 2502.75 | M87: 0.07331
A88: 79 | B88: GLENMARK | C88: 539.95 | D88: 539.93 | E88: 531.47 | F88: 522.98 | G88: 514.52 | H88: 548.42 | I88: 556.88 | J88: 565.37 | K88: 548.4 | L88: 531.45 | M88: 7.56736
A89: 80 | B89: GODREJCP | C89: 1134.65 | D89: 1141.50 | E89: 1118.15 | F89: 1101.65 | G89: 1078.30 | H89: 1158.00 | I89: 1181.35 | J89: 1197.85 | K89: 1164.85 | L89: 1125 | M89: 3.39444
A90: 81 | B90: GODREJIND | C90: 598.6 | D90: 599.37 | E90: 589.78 | F90: 580.97 | G90: 571.38 | H90: 608.18 | I90: 617.77 | J90: 626.58 | K90: 608.95 | L90: 590.55 | M90: 7.69252
A91: 82 | B91: GRUH | C91: 697.4 | D91: 704.12 | E91: 688.28 | F91: 679.17 | G91: 663.33 | H91: 713.23 | I91: 729.07 | J91: 738.18 | K91: 719.95 | L91: 695 | M91: 4.2834
A92: 83 | B92: GPPL | C92: 113.6 | D92: 113.90 | E92: 110.80 | F92: 108.00 | G92: 104.90 | H92: 116.70 | I92: 119.80 | J92: 122.60 | K92: 117 | L92: 111.1 | M92: 0.87541
A93: 84 | B93: GSPL | C93: 182.9 | D93: 181.28 | E93: 177.77 | F93: 172.63 | G93: 169.12 | H93: 186.42 | I93: 189.93 | J93: 195.07 | K93: 184.8 | L93: 176.15 | M93: 7.30759
A94: 85 | B94: HCLTECH | C94: 900.7 | D94: 905.58 | E94: 894.27 | F94: 887.83 | G94: 876.52 | H94: 912.02 | I94: 923.33 | J94: 929.77 | K94: 916.9 | L94: 899.15 | M94: 7.52943
A95: 86 | B95: HDFCBANK | C95: 2046.2 | D95: 2080.38 | E95: 2003.77 | F95: 1961.33 | G95: 1884.72 | H95: 2122.82 | I95: 2199.43 | J95: 2241.87 | K95: 2157 | L95: 2037.95 | M95: 221.99081
A96: 87 | B96: HAVELLS | C96: 536.6 | D96: 539.53 | E96: 532.32 | F96: 528.03 | G96: 520.82 | H96: 543.82 | I96: 551.03 | J96: 555.32 | K96: 546.75 | L96: 535.25 | M96: 6.85761
A97: 88 | B97: HEROMOTOCO | C97: 3613.6 | D97: 3625.43 | E97: 3581.02 | F97: 3548.43 | G97: 3504.02 | H97: 3658.02 | I97: 3702.43 | J97: 3735.02 | K97: 3669.85 | L97: 3592.85 | M97: 2.30153
A98: 89 | B98: HEXAWARE | C98: 443.5 | D98: 440.68 | E98: 434.37 | F98: 425.23 | G98: 418.92 | H98: 449.82 | I98: 456.13 | J98: 465.27 | K98: 447 | L98: 431.55 | M98: 9.78217
A99: 90 | B99: HINDALCO | C99: 241.6 | D99: 240.72 | E99: 238.58 | F99: 235.57 | G99: 233.43 | H99: 243.73 | I99: 245.87 | J99: 248.88 | K99: 242.85 | L99: 237.7 | M99: 80.45521
A100: 91 | B100: HINDPETRO | C100: 312.2 | D100: 311.32 | E100: 303.63 | F100: 295.07 | G100: 287.38 | H100: 319.88 | I100: 327.57 | J100: 336.13 | K100: 319 | L100: 302.75 | M100: 74.03199
A101: 92 | B101: HINDUNILVR | C101: 1563.2 | D101: 1570.40 | E101: 1550.80 | F101: 1538.40 | G101: 1518.80 | H101: 1582.80 | I101: 1602.40 | J101: 1614.80 | K101: 1590 | L101: 1558 | M101: 8.57157
A102: 93 | B102: HINDZINC | C102: 286.15 | D102: 286.68 | E102: 282.62 | F102: 279.08 | G102: 275.02 | H102: 290.22 | I102: 294.28 | J102: 297.82 | K102: 290.75 | L102: 283.15 | M102: 22.64249
A103: 94 | B103: HUDCO | C103: 56.25 | D103: 56.82 | E103: 55.28 | F103: 54.32 | G103: 52.78 | H103: 57.78 | I103: 59.32 | J103: 60.28 | K103: 58.35 | L103: 55.85 | M103: 8.71898
A104: 95 | B104: HDFC | C104: 1833.15 | D104: 1842.98 | E104: 1815.52 | F104: 1797.88 | G104: 1770.42 | H104: 1860.62 | I104: 1888.08 | J104: 1905.72 | K104: 1870.45 | L104: 1825.35 | M104: 20.10526
A105: 96 | B105: ITC | C105: 268.9 | D105: 269.45 | E105: 266.95 | F105: 265.00 | G105: 262.50 | H105: 271.40 | I105: 273.90 | J105: 275.85 | K105: 271.95 | L105: 267.5 | M105: 79.84112
A106: 97 | B106: ICICIBANK | C106: 286.75 | D106: 288.53 | E106: 283.77 | F106: 280.78 | G106: 276.02 | H106: 291.52 | I106: 296.28 | J106: 299.27 | K106: 293.3 | L106: 285.55 | M106: 171.88567
A107: 98 | B107: ICICIPRULI | C107: 411.75 | D107: 413.08 | E107: 406.67 | F107: 401.58 | G107: 395.17 | H107: 418.17 | I107: 424.58 | J107: 429.67 | K107: 419.5 | L107: 408 | M107: 4.25113
A108: 99 | B108: IDBI | C108: 61 | D108: 61.73 | E108: 58.97 | F108: 56.93 | G108: 54.17 | H108: 63.77 | I108: 66.53 | J108: 68.57 | K108: 64.5 | L108: 59.7 | M108: 120.93953
A109: 100 | B109: IDFCBANK | C109: 39.15 | D109: 39.65 | E109: 38.30 | F109: 37.45 | G109: 36.10 | H109: 40.50 | I109: 41.85 | J109: 42.70 | K109: 41 | L109: 38.8 | M109: 176.42107
A110: 101 | B110: IDFC | C110: 47.85 | D110: 48.43 | E110: 47.12 | F110: 46.38 | G110: 45.07 | H110: 49.17 | I110: 50.48 | J110: 51.22 | K110: 49.75 | L110: 47.7 | M110: 35.51731
A111: 102 | B111: IRB | C111: 225.5 | D111: 225.27 | E111: 221.58 | F111: 217.67 | G111: 213.98 | H111: 229.18 | I111: 232.87 | J111: 236.78 | K111: 228.95 | L111: 221.35 | M111: 22.57543
A112: 103 | B112: IDEA | C112: 62.9 | D112: 62.80 | E112: 61.90 | F112: 60.90 | G112: 60.00 | H112: 63.80 | I112: 64.70 | J112: 65.70 | K112: 63.7 | L112: 61.8 | M112: 107.20038
A113: 104 | B113: IBULHSGFIN | C113: 1173.95 | D113: 1195.25 | E113: 1145.90 | F113: 1117.85 | G113: 1068.50 | H113: 1223.30 | I113: 1272.65 | J113: 1300.70 | K113: 1244.6 | L113: 1167.2 | M113: 13.23752
A114: 105 | B114: INDIANB | C114: 338.2 | D114: 338.23 | E114: 334.47 | F114: 330.73 | G114: 326.97 | H114: 341.97 | I114: 345.73 | J114: 349.47 | K114: 342 | L114: 334.5 | M114: 11.02825
A115: 106 | B115: INDHOTEL | C115: 136.35 | D115: 138.02 | E115: 133.83 | F115: 131.32 | G115: 127.13 | H115: 140.53 | I115: 144.72 | J115: 147.23 | K115: 142.2 | L115: 135.5 | M115: 5.10225
A116: 107 | B116: IOC | C116: 173.8 | D116: 173.15 | E116: 171.15 | F116: 168.50 | G116: 166.50 | H116: 175.80 | I116: 177.80 | J116: 180.45 | K116: 175.15 | L116: 170.5 | M116: 65.14084
A117: 108 | B117: IGL | C117: 267.85 | D117: 267.75 | E117: 264.00 | F117: 260.15 | G117: 256.40 | H117: 271.60 | I117: 275.35 | J117: 279.20 | K117: 271.5 | L117: 263.9 | M117: 24.24074
A118: 109 | B118: INDUSINDBK | C118: 1902.2 | D118: 1919.07 | E118: 1875.13 | F118: 1848.07 | G118: 1804.13 | H118: 1946.13 | I118: 1990.07 | J118: 2017.13 | K118: 1963 | L118: 1892 | M118: 9.64088
A119: 110 | B119: NAUKRI | C119: 1198.95 | D119: 1210.17 | E119: 1171.63 | F119: 1144.32 | G119: 1105.78 | H119: 1237.48 | I119: 1276.02 | J119: 1303.33 | K119: 1248.7 | L119: 1182.85 | M119: 3.20547
A120: 111 | B120: INFY | C120: 1239.4 | D120: 1231.47 | E120: 1219.93 | F120: 1200.47 | G120: 1188.93 | H120: 1250.93 | I120: 1262.47 | J120: 1281.93 | K120: 1243 | L120: 1212 | M120: 21.35078
A121: 112 | B121: INDIGO | C121: 1177.2 | D121: 1186.75 | E121: 1157.30 | F121: 1137.40 | G121: 1107.95 | H121: 1206.65 | I121: 1236.10 | J121: 1256.00 | K121: 1216.2 | L121: 1166.85 | M121: 10.91795
A122: 113 | B122: IPCALAB | C122: 667.35 | D122: 669.80 | E122: 660.60 | F122: 653.85 | G122: 644.65 | H122: 676.55 | I122: 685.75 | J122: 692.50 | K122: 679 | L122: 663.05 | M122: 0.89893
A123: 114 | B123: JSWENERGY | C123: 74.25 | D123: 74.63 | E123: 72.87 | F123: 71.48 | G123: 69.72 | H123: 76.02 | I123: 77.78 | J123: 79.17 | K123: 76.4 | L123: 73.25 | M123: 11.61995
A124: 115 | B124: JSWSTEEL | C124: 331.85 | D124: 332.20 | E124: 329.65 | F124: 327.45 | G124: 324.90 | H124: 334.40 | I124: 336.95 | J124: 339.15 | K124: 334.75 | L124: 330 | M124: 23.01143
A125: 116 | B125: JINDALSTEL | C125: 229.95 | D125: 229.22 | E125: 225.93 | F125: 221.92 | G125: 218.63 | H125: 233.23 | I125: 236.52 | J125: 240.53 | K125: 232.5 | L125: 225.2 | M125: 60.09025
A126: 117 | B126: JUBLFOOD | C126: 2561.15 | D126: 2536.02 | E126: 2495.23 | F126: 2429.32 | G126: 2388.53 | H126: 2601.93 | I126: 2642.72 | J126: 2708.63 | K126: 2576.8 | L126: 2470.1 | M126: 13.27445
A127: 118 | B127: JUBILANT | C127: 774.6 | D127: 776.05 | E127: 767.20 | F127: 759.80 | G127: 750.95 | H127: 783.45 | I127: 792.30 | J127: 799.70 | K127: 784.9 | L127: 768.65 | M127: 4.06994
A128: 119 | B128: KARURVYSYA | C128: 104.25 | D128: 105.08 | E128: 103.17 | F128: 102.08 | G128: 100.17 | H128: 106.17 | I128: 108.08 | J128: 109.17 | K128: 107 | L128: 104 | M128: 17.57607
A129: 120 | B129: KOTAKBANK | C129: 1303.95 | D129: 1310.32 | E129: 1286.63 | F129: 1269.32 | G129: 1245.63 | H129: 1327.63 | I129: 1351.32 | J129: 1368.63 | K129: 1334 | L129: 1293 | M129: 14.62047
A130: 121 | B130: L&TFH | C130: 165 | D130: 164.80 | E130: 162.70 | F130: 160.40 | G130: 158.30 | H130: 167.10 | I130: 169.20 | J130: 171.50 | K130: 166.9 | L130: 162.5 | M130: 33.63948
A131: 122 | B131: LICHSGFIN | C131: 474.1 | D131: 475.68 | E131: 469.92 | F131: 465.73 | G131: 459.97 | H131: 479.87 | I131: 485.63 | J131: 489.82 | K131: 481.45 | L131: 471.5 | M131: 19.98456
A132: 123 | B132: LT | C132: 1357.85 | D132: 1365.62 | E132: 1346.23 | F132: 1334.62 | G132: 1315.23 | H132: 1377.23 | I132: 1396.62 | J132: 1408.23 | K132: 1385 | L132: 1354 | M132: 13.46919
A133: 124 | B133: LUPIN | C133: 773.95 | D133: 769.12 | E133: 758.23 | F133: 742.52 | G133: 731.63 | H133: 784.83 | I133: 795.72 | J133: 811.43 | K133: 780 | L133: 753.4 | M133: 18.01475
A134: 125 | B134: MRF | C134: 74480.6 | D134: 74693.88 | E134: 73897.77 | F134: 73314.93 | G134: 72518.82 | H134: 75276.72 | I134: 76072.83 | J134: 76655.67 | K134: 75490 | L134: 74111.05 | M134: 0.03391
A135: 126 | B135: MGL | C135: 810.6 | D135: 810.27 | E135: 799.38 | F135: 788.17 | G135: 777.28 | H135: 821.48 | I135: 832.37 | J135: 843.58 | K135: 821.15 | L135: 799.05 | M135: 1.64501
A136: 127 | B136: M&MFIN | C136: 471.4 | D136: 473.33 | E136: 466.17 | F136: 460.93 | G136: 453.77 | H136: 478.57 | I136: 485.73 | J136: 490.97 | K136: 480.5 | L136: 468.1 | M136: 8.09788
A137: 128 | B137: M&M | C137: 914.5 | D137: 912.95 | E137: 907.55 | F137: 900.60 | G137: 895.20 | H137: 919.90 | I137: 925.30 | J137: 932.25 | K137: 918.35 | L137: 906 | M137: 33.64222
A138: 129 | B138: MANAPPURAM | C138: 103.25 | D138: 103.72 | E138: 101.78 | F138: 100.32 | G138: 98.38 | H138: 105.18 | I138: 107.12 | J138: 108.58 | K138: 105.65 | L138: 102.25 | M138: 27.39378
A139: 130 | B139: MRPL | C139: 90.4 | D139: 90.88 | E139: 89.17 | F139: 87.93 | G139: 86.22 | H139: 92.12 | I139: 93.83 | J139: 95.07 | K139: 92.6 | L139: 89.65 | M139: 9.34664
A140: 131 | B140: MARICO | C140: 322.65 | D140: 322.90 | E140: 319.55 | F140: 316.45 | G140: 313.10 | H140: 326.00 | I140: 329.35 | J140: 332.45 | K140: 326.25 | L140: 319.8 | M140: 14.49007
A141: 132 | B141: MARUTI | C141: 8749.85 | D141: 8771.97 | E141: 8703.93 | F141: 8658.02 | G141: 8589.98 | H141: 8817.88 | I141: 8885.92 | J141: 8931.83 | K141: 8840 | L141: 8726.05 | M141: 3.8069
A142: 133 | B142: MFSL | C142: 466 | D142: 471.32 | E142: 455.58 | F142: 445.17 | G142: 429.43 | H142: 481.73 | I142: 497.47 | J142: 507.88 | K142: 487.05 | L142: 460.9 | M142: 2.26665
A143: 134 | B143: MINDTREE | C143: 999.85 | D143: 1001.35 | E143: 990.90 | F143: 981.95 | G143: 971.50 | H143: 1010.30 | I143: 1020.75 | J143: 1029.70 | K143: 1011.8 | L143: 992.4 | M143: 6.38201
A144: 135 | B144: MOTHERSUMI | C144: 306.55 | D144: 307.40 | E144: 304.15 | F144: 301.75 | G144: 298.50 | H144: 309.80 | I144: 313.05 | J144: 315.45 | K144: 310.65 | L144: 305 | M144: 21.46938
A145: 136 | B145: MPHASIS | C145: 1023.85 | D145: 1031.12 | E145: 987.73 | F145: 951.62 | G145: 908.23 | H145: 1067.23 | I145: 1110.62 | J145: 1146.73 | K145: 1074.5 | L145: 995 | M145: 3.41355
A146: 137 | B146: MUTHOOTFIN | C146: 374.55 | D146: 376.38 | E146: 367.22 | F146: 359.88 | G146: 350.72 | H146: 383.72 | I146: 392.88 | J146: 400.22 | K146: 385.55 | L146: 369.05 | M146: 5.93758
A147: 138 | B147: NATCOPHARM | C147: 786.6 | D147: 791.20 | E147: 772.40 | F147: 758.20 | G147: 739.40 | H147: 805.40 | I147: 824.20 | J147: 838.40 | K147: 810 | L147: 777 | M147: 1.35618
A148: 139 | B148: NBCC | C148: 86.4 | D148: 87.40 | E148: 84.40 | F148: 82.40 | G148: 79.40 | H148: 89.40 | I148: 92.40 | J148: 94.40 | K148: 90.4 | L148: 85.4 | M148: 52.49786
A149: 140 | B149: NHPC | C149: 26.15 | D149: 26.37 | E149: 25.83 | F149: 25.52 | G149: 24.98 | H149: 26.68 | I149: 27.22 | J149: 27.53 | K149: 26.9 | L149: 26.05 | M149: 37.48353
A150: 141 | B150: NMDC | C150: 114.85 | D150: 115.08 | E150: 113.62 | F150: 112.38 | G150: 110.92 | H150: 116.32 | I150: 117.78 | J150: 119.02 | K150: 116.55 | L150: 113.85 | M150: 13.17161
A151: 142 | B151: NTPC | C151: 162.05 | D151: 163.10 | E151: 160.80 | F151: 159.55 | G151: 157.25 | H151: 164.35 | I151: 166.65 | J151: 167.90 | K151: 165.4 | L151: 161.85 | M151: 41.84615
A152: 143 | B152: NATIONALUM | C152: 68.8 | D152: 69.28 | E152: 67.82 | F152: 66.83 | G152: 65.37 | H152: 70.27 | I152: 71.73 | J152: 72.72 | K152: 70.75 | L152: 68.3 | M152: 61.79173
A153: 144 | B153: OBEROIRLTY | C153: 508.35 | D153: 509.25 | E153: 504.10 | F153: 499.85 | G153: 494.70 | H153: 513.50 | I153: 518.65 | J153: 522.90 | K153: 514.4 | L153: 505 | M153: 1.48635
A154: 145 | B154: ONGC | C154: 171.1 | D154: 172.30 | E154: 169.20 | F154: 167.30 | G154: 164.20 | H154: 174.20 | I154: 177.30 | J154: 179.20 | K154: 175.4 | L154: 170.4 | M154: 52.94603
A155: 146 | B155: OIL | C155: 218.5 | D155: 217.47 | E155: 214.88 | F155: 211.27 | G155: 208.68 | H155: 221.08 | I155: 223.67 | J155: 227.28 | K155: 220.05 | L155: 213.85 | M155: 12.35044
A156: 147 | B156: OFSS | C156: 3769.35 | D156: 3775.52 | E156: 3706.98 | F156: 3644.62 | G156: 3576.08 | H156: 3837.88 | I156: 3906.42 | J156: 3968.78 | K156: 3844.05 | L156: 3713.15 | M156: 0.21585
A157: 148 | B157: PCJEWELLER | C157: 129.9 | D157: 138.72 | E157: 118.03 | F157: 106.17 | G157: 85.48 | H157: 150.58 | I157: 171.27 | J157: 183.13 | K157: 159.4 | L157: 126.85 | M157: 500.42802
A158: 149 | B158: PIIND | C158: 824.55 | D158: 827.90 | E158: 815.75 | F158: 806.95 | G158: 794.80 | H158: 836.70 | I158: 848.85 | J158: 857.65 | K158: 840.05 | L158: 819.1 | M158: 0.48938
A159: 150 | B159: PNBHOUSING | C159: 1176.5 | D159: 1159.33 | E159: 1115.87 | F159: 1055.23 | G159: 1011.77 | H159: 1219.97 | I159: 1263.43 | J159: 1324.07 | K159: 1202.8 | L159: 1098.7 | M159: 2.0941
A160: 151 | B160: PAGEIND | C160: 24827.35 | D160: 24878.50 | E160: 24457.00 | F160: 24086.65 | G160: 23665.15 | H160: 25248.85 | I160: 25670.35 | J160: 26040.70 | K160: 25300 | L160: 24508.15 | M160: 0.12414
A161: 152 | B161: PETRONET | C161: 217.2 | D161: 217.98 | E161: 213.97 | F161: 210.73 | G161: 206.72 | H161: 221.22 | I161: 225.23 | J161: 228.47 | K161: 222 | L161: 214.75 | M161: 20.98731
A162: 153 | B162: PIDILITIND | C162: 1120.35 | D162: 1124.67 | E162: 1101.68 | F162: 1083.02 | G162: 1060.03 | H162: 1143.33 | I162: 1166.32 | J162: 1184.98 | K162: 1147.65 | L162: 1106 | M162: 10.40512
A163: 154 | B163: PEL | C163: 2406.85 | D163: 2423.65 | E163: 2380.40 | F163: 2353.95 | G163: 2310.70 | H163: 2450.10 | I163: 2493.35 | J163: 2519.80 | K163: 2466.9 | L163: 2397.2 | M163: 2.24468
A164: 155 | B164: PFC | C164: 82 | D164: 82.18 | E164: 80.62 | F164: 79.23 | G164: 77.67 | H164: 83.57 | I164: 85.13 | J164: 86.52 | K164: 83.75 | L164: 80.8 | M164: 130.67692
A165: 156 | B165: POWERGRID | C165: 201.7 | D165: 203.08 | E165: 199.22 | F165: 196.73 | G165: 192.87 | H165: 205.57 | I165: 209.43 | J165: 211.92 | K165: 206.95 | L165: 200.6 | M165: 81.3173
A166: 157 | B166: PRESTIGE | C166: 228.4 | D166: 230.42 | E166: 219.83 | F166: 211.27 | G166: 200.68 | H166: 238.98 | I166: 249.57 | J166: 258.13 | K166: 241 | L166: 221.85 | M166: 4.14293
A167: 158 | B167: PGHH | C167: 9223.9 | D167: 9281.30 | E167: 9142.60 | F167: 9061.30 | G167: 8922.60 | H167: 9362.60 | I167: 9501.30 | J167: 9582.60 | K167: 9420 | L167: 9200 | M167: 0.02259
A168: 159 | B168: PNB | C168: 83.2 | D168: 83.47 | E168: 81.93 | F168: 80.67 | G168: 79.13 | H168: 84.73 | I168: 86.27 | J168: 87.53 | K168: 85 | L168: 82.2 | M168: 154.56025
A169: 160 | B169: RBLBANK | C169: 507.7 | D169: 507.82 | E169: 501.88 | F169: 496.07 | G169: 490.13 | H169: 513.63 | I169: 519.57 | J169: 525.38 | K169: 513.75 | L169: 502 | M169: 4.67987
A170: 161 | B170: RAJESHEXPO | C170: 587.75 | D170: 592.93 | E170: 578.82 | F170: 569.88 | G170: 555.77 | H170: 601.87 | I170: 615.98 | J170: 624.92 | K170: 607.05 | L170: 584 | M170: 0.89755
A171: 162 | B171: RELCAPITAL | C171: 406.75 | D171: 409.03 | E171: 400.22 | F171: 393.68 | G171: 384.87 | H171: 415.57 | I171: 424.38 | J171: 430.92 | K171: 417.85 | L171: 402.5 | M171: 29.00155
A172: 163 | B172: RCOM | C172: 15.75 | D172: 15.97 | E172: 15.18 | F172: 14.62 | G172: 13.83 | H172: 16.53 | I172: 17.32 | J172: 17.88 | K172: 16.75 | L172: 15.4 | M172: 1044.14076
A173: 164 | B173: RELIANCE | C173: 940.85 | D173: 938.47 | E173: 932.93 | F173: 925.02 | G173: 919.48 | H173: 946.38 | I173: 951.92 | J173: 959.83 | K173: 944 | L173: 930.55 | M173: 56.00357
A174: 165 | B174: RELINFRA | C174: 430.25 | D174: 430.87 | E174: 425.38 | F174: 420.52 | G174: 415.03 | H174: 435.73 | I174: 441.22 | J174: 446.08 | K174: 436.35 | L174: 426 | M174: 17.61375
A175: 166 | B175: RPOWER | C175: 34.2 | D175: 34.58 | E175: 33.62 | F175: 33.03 | G175: 32.07 | H175: 35.17 | I175: 36.13 | J175: 36.72 | K175: 35.55 | L175: 34 | M175: 41.61265
A176: 167 | B176: RECLTD | C176: 113.6 | D176: 115.02 | E176: 111.63 | F176: 109.67 | G176: 106.28 | H176: 116.98 | I176: 120.37 | J176: 122.33 | K176: 118.4 | L176: 113.05 | M176: 29.06802
A177: 168 | B177: SRF | C177: 1889.45 | D177: 1893.43 | E177: 1868.02 | F177: 1846.58 | G177: 1821.17 | H177: 1914.87 | I177: 1940.28 | J177: 1961.72 | K177: 1918.85 | L177: 1872 | M177: 3.57747
A178: 169 | B178: SHREECEM | C178: 16357.55 | D178: 16445.85 | E178: 16091.70 | F178: 15825.85 | G178: 15471.70 | H178: 16711.70 | I178: 17065.85 | J178: 17331.70 | K178: 16800 | L178: 16180 | M178: 0.12667
A179: 170 | B179: SRTRANSFIN | C179: 1445.45 | D179: 1450.48 | E179: 1427.97 | F179: 1410.48 | G179: 1387.97 | H179: 1467.97 | I179: 1490.48 | J179: 1507.97 | K179: 1473 | L179: 1433 | M179: 4.82401
A180: 171 | B180: SIEMENS | C180: 993.4 | D180: 1002.52 | E180: 972.38 | F180: 951.37 | G180: 921.23 | H180: 1023.53 | I180: 1053.67 | J180: 1074.68 | K180: 1032.65 | L180: 981.5 | M180: 3.82627
A181: 172 | B181: SBIN | C181: 263 | D181: 264.22 | E181: 260.08 | F181: 257.17 | G181: 253.03 | H181: 267.13 | I181: 271.27 | J181: 274.18 | K181: 268.35 | L181: 261.3 | M181: 129.33824
A182: 173 | B182: SAIL | C182: 75.5 | D182: 74.73 | E182: 73.27 | F182: 71.03 | G182: 69.57 | H182: 76.97 | I182: 78.43 | J182: 80.67 | K182: 76.2 | L182: 72.5 | M182: 241.06642
A183: 174 | B183: SPARC | C183: 377.1 | D183: 382.72 | E183: 370.38 | F183: 363.67 | G183: 351.33 | H183: 389.43 | I183: 401.77 | J183: 408.48 | K183: 395.05 | L183: 376 | M183: 1.24011
A184: 175 | B184: SUNPHARMA | C184: 478.6 | D184: 482.07 | E184: 473.33 | F184: 468.07 | G184: 459.33 | H184: 487.33 | I184: 496.07 | J184: 501.33 | K184: 490.8 | L184: 476.8 | M184: 29.9586
A185: 176 | B185: SUNTV | C185: 920.5 | D185: 913.00 | E185: 900.00 | F185: 879.50 | G185: 866.50 | H185: 933.50 | I185: 946.50 | J185: 967.00 | K185: 926 | L185: 892.5 | M185: 32.20041
A186: 177 | B186: SUZLON | C186: 8 | D186: 8.13 | E186: 7.77 | F186: 7.53 | G186: 7.17 | H186: 8.37 | I186: 8.73 | J186: 8.97 | K186: 8.5 | L186: 7.9 | M186: 305.67213
A187: 178 | B187: SYNDIBANK | C187: 47.95 | D187: 48.45 | E187: 47.30 | F187: 46.65 | G187: 45.50 | H187: 49.10 | I187: 50.25 | J187: 50.90 | K187: 49.6 | L187: 47.8 | M187: 21.00986
A188: 179 | B188: SYNGENE | C188: 595.2 | D188: 597.07 | E188: 588.23 | F188: 581.27 | G188: 572.43 | H188: 604.03 | I188: 612.87 | J188: 619.83 | K188: 605.9 | L188: 590.1 | M188: 0.23146
A189: 180 | B189: TV18BRDCST | C189: 51.85 | D189: 52.62 | E189: 50.53 | F189: 49.22 | G189: 47.13 | H189: 53.93 | I189: 56.02 | J189: 57.33 | K189: 54.7 | L189: 51.3 | M189: 29.48439
A190: 181 | B190: TVSMOTOR | C190: 566.45 | D190: 577.82 | E190: 551.63 | F190: 536.82 | G190: 510.63 | H190: 592.63 | I190: 618.82 | J190: 633.63 | K190: 604 | L190: 563 | M190: 12.04756
A191: 182 | B191: TATACHEM | C191: 732.05 | D191: 731.80 | E191: 724.75 | F191: 717.45 | G191: 710.40 | H191: 739.10 | I191: 746.15 | J191: 753.45 | K191: 738.85 | L191: 724.5 | M191: 5.19306
A192: 183 | B192: TATACOMM | C192: 603.45 | D192: 602.90 | E192: 598.25 | F192: 593.05 | G192: 588.40 | H192: 608.10 | I192: 612.75 | J192: 617.95 | K192: 607.55 | L192: 597.7 | M192: 2.71
A193: 184 | B193: TCS | C193: 1744.25 | D193: 1735.28 | E193: 1721.57 | F193: 1698.88 | G193: 1685.17 | H193: 1757.97 | I193: 1771.68 | J193: 1794.37 | K193: 1749 | L193: 1712.6 | M193: 16.81483
A194: 185 | B194: TATAGLOBAL | C194: 255.25 | D194: 258.05 | E194: 250.70 | F194: 246.15 | G194: 238.80 | H194: 262.60 | I194: 269.95 | J194: 274.50 | K194: 265.4 | L194: 253.5 | M194: 18.19147
A195: 186 | B195: TATAMTRDVR | C195: 171.85 | D195: 172.90 | E195: 168.95 | F195: 166.05 | G195: 162.10 | H195: 175.80 | I195: 179.75 | J195: 182.65 | K195: 176.85 | L195: 170 | M195: 24.5482
A196: 187 | B196: TATAMOTORS | C196: 286.65 | D196: 288.83 | E196: 283.82 | F196: 280.98 | G196: 275.97 | H196: 291.67 | I196: 296.68 | J196: 299.52 | K196: 293.85 | L196: 286 | M196: 108.35487
A197: 188 | B197: TATAPOWER | C197: 77.2 | D197: 77.95 | E197: 75.85 | F197: 74.50 | G197: 72.40 | H197: 79.30 | I197: 81.40 | J197: 82.75 | K197: 80.05 | L197: 76.6 | M197: 21.85214
A198: 189 | B198: TATASTEEL | C198: 566.15 | D198: 566.32 | E198: 560.13 | F198: 554.12 | G198: 547.93 | H198: 572.33 | I198: 578.52 | J198: 584.53 | K198: 572.5 | L198: 560.3 | M198: 87.42527
A199: 190 | B199: TECHM | C199: 698.3 | D199: 703.57 | E199: 690.13 | F199: 681.97 | G199: 668.53 | H199: 711.73 | I199: 725.17 | J199: 733.33 | K199: 717 | L199: 695.4 | M199: 28.6475
A200: 191 | B200: RAMCOCEM | C200: 761.2 | D200: 760.57 | E200: 754.13 | F200: 747.07 | G200: 740.63 | H200: 767.63 | I200: 774.07 | J200: 781.13 | K200: 767 | L200: 753.5 | M200: 3.67697
A201: 192 | B201: TITAN | C201: 885.35 | D201: 891.63 | E201: 875.32 | F201: 865.28 | G201: 848.97 | H201: 901.67 | I201: 917.98 | J201: 928.02 | K201: 907.95 | L201: 881.6 | M201: 15.29852
A202: 193 | B202: TORNTPHARM | C202: 1418.75 | D202: 1430.47 | E202: 1403.33 | F202: 1387.92 | G202: 1360.78 | H202: 1445.88 | I202: 1473.02 | J202: 1488.43 | K202: 1457.6 | L202: 1415.05 | M202: 2.97145
A203: 194 | B203: TORNTPOWER | C203: 261 | D203: 263.05 | E203: 255.10 | F203: 249.20 | G203: 241.25 | H203: 268.95 | I203: 276.90 | J203: 282.80 | K203: 271 | L203: 257.15 | M203: 7.84816
A204: 195 | B204: UPL | C204: 686.45 | D204: 691.42 | E204: 678.03 | F204: 669.62 | G204: 656.23 | H204: 699.83 | I204: 713.22 | J204: 721.63 | K204: 704.8 | L204: 683 | M204: 5.75852
A205: 196 | B205: ULTRACEMCO | C205: 3711.15 | D205: 3687.68 | E205: 3649.47 | F205: 3587.78 | G205: 3549.57 | H205: 3749.37 | I205: 3787.58 | J205: 3849.27 | K205: 3725.9 | L205: 3626 | M205: 2.00526
... 30 more rows

Sheet MidCap Intra
L5: Back To Main Page
A6: FOR INTRA DAY TRADING | K6: =Main!B10 -> 2018-06-05
A9: Sr.no | B9: Scrip | C9: CLOSE RATE | D9: Pivot Point | E9: Supports | H9: Resistances
C10: Point | E10: S1 | F10: S2 | G10: S3 | H10: R1 | I10: R2 | J10: R3 | K10: HIGH | L10: LOW | M10: Total Trade Quanity in Lakhs
A11: 1 | B11: 3MINDIA | C11: 18814.8 | D11: 19032.32 | E11: 18564.68 | F11: 18314.57 | G11: 17846.93 | H11: 19282.43 | I11: 19750.07 | J11: 20000.18 | K11: 19499.95 | L11: 18782.2 | M11: 0.01986
A12: 2 | B12: 8KMILES | C12: 535 | D12: 551.43 | E12: 515.37 | F12: 495.73 | G12: 459.67 | H12: 571.07 | I12: 607.13 | J12: 626.77 | K12: 587.5 | L12: 531.8 | M12: 2.3656
A13: 3 | B13: AARTIIND | C13: 1198.85 | D13: 1209.27 | E13: 1179.58 | F13: 1160.32 | G13: 1130.63 | H13: 1228.53 | I13: 1258.22 | J13: 1277.48 | K13: 1238.95 | L13: 1190 | M13: 0.61376
A14: 4 | B14: ABAN | C14: 128.95 | D14: 131.22 | E14: 125.93 | F14: 122.92 | G14: 117.63 | H14: 134.23 | I14: 139.52 | J14: 142.53 | K14: 136.5 | L14: 128.2 | M14: 8.75085
A15: 5 | B15: ABB | C15: 1185.25 | D15: 1191.37 | E15: 1167.83 | F15: 1150.42 | G15: 1126.88 | H15: 1208.78 | I15: 1232.32 | J15: 1249.73 | K15: 1214.9 | L15: 1173.95 | M15: 0.57698
A16: 6 | B16: ABCAPITAL | C16: 141.65 | D16: 142.98 | E16: 140.17 | F16: 138.68 | G16: 135.87 | H16: 144.47 | I16: 147.28 | J16: 148.77 | K16: 145.8 | L16: 141.5 | M16: 13.14196
A17: 7 | B17: ABFRL | C17: 139.8 | D17: 141.53 | E17: 136.97 | F17: 134.13 | G17: 129.57 | H17: 144.37 | I17: 148.93 | J17: 151.77 | K17: 146.1 | L17: 138.7 | M17: 1.99572
A18: 8 | B18: ACC | C18: 1308.05 | D18: 1321.60 | E18: 1289.70 | F18: 1271.35 | G18: 1239.45 | H18: 1339.95 | I18: 1371.85 | J18: 1390.20 | K18: 1353.5 | L18: 1303.25 | M18: 5.58346
A19: 9 | B19: ADANIPORTS | C19: 378.55 | D19: 381.18 | E19: 373.42 | F19: 368.28 | G19: 360.52 | H19: 386.32 | I19: 394.08 | J19: 399.22 | K19: 388.95 | L19: 376.05 | M19: 24.81566
A20: 10 | B20: ADANIPOWER | C20: 18.45 | D20: 18.82 | E20: 17.88 | F20: 17.32 | G20: 16.38 | H20: 19.38 | I20: 20.32 | J20: 20.88 | K20: 19.75 | L20: 18.25 | M20: 158.17584
A21: 11 | B21: ADANITRANS | C21: 135 | D21: 135.07 | E21: 130.13 | F21: 125.27 | G21: 120.33 | H21: 139.93 | I21: 144.87 | J21: 149.73 | K21: 140 | L21: 130.2 | M21: 6.46384
A22: 12 | B22: ADVENZYMES | C22: 214 | D22: 215.77 | E22: 211.23 | F22: 208.47 | G22: 203.93 | H22: 218.53 | I22: 223.07 | J22: 225.83 | K22: 220.3 | L22: 213 | M22: 1.11994
A23: 13 | B23: AEGISCHEM | C23: 251.5 | D23: 258.07 | E23: 243.43 | F23: 235.37 | G23: 220.73 | H23: 266.13 | I23: 280.77 | J23: 288.83 | K23: 272.7 | L23: 250 | M23: 1.2125
A24: 14 | B24: AIAENG | C24: 1555.4 | D24: 1557.25 | E24: 1536.15 | F24: 1516.90 | G24: 1495.80 | H24: 1576.50 | I24: 1597.60 | J24: 1616.85 | K24: 1578.35 | L24: 1538 | M24: 0.90218
A25: 15 | B25: AJANTPHARM | C25: 930 | D25: 934.57 | E25: 919.43 | F25: 908.87 | G25: 893.73 | H25: 945.13 | I25: 960.27 | J25: 970.83 | K25: 949.7 | L25: 924 | M25: 1.57028
A26: 16 | B26: AKZOINDIA | C26: 1935.35 | D26: 1941.50 | E26: 1924.10 | F26: 1912.85 | G26: 1895.45 | H26: 1952.75 | I26: 1970.15 | J26: 1981.40 | K26: 1958.9 | L26: 1930.25 | M26: 0.07528
A27: 17 | B27: ALBK | C27: 39.65 | D27: 39.73 | E27: 38.97 | F27: 38.28 | G27: 37.52 | H27: 40.42 | I27: 41.18 | J27: 41.87 | K27: 40.5 | L27: 39.05 | M27: 32.05689
A28: 18 | B28: ALKEM | C28: 1934.05 | D28: 1938.13 | E28: 1916.27 | F28: 1898.48 | G28: 1876.62 | H28: 1955.92 | I28: 1977.78 | J28: 1995.57 | K28: 1960 | L28: 1920.35 | M28: 0.18373
A29: 19 | B29: ALLCARGO | C29: 113.15 | D29: 114.30 | E29: 110.10 | F29: 107.05 | G29: 102.85 | H29: 117.35 | I29: 121.55 | J29: 124.60 | K29: 118.5 | L29: 111.25 | M29: 3.41758
A30: 20 | B30: AMARAJABAT | C30: 762.2 | D30: 766.62 | E30: 749.03 | F30: 735.87 | G30: 718.28 | H30: 779.78 | I30: 797.37 | J30: 810.53 | K30: 784.2 | L30: 753.45 | M30: 3.13006
A31: 21 | B31: AMBUJACEM | C31: 201.45 | D31: 202.42 | E31: 199.38 | F31: 197.32 | G31: 194.28 | H31: 204.48 | I31: 207.52 | J31: 209.58 | K31: 205.45 | L31: 200.35 | M31: 63.13873
A32: 22 | B32: ANDHRABANK | C32: 34 | D32: 34.43 | E32: 33.37 | F32: 32.73 | G32: 31.67 | H32: 35.07 | I32: 36.13 | J32: 36.77 | K32: 35.5 | L32: 33.8 | M32: 33.58639
A33: 23 | B33: APLAPOLLO | C33: 1799.6 | D33: 1811.53 | E33: 1773.07 | F33: 1746.53 | G33: 1708.07 | H33: 1838.07 | I33: 1876.53 | J33: 1903.07 | K33: 1850 | L33: 1785 | M33: 0.15755
A34: 24 | B34: APLLTD | C34: 421.25 | D34: 424.27 | E34: 414.93 | F34: 408.62 | G34: 399.28 | H34: 430.58 | I34: 439.92 | J34: 446.23 | K34: 433.6 | L34: 417.95 | M34: 0.13599
A35: 25 | B35: APOLLOHOSP | C35: 941.15 | D35: 934.78 | E35: 921.57 | F35: 901.98 | G35: 888.77 | H35: 954.37 | I35: 967.58 | J35: 987.17 | K35: 948 | L35: 915.2 | M35: 4.74667
A36: 26 | B36: APOLLOTYRE | C36: 266.05 | D36: 266.95 | E36: 263.45 | F36: 260.85 | G36: 257.35 | H36: 269.55 | I36: 273.05 | J36: 275.65 | K36: 270.45 | L36: 264.35 | M36: 20.99074
A37: 27 | B37: ARVIND | C37: 379.3 | D37: 381.10 | E37: 375.20 | F37: 371.10 | G37: 365.20 | H37: 385.20 | I37: 391.10 | J37: 395.20 | K37: 387 | L37: 377 | M37: 9.13457
A38: 28 | B38: ASAHIINDIA | C38: 336.4 | D38: 335.42 | E38: 330.98 | F38: 325.57 | G38: 321.13 | H38: 340.83 | I38: 345.27 | J38: 350.68 | K38: 339.85 | L38: 330 | M38: 0.32021
A39: 29 | B39: ASHOKA | C39: 237 | D39: 236.33 | E39: 232.67 | F39: 228.33 | G39: 224.67 | H39: 240.67 | I39: 244.33 | J39: 248.67 | K39: 240 | L39: 232 | M39: 0.78519
A40: 30 | B40: ASHOKLEY | C40: 146.9 | D40: 148.42 | E40: 145.03 | F40: 143.17 | G40: 139.78 | H40: 150.28 | I40: 153.67 | J40: 155.53 | K40: 151.8 | L40: 146.55 | M40: 94.61068
A41: 31 | B41: ASIANPAINT | C41: 1284.45 | D41: 1282.32 | E41: 1267.13 | F41: 1249.82 | G41: 1234.63 | H41: 1299.63 | I41: 1314.82 | J41: 1332.13 | K41: 1297.5 | L41: 1265 | M41: 9.39794
A42: 32 | B42: ASTRAL | C42: 994.95 | D42: 1003.12 | E42: 977.03 | F42: 959.12 | G42: 933.03 | H42: 1021.03 | I42: 1047.12 | J42: 1065.03 | K42: 1029.2 | L42: 985.2 | M42: 0.20723
A43: 33 | B43: ATUL | C43: 2744.4 | D43: 2747.80 | E43: 2696.60 | F43: 2648.80 | G43: 2597.60 | H43: 2795.60 | I43: 2846.80 | J43: 2894.60 | K43: 2799 | L43: 2700 | M43: 0.0808
A44: 34 | B44: AUBANK | C44: 699.05 | D44: 696.65 | E44: 693.30 | F44: 687.55 | G44: 684.20 | H44: 702.40 | I44: 705.75 | J44: 711.50 | K44: 700 | L44: 690.9 | M44: 0.61989
A45: 35 | B45: AUROPHARMA | C45: 533.35 | D45: 534.70 | E45: 525.65 | F45: 517.95 | G45: 508.90 | H45: 542.40 | I45: 551.45 | J45: 559.15 | K45: 543.75 | L45: 527 | M45: 26.13575
A46: 36 | B46: AVANTIFEED | C46: 1486.4 | D46: 1506.65 | E46: 1456.35 | F46: 1426.30 | G46: 1376.00 | H46: 1536.70 | I46: 1587.00 | J46: 1617.05 | K46: 1556.95 | L46: 1476.6 | M46: 2.54843
A47: 37 | B47: AXISBANK | C47: 537.05 | D47: 536.75 | E47: 531.55 | F47: 526.05 | G47: 520.85 | H47: 542.25 | I47: 547.45 | J47: 552.95 | K47: 541.95 | L47: 531.25 | M47: 42.91186
A48: 38 | B48: BAJAJ-AUTO | C48: 2878.5 | D48: 2890.70 | E48: 2858.85 | F48: 2839.20 | G48: 2807.35 | H48: 2910.35 | I48: 2942.20 | J48: 2961.85 | K48: 2922.55 | L48: 2871.05 | M48: 7.59197
A49: 39 | B49: BAJAJCORP | C49: 456.75 | D49: 463.25 | E49: 446.50 | F49: 436.25 | G49: 419.50 | H49: 473.50 | I49: 490.25 | J49: 500.50 | K49: 480 | L49: 453 | M49: 0.43692
A50: 40 | B50: BAJAJELEC | C50: 529.45 | D50: 533.95 | E50: 522.50 | F50: 515.55 | G50: 504.10 | H50: 540.90 | I50: 552.35 | J50: 559.30 | K50: 545.4 | L50: 527 | M50: 3.22613
A51: 41 | B51: BAJAJFINSV | C51: 5748.55 | D51: 5797.65 | E51: 5680.90 | F51: 5613.25 | G51: 5496.50 | H51: 5865.30 | I51: 5982.05 | J51: 6049.70 | K51: 5914.4 | L51: 5730 | M51: 1.03183
A52: 42 | B52: BAJAJHIND | C52: 7.1 | D52: 7.18 | E52: 6.92 | F52: 6.73 | G52: 6.47 | H52: 7.37 | I52: 7.63 | J52: 7.82 | K52: 7.45 | L52: 7 | M52: 10.98449
A53: 43 | B53: BAJAJHLDNG | C53: 2786.2 | D53: 2787.08 | E53: 2769.17 | F53: 2752.13 | G53: 2734.22 | H53: 2804.12 | I53: 2822.03 | J53: 2839.07 | K53: 2805 | L53: 2770.05 | M53: 0.24765
A54: 44 | B54: BAJFINANCE | C54: 2062.85 | D54: 2072.30 | E54: 2045.85 | F54: 2028.85 | G54: 2002.40 | H54: 2089.30 | I54: 2115.75 | J54: 2132.75 | K54: 2098.75 | L54: 2055.3 | M54: 5.13152
A55: 45 | B55: BALKRISIND | C55: 1117.6 | D55: 1121.07 | E55: 1107.13 | F55: 1096.67 | G55: 1082.73 | H55: 1131.53 | I55: 1145.47 | J55: 1155.93 | K55: 1135 | L55: 1110.6 | M55: 1.93901
A56: 46 | B56: BALLARPUR | C56: 10.7 | D56: 10.85 | E56: 10.50 | F56: 10.30 | G56: 9.95 | H56: 11.05 | I56: 11.40 | J56: 11.60 | K56: 11.2 | L56: 10.65 | M56: 4.09037
A57: 47 | B57: BALMLAWRIE | C57: 217.6 | D57: 219.77 | E57: 214.38 | F57: 211.17 | G57: 205.78 | H57: 222.98 | I57: 228.37 | J57: 231.58 | K57: 225.15 | L57: 216.55 | M57: 0.7121
A58: 48 | B58: BALRAMCHIN | C58: 69.95 | D58: 69.83 | E58: 67.82 | F58: 65.68 | G58: 63.67 | H58: 71.97 | I58: 73.98 | J58: 76.12 | K58: 71.85 | L58: 67.7 | M58: 77.08676
A59: 49 | B59: BANKBARODA | C59: 131.55 | D59: 133.48 | E59: 129.07 | F59: 126.58 | G59: 122.17 | H59: 135.97 | I59: 140.38 | J59: 142.87 | K59: 137.9 | L59: 131 | M59: 222.67362
A60: 50 | B60: BANKINDIA | C60: 94.7 | D60: 95.53 | E60: 93.17 | F60: 91.63 | G60: 89.27 | H60: 97.07 | I60: 99.43 | J60: 100.97 | K60: 97.9 | L60: 94 | M60: 54.05199
A61: 51 | B61: BASF | C61: 1992.3 | D61: 2001.83 | E61: 1971.47 | F61: 1950.63 | G61: 1920.27 | H61: 2022.67 | I61: 2053.03 | J61: 2073.87 | K61: 2032.2 | L61: 1981 | M61: 0.02655
A62: 52 | B62: BATAINDIA | C62: 751.9 | D62: 758.63 | E62: 741.27 | F62: 730.63 | G62: 713.27 | H62: 769.27 | I62: 786.63 | J62: 797.27 | K62: 776 | L62: 748 | M62: 5.05238
A63: 53 | B63: BBTC | C63: 1479.4 | D63: 1501.67 | E63: 1448.33 | F63: 1417.27 | G63: 1363.93 | H63: 1532.73 | I63: 1586.07 | J63: 1617.13 | K63: 1555 | L63: 1470.6 | M63: 2.52628
A64: 54 | B64: BEL | C64: 112.1 | D64: 112.17 | E64: 109.93 | F64: 107.77 | G64: 105.53 | H64: 114.33 | I64: 116.57 | J64: 118.73 | K64: 114.4 | L64: 110 | M64: 81.68201
A65: 55 | B65: BEML | C65: 870.6 | D65: 870.53 | E65: 859.17 | F65: 847.73 | G65: 836.37 | H65: 881.97 | I65: 893.33 | J65: 904.77 | K65: 881.9 | L65: 859.1 | M65: 13.72123
A66: 56 | B66: BERGEPAINT | C66: 287.7 | D66: 287.27 | E66: 283.68 | F66: 279.67 | G66: 276.08 | H66: 291.28 | I66: 294.87 | J66: 298.88 | K66: 290.85 | L66: 283.25 | M66: 5.28148
A67: 57 | B67: BFUTILITIE | C67: 354.45 | D67: 359.08 | E67: 345.42 | F67: 336.38 | G67: 322.72 | H67: 368.12 | I67: 381.78 | J67: 390.82 | K67: 372.75 | L67: 350.05 | M67: 3.44546
A68: 58 | B68: BGRENERGY | C68: 99.6 | D68: 101.27 | E68: 97.43 | F68: 95.27 | G68: 91.43 | H68: 103.43 | I68: 107.27 | J68: 109.43 | K68: 105.1 | L68: 99.1 | M68: 0.9854
A69: 59 | B69: BHARATFIN | C69: 1143.8 | D69: 1152.25 | E69: 1124.65 | F69: 1105.50 | G69: 1077.90 | H69: 1171.40 | I69: 1199.00 | J69: 1218.15 | K69: 1179.85 | L69: 1133.1 | M69: 8.35227
A70: 60 | B70: BHARATFORG | C70: 636.7 | D70: 636.22 | E70: 624.48 | F70: 612.27 | G70: 600.53 | H70: 648.43 | I70: 660.17 | J70: 672.38 | K70: 647.95 | L70: 624 | M70: 14.60273
A71: 61 | B71: BHARTIARTL | C71: 372.3 | D71: 376.38 | E71: 366.02 | F71: 359.73 | G71: 349.37 | H71: 382.67 | I71: 393.03 | J71: 399.32 | K71: 386.75 | L71: 370.1 | M71: 35.67479
A72: 62 | B72: BHEL | C72: 75.25 | D72: 76.95 | E72: 73.00 | F72: 70.75 | G72: 66.80 | H72: 79.20 | I72: 83.15 | J72: 85.40 | K72: 80.9 | L72: 74.7 | M72: 142.37353
A73: 63 | B73: BHUSANSTL | C73: 42.5 | D73: 43.97 | E73: 41.03 | F73: 39.57 | G73: 36.63 | H73: 45.43 | I73: 48.37 | J73: 49.83 | K73: 46.9 | L73: 42.5 | M73: 127.77094
A74: 64 | B74: BIOCON | C74: 654.55 | D74: 653.20 | E74: 642.55 | F74: 630.55 | G74: 619.90 | H74: 665.20 | I74: 675.85 | J74: 687.85 | K74: 663.85 | L74: 641.2 | M74: 27.26642
A75: 65 | B75: BIRLACORPN | C75: 702.95 | D75: 705.22 | E75: 688.43 | F75: 673.92 | G75: 657.13 | H75: 719.73 | I75: 736.52 | J75: 751.03 | K75: 722 | L75: 690.7 | M75: 1.38036
A76: 66 | B76: BLISSGVS | C76: 170.85 | D76: 172.70 | E76: 166.50 | F76: 162.15 | G76: 155.95 | H76: 177.05 | I76: 183.25 | J76: 187.60 | K76: 178.9 | L76: 168.35 | M76: 1.01582
A77: 67 | B77: BLUEDART | C77: 3600.45 | D77: 3595.27 | E77: 3540.53 | F77: 3480.62 | G77: 3425.88 | H77: 3655.18 | I77: 3709.92 | J77: 3769.83 | K77: 3650 | L77: 3535.35 | M77: 0.25767
A78: 68 | B78: BLUESTARCO | C78: 679.8 | D78: 683.62 | E78: 671.23 | F78: 662.67 | G78: 650.28 | H78: 692.18 | I78: 704.57 | J78: 713.13 | K78: 696 | L78: 675.05 | M78: 1.91513
A79: 69 | B79: BOMDYEING | C79: 231.75 | D79: 234.87 | E79: 225.93 | F79: 220.12 | G79: 211.18 | H79: 240.68 | I79: 249.62 | J79: 255.43 | K79: 243.8 | L79: 229.05 | M79: 40.6597
A80: 70 | B80: BOSCHLTD | C80: 18142.9 | D80: 18216.27 | E80: 17945.63 | F80: 17748.37 | G80: 17477.73 | H80: 18413.53 | I80: 18684.17 | J80: 18881.43 | K80: 18486.9 | L80: 18019 | M80: 0.07038
A81: 71 | B81: BPCL | C81: 408.5 | D81: 406.20 | E81: 395.35 | F81: 382.20 | G81: 371.35 | H81: 419.35 | I81: 430.20 | J81: 443.35 | K81: 417.05 | L81: 393.05 | M81: 78.62335
A82: 72 | B82: BRFL | C82: 19.85 | D82: 20.02 | E82: 19.03 | F82: 18.22 | G82: 17.23 | H82: 20.83 | I82: 21.82 | J82: 22.63 | K82: 21 | L82: 19.2 | M82: 0.54318
A83: 73 | B83: BRIGADE | C83: 234.95 | D83: 238.50 | E83: 230.45 | F83: 225.95 | G83: 217.90 | H83: 243.00 | I83: 251.05 | J83: 255.55 | K83: 246.55 | L83: 234 | M83: 0.29566
A84: 74 | B84: BRITANNIA | C84: 5766.2 | D84: 5780.28 | E84: 5696.52 | F84: 5626.83 | G84: 5543.07 | H84: 5849.97 | I84: 5933.73 | J84: 6003.42 | K84: 5864.05 | L84: 5710.6 | M84: 1.17493
A85: 75 | B85: BSE | C85: 830.85 | D85: 834.65 | E85: 824.40 | F85: 817.95 | G85: 807.70 | H85: 841.10 | I85: 851.35 | J85: 857.80 | K85: 844.9 | L85: 828.2 | M85: 1.35327
A86: 77 | B86: CADILAHC | C86: 352 | D86: 354.17 | E86: 348.38 | F86: 344.77 | G86: 338.98 | H86: 357.78 | I86: 363.57 | J86: 367.18 | K86: 359.95 | L86: 350.55 | M86: 13.06674
A87: 78 | B87: CANBK | C87: 253.15 | D87: 255.02 | E87: 250.33 | F87: 247.52 | G87: 242.83 | H87: 257.83 | I87: 262.52 | J87: 265.33 | K87: 259.7 | L87: 252.2 | M87: 57.16251
A88: 79 | B88: CANFINHOME | C88: 353.85 | D88: 358.78 | E88: 344.52 | F88: 335.18 | G88: 320.92 | H88: 368.12 | I88: 382.38 | J88: 391.72 | K88: 373.05 | L88: 349.45 | M88: 17.9683
A89: 80 | B89: CAPF | C89: 546.15 | D89: 554.67 | E89: 534.98 | F89: 523.82 | G89: 504.13 | H89: 565.83 | I89: 585.52 | J89: 596.68 | K89: 574.35 | L89: 543.5 | M89: 4.27538
A90: 81 | B90: CAPLIPOINT | C90: 400.4 | D90: 414.78 | E90: 380.82 | F90: 361.23 | G90: 327.27 | H90: 434.37 | I90: 468.33 | J90: 487.92 | K90: 448.75 | L90: 395.2 | M90: 2.45206
A91: 82 | B91: CARBORUNIV | C91: 331.35 | D91: 333.22 | E91: 326.13 | F91: 320.92 | G91: 313.83 | H91: 338.43 | I91: 345.52 | J91: 350.73 | K91: 340.3 | L91: 328 | M91: 0.70952
A92: 83 | B92: CARERATING | C92: 1300.85 | D92: 1296.32 | E92: 1287.63 | F92: 1274.42 | G92: 1265.73 | H92: 1309.53 | I92: 1318.22 | J92: 1331.43 | K92: 1305 | L92: 1283.1 | M92: 0.14612
A93: 84 | B93: CASTROLIND | C93: 172.15 | D93: 170.85 | E93: 168.20 | F93: 164.25 | G93: 161.60 | H93: 174.80 | I93: 177.45 | J93: 181.40 | K93: 173.5 | L93: 166.9 | M93: 13.67342
A94: 85 | B94: CCL | C94: 295.15 | D94: 295.30 | E94: 291.50 | F94: 287.85 | G94: 284.05 | H94: 298.95 | I94: 302.75 | J94: 306.40 | K94: 299.1 | L94: 291.65 | M94: 0.27726
A95: 86 | B95: CDSL | C95: 275.85 | D95: 277.72 | E95: 271.88 | F95: 267.92 | G95: 262.08 | H95: 281.68 | I95: 287.52 | J95: 291.48 | K95: 283.55 | L95: 273.75 | M95: 2.37749
A96: 87 | B96: CEATLTD | C96: 1329.05 | D96: 1334.88 | E96: 1315.42 | F96: 1301.78 | G96: 1282.32 | H96: 1348.52 | I96: 1367.98 | J96: 1381.62 | K96: 1354.35 | L96: 1321.25 | M96: 4.63727
A97: 88 | B97: CENTRALBK | C97: 74.4 | D97: 74.15 | E97: 73.30 | F97: 72.20 | G97: 71.35 | H97: 75.25 | I97: 76.10 | J97: 77.20 | K97: 75 | L97: 73.05 | M97: 2.96701
A98: 89 | B98: CENTURYPLY | C98: 258.95 | D98: 263.90 | E98: 252.50 | F98: 246.05 | G98: 234.65 | H98: 270.35 | I98: 281.75 | J98: 288.20 | K98: 275.3 | L98: 257.45 | M98: 2.15632
A99: 90 | B99: CENTURYTEX | C99: 925.2 | D99: 915.95 | E99: 901.30 | F99: 877.40 | G99: 862.75 | H99: 939.85 | I99: 954.50 | J99: 978.40 | K99: 930.6 | L99: 892.05 | M99: 11.64555
A100: 91 | B100: CERA | C100: 2804.9 | D100: 2814.97 | E100: 2764.93 | F100: 2724.97 | G100: 2674.93 | H100: 2854.93 | I100: 2904.97 | J100: 2944.93 | K100: 2865 | L100: 2775 | M100: 0.03656
A101: 92 | B101: CGPOWER | C101: 56.9 | D101: 57.53 | E101: 54.87 | F101: 52.83 | G101: 50.17 | H101: 59.57 | I101: 62.23 | J101: 64.27 | K101: 60.2 | L101: 55.5 | M101: 175.60463
A102: 93 | B102: CHAMBLFERT | C102: 161.95 | D102: 162.67 | E102: 159.13 | F102: 156.32 | G102: 152.78 | H102: 165.48 | I102: 169.02 | J102: 171.83 | K102: 166.2 | L102: 159.85 | M102: 3.4605
A103: 94 | B103: CHENNPETRO | C103: 288.05 | D103: 287.17 | E103: 283.83 | F103: 279.62 | G103: 276.28 | H103: 291.38 | I103: 294.72 | J103: 298.93 | K103: 290.5 | L103: 282.95 | M103: 5.13683
A104: 95 | B104: CHOLAFIN | C104: 1577.25 | D104: 1587.13 | E104: 1555.27 | F104: 1533.28 | G104: 1501.42 | H104: 1609.12 | I104: 1640.98 | J104: 1662.97 | K104: 1619 | L104: 1565.15 | M104: 4.10614
A105: 96 | B105: CIPLA | C105: 520.7 | D105: 522.28 | E105: 515.57 | F105: 510.43 | G105: 503.72 | H105: 527.42 | I105: 534.13 | J105: 539.27 | K105: 529 | L105: 517.15 | M105: 12.47023
A106: 97 | B106: COALINDIA | C106: 292.6 | D106: 293.95 | E106: 290.05 | F106: 287.50 | G106: 283.60 | H106: 296.50 | I106: 300.40 | J106: 302.95 | K106: 297.85 | L106: 291.4 | M106: 15.57911
A107: 98 | B107: COCHINSHIP | C107: 485.5 | D107: 490.57 | E107: 478.93 | F107: 472.37 | G107: 460.73 | H107: 497.13 | I107: 508.77 | J107: 515.33 | K107: 502.2 | L107: 484 | M107: 0.77262
A108: 99 | B108: COFFEEDAY | C108: 284.65 | D108: 286.00 | E108: 279.95 | F108: 275.25 | G108: 269.20 | H108: 290.70 | I108: 296.75 | J108: 301.45 | K108: 292.05 | L108: 281.3 | M108: 1.4883
A109: 100 | B109: COLPAL | C109: 1233.75 | D109: 1240.28 | E109: 1223.57 | F109: 1213.38 | G109: 1196.67 | H109: 1250.47 | I109: 1267.18 | J109: 1277.37 | K109: 1257 | L109: 1230.1 | M109: 2.41454
A110: 101 | B110: CONCOR | C110: 1313.3 | D110: 1325.40 | E110: 1292.90 | F110: 1272.50 | G110: 1240.00 | H110: 1345.80 | I110: 1378.30 | J110: 1398.70 | K110: 1357.9 | L110: 1305 | M110: 3.21992
A111: 102 | B111: COROMANDEL | C111: 450.7 | D111: 452.27 | E111: 443.63 | F111: 436.57 | G111: 427.93 | H111: 459.33 | I111: 467.97 | J111: 475.03 | K111: 460.9 | L111: 445.2 | M111: 0.69432
A112: 103 | B112: COX&KINGS | C112: 212.55 | D112: 214.10 | E112: 208.50 | F112: 204.45 | G112: 198.85 | H112: 218.15 | I112: 223.75 | J112: 227.80 | K112: 219.7 | L112: 210.05 | M112: 1.3499
A113: 104 | B113: CRISIL | C113: 1806.2 | D113: 1793.37 | E113: 1764.73 | F113: 1723.27 | G113: 1694.63 | H113: 1834.83 | I113: 1863.47 | J113: 1904.93 | K113: 1822 | L113: 1751.9 | M113: 0.30675
A114: 105 | B114: CROMPTON | C114: 223.85 | D114: 223.13 | E114: 220.77 | F114: 217.68 | G114: 215.32 | H114: 226.22 | I114: 228.58 | J114: 231.67 | K114: 225.5 | L114: 220.05 | M114: 1.99152
A115: 106 | B115: CUB | C115: 190.65 | D115: 190.87 | E115: 187.88 | F115: 185.12 | G115: 182.13 | H115: 193.63 | I115: 196.62 | J115: 199.38 | K115: 193.85 | L115: 188.1 | M115: 5.20792
A116: 107 | B116: CUMMINSIND | C116: 682.25 | D116: 677.88 | E116: 667.37 | F116: 652.48 | G116: 641.97 | H116: 692.77 | I116: 703.28 | J116: 718.17 | K116: 688.4 | L116: 663 | M116: 7.84074
A117: 108 | B117: CYIENT | C117: 706.5 | D117: 710.97 | E117: 677.38 | F117: 648.27 | G117: 614.68 | H117: 740.08 | I117: 773.67 | J117: 802.78 | K117: 744.55 | L117: 681.85 | M117: 2.69816
A118: 109 | B118: DABUR | C118: 384.95 | D118: 386.13 | E118: 382.97 | F118: 380.98 | G118: 377.82 | H118: 388.12 | I118: 391.28 | J118: 393.27 | K118: 389.3 | L118: 384.15 | M118: 9.26051
A119: 110 | B119: DBCORP | C119: 259.25 | D119: 260.58 | E119: 257.67 | F119: 256.08 | G119: 253.17 | H119: 262.17 | I119: 265.08 | J119: 266.67 | K119: 263.5 | L119: 259 | M119: 0.81302
A120: 111 | B120: DBL | C120: 862.55 | D120: 860.75 | E120: 826.80 | F120: 791.05 | G120: 757.10 | H120: 896.50 | I120: 930.45 | J120: 966.20 | K120: 894.7 | L120: 825 | M120: 11.51329
A121: 112 | B121: DBREALTY | C121: 46.3 | D121: 47.07 | E121: 44.63 | F121: 42.97 | G121: 40.53 | H121: 48.73 | I121: 51.17 | J121: 52.83 | K121: 49.5 | L121: 45.4 | M121: 3.95767
A122: 113 | B122: DCAL | C122: 294.05 | D122: 297.68 | E122: 284.37 | F122: 274.68 | G122: 261.37 | H122: 307.37 | I122: 320.68 | J122: 330.37 | K122: 311 | L122: 288 | M122: 0.96705
A123: 114 | B123: DCBBANK | C123: 174.9 | D123: 177.27 | E123: 171.63 | F123: 168.37 | G123: 162.73 | H123: 180.53 | I123: 186.17 | J123: 189.43 | K123: 182.9 | L123: 174 | M123: 14.60446
A124: 115 | B124: DCMSHRIRAM | C124: 260.4 | D124: 266.07 | E124: 253.33 | F124: 246.27 | G124: 233.53 | H124: 273.13 | I124: 285.87 | J124: 292.93 | K124: 278.8 | L124: 259 | M124: 1.77994
A125: 116 | B125: DEEPAKFERT | C125: 308.15 | D125: 311.23 | E125: 302.47 | F125: 296.78 | G125: 288.02 | H125: 316.92 | I125: 325.68 | J125: 331.37 | K125: 320 | L125: 305.55 | M125: 1.38172
A126: 117 | B126: DELTACORP | C126: 219.75 | D126: 223.95 | E126: 209.90 | F126: 200.05 | G126: 186.00 | H126: 233.80 | I126: 247.85 | J126: 257.70 | K126: 238 | L126: 214.1 | M126: 40.90304
A127: 118 | B127: DEN | C127: 91.8 | D127: 92.35 | E127: 89.70 | F127: 87.60 | G127: 84.95 | H127: 94.45 | I127: 97.10 | J127: 99.20 | K127: 95 | L127: 90.25 | M127: 1.37347
A128: 119 | B128: DENABANK | C128: 15.95 | D128: 16.08 | E128: 15.62 | F128: 15.28 | G128: 14.82 | H128: 16.42 | I128: 16.88 | J128: 17.22 | K128: 16.55 | L128: 15.75 | M128: 9.13564
A129: 120 | B129: DHFL | C129: 601.6 | D129: 605.28 | E129: 594.22 | F129: 586.83 | G129: 575.77 | H129: 612.67 | I129: 623.73 | J129: 631.12 | K129: 616.35 | L129: 597.9 | M129: 43.46387
A130: 121 | B130: DISHTV | C130: 73.1 | D130: 73.42 | E130: 71.93 | F130: 70.77 | G130: 69.28 | H130: 74.58 | I130: 76.07 | J130: 77.23 | K130: 74.9 | L130: 72.25 | M130: 31.78226
A131: 122 | B131: DIVISLAB | C131: 1047.15 | D131: 1049.10 | E131: 1033.55 | F131: 1019.95 | G131: 1004.40 | H131: 1062.70 | I131: 1078.25 | J131: 1091.85 | K131: 1064.65 | L131: 1035.5 | M131: 4.0087
A132: 123 | B132: DIXON | C132: 3230.9 | D132: 3255.53 | E132: 3186.07 | F132: 3141.23 | G132: 3071.77 | H132: 3300.37 | I132: 3369.83 | J132: 3414.67 | K132: 3325 | L132: 3210.7 | M132: 0.13807
A133: 124 | B133: DLF | C133: 199.15 | D133: 201.92 | E133: 195.33 | F133: 191.52 | G133: 184.93 | H133: 205.73 | I133: 212.32 | J133: 216.13 | K133: 208.5 | L133: 198.1 | M133: 46.93026
A134: 125 | B134: DMART | C134: 1486.4 | D134: 1504.40 | E134: 1464.40 | F134: 1442.40 | G134: 1402.40 | H134: 1526.40 | I134: 1566.40 | J134: 1588.40 | K134: 1544.4 | L134: 1482.4 | M134: 10.84158
A135: 126 | B135: DREDGECORP | C135: 527.8 | D135: 532.90 | E135: 513.80 | F135: 499.80 | G135: 480.70 | H135: 546.90 | I135: 566.00 | J135: 580.00 | K135: 552 | L135: 518.9 | M135: 0.68597
A136: 127 | B136: DRREDDY | C136: 1996 | D136: 1996.30 | E136: 1964.70 | F136: 1933.40 | G136: 1901.80 | H136: 2027.60 | I136: 2059.20 | J136: 2090.50 | K136: 2027.9 | L136: 1965 | M136: 14.00421
A137: 128 | B137: ECLERX | C137: 1301.1 | D137: 1305.27 | E137: 1291.18 | F137: 1281.27 | G137: 1267.18 | H137: 1315.18 | I137: 1329.27 | J137: 1339.18 | K137: 1319.35 | L137: 1295.35 | M137: 0.05354
A138: 129 | B138: EDELWEISS | C138: 299.2 | D138: 301.38 | E138: 290.02 | F138: 280.83 | G138: 269.47 | H138: 310.57 | I138: 321.93 | J138: 331.12 | K138: 312.75 | L138: 292.2 | M138: 19.61796
A139: 130 | B139: EICHERMOT | C139: 29377.65 | D139: 29655.48 | E139: 29037.17 | F139: 28696.68 | G139: 28078.37 | H139: 29995.97 | I139: 30614.28 | J139: 30954.77 | K139: 30273.8 | L139: 29315 | M139: 0.34668
A140: 131 | B140: EIDPARRY | C140: 226.2 | D140: 230.55 | E140: 220.10 | F140: 214.00 | G140: 203.55 | H140: 236.65 | I140: 247.10 | J140: 253.20 | K140: 241 | L140: 224.45 | M140: 1.68747
A141: 132 | B141: EIHOTEL | C141: 174.2 | D141: 174.83 | E141: 172.42 | F141: 170.63 | G141: 168.22 | H141: 176.62 | I141: 179.03 | J141: 180.82 | K141: 177.25 | L141: 173.05 | M141: 3.38291
A142: 133 | B142: EMAMILTD | C142: 1031.85 | D142: 1034.60 | E142: 1022.30 | F142: 1012.75 | G142: 1000.45 | H142: 1044.15 | I142: 1056.45 | J142: 1066.00 | K142: 1046.9 | L142: 1025.05 | M142: 0.36776
A143: 134 | B143: ENDURANCE | C143: 1254.2 | D143: 1254.73 | E143: 1228.77 | F143: 1203.33 | G143: 1177.37 | H143: 1280.17 | I143: 1306.13 | J143: 1331.57 | K143: 1280.7 | L143: 1229.3 | M143: 0.51343
A144: 135 | B144: ENGINERSIN | C144: 133.5 | D144: 132.77 | E144: 130.98 | F144: 128.47 | G144: 126.68 | H144: 135.28 | I144: 137.07 | J144: 139.58 | K144: 134.55 | L144: 130.25 | M144: 23.47839
A145: 136 | B145: EQUITAS | C145: 159.25 | D145: 160.90 | E145: 155.00 | F145: 150.75 | G145: 144.85 | H145: 165.15 | I145: 171.05 | J145: 175.30 | K145: 166.8 | L145: 156.65 | M145: 15.35861
A146: 137 | B146: ERIS | C146: 796.35 | D146: 795.32 | E146: 784.73 | F146: 773.12 | G146: 762.53 | H146: 806.93 | I146: 817.52 | J146: 829.13 | K146: 805.9 | L146: 783.7 | M146: 0.09836
A147: 138 | B147: EROSMEDIA | C147: 137 | D147: 138.77 | E147: 133.33 | F147: 129.67 | G147: 124.23 | H147: 142.43 | I147: 147.87 | J147: 151.53 | K147: 144.2 | L147: 135.1 | M147: 4.37102
A148: 139 | B148: ESCORTS | C148: 893.75 | D148: 907.38 | E148: 874.82 | F148: 855.88 | G148: 823.32 | H148: 926.32 | I148: 958.88 | J148: 977.82 | K148: 939.95 | L148: 888.45 | M148: 10.90743
A149: 140 | B149: EVEREADY | C149: 246.55 | D149: 246.18 | E149: 242.37 | F149: 238.18 | G149: 234.37 | H149: 250.37 | I149: 254.18 | J149: 258.37 | K149: 250 | L149: 242 | M149: 0.59007
A150: 141 | B150: EXIDEIND | C150: 255.35 | D150: 255.43 | E150: 252.37 | F150: 249.38 | G150: 246.32 | H150: 258.42 | I150: 261.48 | J150: 264.47 | K150: 258.5 | L150: 252.45 | M150: 17.76473
A151: 142 | B151: FCONSUMER | C151: 54.85 | D151: 55.38 | E151: 53.47 | F151: 52.08 | G151: 50.17 | H151: 56.77 | I151: 58.68 | J151: 60.07 | K151: 57.3 | L151: 54 | M151: 18.74145
A152: 143 | B152: FEDERALBNK | C152: 81.2 | D152: 81.67 | E152: 80.08 | F152: 78.97 | G152: 77.38 | H152: 82.78 | I152: 84.37 | J152: 85.48 | K152: 83.25 | L152: 80.55 | M152: 81.8719
A153: 144 | B153: FINCABLES | C153: 671.1 | D153: 671.33 | E153: 654.77 | F153: 638.43 | G153: 621.87 | H153: 687.67 | I153: 704.23 | J153: 720.57 | K153: 687.9 | L153: 655 | M153: 0.29163
A154: 145 | B154: FINPIPE | C154: 607 | D154: 609.17 | E154: 603.83 | F154: 600.67 | G154: 595.33 | H154: 612.33 | I154: 617.67 | J154: 620.83 | K154: 614.5 | L154: 606 | M154: 0.09867
A155: 146 | B155: FLFL | C155: 440.45 | D155: 439.95 | E155: 431.90 | F155: 423.35 | G155: 415.30 | H155: 448.50 | I155: 456.55 | J155: 465.10 | K155: 448 | L155: 431.4 | M155: 0.731
A156: 147 | B156: FSL | C156: 76.3 | D156: 76.47 | E156: 75.33 | F156: 74.37 | G156: 73.23 | H156: 77.43 | I156: 78.57 | J156: 79.53 | K156: 77.6 | L156: 75.5 | M156: 118.62795
A157: 148 | B157: GAIL | C157: 335.05 | D157: 337.82 | E157: 329.63 | F157: 324.22 | G157: 316.03 | H157: 343.23 | I157: 351.42 | J157: 356.83 | K157: 346 | L157: 332.4 | M157: 31.94664
A158: 149 | B158: GATI | C158: 90.75 | D158: 91.93 | E158: 88.92 | F158: 87.08 | G158: 84.07 | H158: 93.77 | I158: 96.78 | J158: 98.62 | K158: 94.95 | L158: 90.1 | M158: 7.45978
A159: 150 | B159: GDL | C159: 188.9 | D159: 185.78 | E159: 175.22 | F159: 161.53 | G159: 150.97 | H159: 199.47 | I159: 210.03 | J159: 223.72 | K159: 196.35 | L159: 172.1 | M159: 6.99808
A160: 151 | B160: GEPIL | C160: 831.2 | D160: 832.42 | E160: 823.88 | F160: 816.57 | G160: 808.03 | H160: 839.73 | I160: 848.27 | J160: 855.58 | K160: 840.95 | L160: 825.1 | M160: 0.22077
A161: 152 | B161: GESHIP | C161: 328.75 | D161: 329.20 | E161: 327.05 | F161: 325.35 | G161: 323.20 | H161: 330.90 | I161: 333.05 | J161: 334.75 | K161: 331.35 | L161: 327.5 | M161: 0.05202
A162: 153 | B162: GET&D | C162: 296.15 | D162: 301.00 | E162: 290.15 | F162: 284.15 | G162: 273.30 | H162: 307.00 | I162: 317.85 | J162: 323.85 | K162: 311.85 | L162: 295 | M162: 0.18293
A163: 154 | B163: GHCL | C163: 270.2 | D163: 273.43 | E163: 266.12 | F163: 262.03 | G163: 254.72 | H163: 277.52 | I163: 284.83 | J163: 288.92 | K163: 280.75 | L163: 269.35 | M163: 1.31017
A164: 155 | B164: GICRE | C164: 707.25 | D164: 708.87 | E164: 699.78 | F164: 692.32 | G164: 683.23 | H164: 716.33 | I164: 725.42 | J164: 732.88 | K164: 717.95 | L164: 701.4 | M164: 0.93357
A165: 156 | B165: GILLETTE | C165: 6504.85 | D165: 6518.13 | E165: 6438.72 | F165: 6372.58 | G165: 6293.17 | H165: 6584.27 | I165: 6663.68 | J165: 6729.82 | K165: 6597.55 | L165: 6452 | M165: 0.08129
A166: 157 | B166: GLAXO | C166: 2520.5 | D166: 2521.02 | E166: 2502.23 | F166: 2483.97 | G166: 2465.18 | H166: 2539.28 | I166: 2558.07 | J166: 2576.33 | K166: 2539.8 | L166: 2502.75 | M166: 0.07331
A167: 158 | B167: GLENMARK | C167: 539.95 | D167: 539.93 | E167: 531.47 | F167: 522.98 | G167: 514.52 | H167: 548.42 | I167: 556.88 | J167: 565.37 | K167: 548.4 | L167: 531.45 | M167: 7.56736
A168: 159 | B168: GMDCLTD | C168: 111.05 | D168: 112.27 | E168: 109.58 | F168: 108.12 | G168: 105.43 | H168: 113.73 | I168: 116.42 | J168: 117.88 | K168: 114.95 | L168: 110.8 | M168: 1.33807
A169: 160 | B169: GMRINFRA | C169: 16.35 | D169: 16.58 | E169: 15.87 | F169: 15.38 | G169: 14.67 | H169: 17.07 | I169: 17.78 | J169: 18.27 | K169: 17.3 | L169: 16.1 | M169: 411.9455
A170: 161 | B170: GNFC | C170: 468.4 | D170: 476.02 | E170: 457.53 | F170: 446.67 | G170: 428.18 | H170: 486.88 | I170: 505.37 | J170: 516.23 | K170: 494.5 | L170: 465.15 | M170: 17.51777
A171: 162 | B171: GODFRYPHLP | C171: 723.85 | D171: 730.95 | E171: 713.80 | F171: 703.75 | G171: 686.60 | H171: 741.00 | I171: 758.15 | J171: 768.20 | K171: 748.1 | L171: 720.9 | M171: 0.46863
A172: 163 | B172: GODREJAGRO | C172: 645.65 | D172: 644.85 | E172: 640.80 | F172: 635.95 | G172: 631.90 | H172: 649.70 | I172: 653.75 | J172: 658.60 | K172: 648.9 | L172: 640 | M172: 1.75609
A173: 164 | B173: GODREJCP | C173: 1134.65 | D173: 1141.50 | E173: 1118.15 | F173: 1101.65 | G173: 1078.30 | H173: 1158.00 | I173: 1181.35 | J173: 1197.85 | K173: 1164.85 | L173: 1125 | M173: 3.39444
A174: 165 | B174: GODREJIND | C174: 598.6 | D174: 599.37 | E174: 589.78 | F174: 580.97 | G174: 571.38 | H174: 608.18 | I174: 617.77 | J174: 626.58 | K174: 608.95 | L174: 590.55 | M174: 7.69252
A175: 166 | B175: GODREJPROP | C175: 712.35 | D175: 718.25 | E175: 698.75 | F175: 685.15 | G175: 665.65 | H175: 731.85 | I175: 751.35 | J175: 764.95 | K175: 737.75 | L175: 704.65 | M175: 0.77738
A176: 167 | B176: GPPL | C176: 113.6 | D176: 113.90 | E176: 110.80 | F176: 108.00 | G176: 104.90 | H176: 116.70 | I176: 119.80 | J176: 122.60 | K176: 117 | L176: 111.1 | M176: 0.87541
A177: 168 | B177: GRANULES | C177: 74.35 | D177: 75.33 | E177: 72.77 | F177: 71.18 | G177: 68.62 | H177: 76.92 | I177: 79.48 | J177: 81.07 | K177: 77.9 | L177: 73.75 | M177: 27.8254
A178: 169 | B178: GRAPHITE | C178: 801.85 | D178: 807.78 | E178: 795.92 | F178: 789.98 | G178: 778.12 | H178: 813.72 | I178: 825.58 | J178: 831.52 | K178: 819.65 | L178: 801.85 | M178: 2.65356
A179: 170 | B179: GRASIM | C179: 1034.85 | D179: 1031.83 | E179: 1018.42 | F179: 1001.98 | G179: 988.57 | H179: 1048.27 | I179: 1061.68 | J179: 1078.12 | K179: 1045.25 | L179: 1015.4 | M179: 8.35325
A180: 171 | B180: GREAVESCOT | C180: 126.85 | D180: 128.23 | E180: 124.57 | F180: 122.28 | G180: 118.62 | H180: 130.52 | I180: 134.18 | J180: 136.47 | K180: 131.9 | L180: 125.95 | M180: 3.19275
A181: 172 | B181: GREENPLY | C181: 249.15 | D181: 251.75 | E181: 244.05 | F181: 238.95 | G181: 231.25 | H181: 256.85 | I181: 264.55 | J181: 269.65 | K181: 259.45 | L181: 246.65 | M181: 1.18184
A182: 173 | B182: GRUH | C182: 697.4 | D182: 704.12 | E182: 688.28 | F182: 679.17 | G182: 663.33 | H182: 713.23 | I182: 729.07 | J182: 738.18 | K182: 719.95 | L182: 695 | M182: 4.2834
A183: 174 | B183: GSFC | C183: 112 | D183: 112.88 | E183: 110.32 | F183: 108.63 | G183: 106.07 | H183: 114.57 | I183: 117.13 | J183: 118.82 | K183: 115.45 | L183: 111.2 | M183: 11.50227
A184: 175 | B184: GSKCONS | C184: 6542.15 | D184: 6519.22 | E184: 6483.48 | F184: 6424.82 | G184: 6389.08 | H184: 6577.88 | I184: 6613.62 | J184: 6672.28 | K184: 6554.95 | L184: 6460.55 | M184: 0.12474
A185: 176 | B185: GSPL | C185: 182.9 | D185: 181.28 | E185: 177.77 | F185: 172.63 | G185: 169.12 | H185: 186.42 | I185: 189.93 | J185: 195.07 | K185: 184.8 | L185: 176.15 | M185: 7.30759
A186: 177 | B186: GUJALKALI | C186: 621.3 | D186: 630.78 | E186: 608.97 | F186: 596.63 | G186: 574.82 | H186: 643.12 | I186: 664.93 | J186: 677.27 | K186: 652.6 | L186: 618.45 | M186: 0.77048
A187: 178 | B187: GUJFLUORO | C187: 761.8 | D187: 765.52 | E187: 752.48 | F187: 743.17 | G187: 730.13 | H187: 774.83 | I187: 787.87 | J187: 797.18 | K187: 778.55 | L187: 756.2 | M187: 0.09095
A188: 179 | B188: GUJGASLTD | C188: 845.55 | D188: 843.78 | E188: 838.77 | F188: 831.98 | G188: 826.97 | H188: 850.57 | I188: 855.58 | J188: 862.37 | K188: 848.8 | L188: 837 | M188: 0.03964
A189: 180 | B189: GULFOILLUB | C189: 857.2 | D189: 857.40 | E189: 840.80 | F189: 824.40 | G189: 807.80 | H189: 873.80 | I189: 890.40 | J189: 906.80 | K189: 874 | L189: 841 | M189: 0.27103
A190: 181 | B190: GVKPIL | C190: 11.75 | D190: 11.87 | E190: 11.63 | F190: 11.52 | G190: 11.28 | H190: 11.98 | I190: 12.22 | J190: 12.33 | K190: 12.1 | L190: 11.75 | M190: 24.67125
A191: 182 | B191: HATHWAY | C191: 27.05 | D191: 27.17 | E191: 25.98 | F191: 24.92 | G191: 23.73 | H191: 28.23 | I191: 29.42 | J191: 30.48 | K191: 28.35 | L191: 26.1 | M191: 10.05151
A192: 183 | B192: HATSUN | C192: 706.05 | D192: 709.13 | E192: 696.92 | F192: 687.78 | G192: 675.57 | H192: 718.27 | I192: 730.48 | J192: 739.62 | K192: 721.35 | L192: 700 | M192: 0.1172
A193: 184 | B193: HAVELLS | C193: 536.6 | D193: 539.53 | E193: 532.32 | F193: 528.03 | G193: 520.82 | H193: 543.82 | I193: 551.03 | J193: 555.32 | K193: 546.75 | L193: 535.25 | M193: 6.85761
A194: 185 | B194: HCC | C194: 14.65 | D194: 14.77 | E194: 14.38 | F194: 14.12 | G194: 13.73 | H194: 15.03 | I194: 15.42 | J194: 15.68 | K194: 15.15 | L194: 14.5 | M194: 43.5231
A195: 186 | B195: HCL-INSYS | C195: 36.1 | D195: 36.87 | E195: 35.03 | F195: 33.97 | G195: 32.13 | H195: 37.93 | I195: 39.77 | J195: 40.83 | K195: 38.7 | L195: 35.8 | M195: 15.6053
A196: 187 | B196: HCLTECH | C196: 900.7 | D196: 905.58 | E196: 894.27 | F196: 887.83 | G196: 876.52 | H196: 912.02 | I196: 923.33 | J196: 929.77 | K196: 916.9 | L196: 899.15 | M196: 7.52943
A197: 188 | B197: HDFC | C197: 1833.15 | D197: 1842.98 | E197: 1815.52 | F197: 1797.88 | G197: 1770.42 | H197: 1860.62 | I197: 1888.08 | J197: 1905.72 | K197: 1870.45 | L197: 1825.35 | M197: 20.10526
A198: 189 | B198: HDFCBANK | C198: 2046.2 | D198: 2080.38 | E198: 2003.77 | F198: 1961.33 | G198: 1884.72 | H198: 2122.82 | I198: 2199.43 | J198: 2241.87 | K198: 2157 | L198: 2037.95 | M198: 221.99081
A199: 190 | B199: HDIL | C199: 24.3 | D199: 25.18 | E199: 22.97 | F199: 21.63 | G199: 19.42 | H199: 26.52 | I199: 28.73 | J199: 30.07 | K199: 27.4 | L199: 23.85 | M199: 123.89054
A200: 191 | B200: HEG | C200: 3195.95 | D200: 3213.22 | E200: 3178.68 | F200: 3161.42 | G200: 3126.88 | H200: 3230.48 | I200: 3265.02 | J200: 3282.28 | K200: 3247.75 | L200: 3195.95 | M200: 0.89076
A201: 192 | B201: HEIDELBERG | C201: 142.8 | D201: 145.42 | E201: 138.93 | F201: 135.07 | G201: 128.58 | H201: 149.28 | I201: 155.77 | J201: 159.63 | K201: 151.9 | L201: 141.55 | M201: 0.86629
A202: 193 | B202: HERITGFOOD | C202: 710.05 | D202: 708.75 | E202: 701.45 | F202: 692.85 | G202: 685.55 | H202: 717.35 | I202: 724.65 | J202: 733.25 | K202: 716.05 | L202: 700.15 | M202: 0.58094
A203: 194 | B203: HEROMOTOCO | C203: 3613.6 | D203: 3625.43 | E203: 3581.02 | F203: 3548.43 | G203: 3504.02 | H203: 3658.02 | I203: 3702.43 | J203: 3735.02 | K203: 3669.85 | L203: 3592.85 | M203: 2.30153
A204: 195 | B204: HEXAWARE | C204: 443.5 | D204: 440.68 | E204: 434.37 | F204: 425.23 | G204: 418.92 | H204: 449.82 | I204: 456.13 | J204: 465.27 | K204: 447 | L204: 431.55 | M204: 9.78217
A205: 196 | B205: HFCL | C205: 25.2 | D205: 25.23 | E205: 24.22 | F205: 23.23 | G205: 22.22 | H205: 26.22 | I205: 27.23 | J205: 28.22 | K205: 26.25 | L205: 24.25 | M205: 74.38124
A206: 197 | B206: HIMATSEIDE | C206: 347.9 | D206: 349.75 | E206: 344.15 | F206: 340.40 | G206: 334.80 | H206: 353.50 | I206: 359.10 | J206: 362.85 | K206: 355.35 | L206: 346 | M206: 0.18475
... 305 more rows

Sheet Bulk Deals
E6: Back To Main Page
A7: Subject : | B7: BULK DEAL | D7: =Main!B10 -> 2018-06-05
A9: Date | B9: Scrip code | C9: Scrip Name | D9: Client Name | E9: Buy / Sell | F9: Quantity Traded | G9: Trade Price / Wt.Avg.trade price | H9: Exchange
A10: 2018-06-04 | B10: 541152 | C10: ADVITIYA | D10: FAST TRACK INVESTMENT SOLUTIONS | E10: SELL | F10: 56,000 | G10: 15.3 | H10: BSE
A11: 2018-06-04 | B11: 541152 | C11: ADVITIYA | D11: SURENDER KUMAR GOYAL | E11: BUY | F11: 56,000 | G11: 15.3 | H11: BSE
A12: 2018-06-04 | B12: 541402 | C12: AFFORDABLE | D12: ELARA INDIA OPPORTUNITIES FUND LIMITED | E12: SELL | F12: 88,000 | G12: 92.96 | H12: BSE
A13: 2018-06-04 | B13: 541402 | C13: AFFORDABLE | D13: MEHER AND PHEROZ PUDUMJEE FAMILY DISCRETIONARY TRUST | E13: BUY | F13: 201,600 | G13: 89.35 | H13: BSE
A14: 2018-06-04 | B14: 541402 | C14: AFFORDABLE | D14: ANU AGA FAMILY DISCRETIONARY TRUST | E14: BUY | F14: 201,600 | G14: 91.89 | H14: BSE
A15: 2018-06-04 | B15: 541402 | C15: AFFORDABLE | D15: ELARA INDIA OPPORTUNITIES FUND LIMITED | E15: SELL | F15: 124,800 | G15: 92.95 | H15: BSE
A16: 2018-06-04 | B16: 541402 | C16: AFFORDABLE | D16: SHETH BROTHER | E16: SELL | F16: 12,800 | G16: 88 | H16: BSE
A17: 2018-06-04 | B17: 541402 | C17: AFFORDABLE | D17: SHETH BROTHER | E17: BUY | F17: 99,200 | G17: 90.05 | H17: BSE
A18: 2018-06-04 | B18: 539042 | C18: AGIIL | D18: HAVELI INDIA LTD | E18: BUY | F18: 67,824 | G18: 112.11 | H18: BSE
A19: 2018-06-04 | B19: 539042 | C19: AGIIL | D19: B M TRADERS | E19: SELL | F19: 25,938 | G19: 112.09 | H19: BSE
A20: 2018-06-04 | B20: 539042 | C20: AGIIL | D20: B M TRADERS | E20: BUY | F20: 51,180 | G20: 106.58 | H20: BSE
A21: 2018-06-04 | B21: 524412 | C21: AREYDRG | D21: HANS METALS LIMITED | E21: SELL | F21: 205,000 | G21: 43.2 | H21: BSE
A22: 2018-06-04 | B22: 524412 | C22: AREYDRG | D22: HANS METALS LIMITED | E22: BUY | F22: 205,000 | G22: 43.25 | H22: BSE
A23: 2018-06-04 | B23: 532834 | C23: CAMLINFINE | D23: ABU DHABI INVESTMENT COUNCIL WHITING | E23: SELL | F23: 872,156 | G23: 87.4 | H23: BSE
A24: 2018-06-04 | B24: 532834 | C24: CAMLINFINE | D24: AL MEHWAR COMMERCIAL INVSTMENTS LLC WHITING | E24: BUY | F24: 872,156 | G24: 87.4 | H24: BSE
A25: 2018-06-04 | B25: 539131 | C25: CLLIMITED | D25: ADSERVE ADVISORY AND CONSULTANCY SERVICES PRIVATE LIMITED | E25: SELL | F25: 37,641 | G25: 21.26 | H25: BSE
A26: 2018-06-04 | B26: 539131 | C26: CLLIMITED | D26: ADSERVE ADVISORY AND CONSULTANCY SERVICES PRIVATE LIMITED | E26: BUY | F26: 57,074 | G26: 21.39 | H26: BSE
A27: 2018-06-04 | B27: 533144 | C27: COX&KINGS | D27: ABU DHABI INVESTMENT COUNCIL NOOSA | E27: SELL | F27: 2,530,000 | G27: 215 | H27: BSE
A28: 2018-06-04 | B28: 533144 | C28: COX&KINGS | D28: AL MEHWAR COMMERCIAL INVSTMENTS LLC NOOSA | E28: BUY | F28: 2,530,000 | G28: 215 | H28: BSE
A29: 2018-06-04 | B29: 541276 | C29: GARVIND | D29: SARAVJEET KAUR BHANDARI | E29: BUY | F29: 90,000 | G29: 7.76 | H29: BSE
A30: 2018-06-04 | B30: 541276 | C30: GARVIND | D30: ARYAMAN BROKING LIMITED | E30: SELL | F30: 90,000 | G30: 7.76 | H30: BSE
A31: 2018-06-04 | B31: 541276 | C31: GARVIND | D31: ARYAMAN BROKING LIMITED | E31: BUY | F31: 10,000 | G31: 7.75 | H31: BSE
A32: 2018-06-04 | B32: 532951 | C32: GSS | D32: HANS METALS LIMITED | E32: SELL | F32: 102,804 | G32: 84.82 | H32: BSE
A33: 2018-06-04 | B33: 532951 | C33: GSS | D33: HANS METALS LIMITED | E33: BUY | F33: 102,804 | G33: 84.74 | H33: BSE
A34: 2018-06-04 | B34: 500010 | C34: HDFC | D34: AL MEHWAR COMMERCIAL INVSTMENTS LLC TALLYFISH | E34: BUY | F34: 217,297 | G34: 1843 | H34: BSE
A35: 2018-06-04 | B35: 500010 | C35: HDFC | D35: ABU DHABI INVESTMENT COUNCIL TALLYFISH | E35: SELL | F35: 217,297 | G35: 1843 | H35: BSE
A36: 2018-06-04 | B36: 514165 | C36: INDIANACRY | D36: DHEERAJ GARG | E36: BUY | F36: 1,515,000 | G36: 18.6 | H36: BSE
A37: 2018-06-04 | B37: 538835 | C37: INTELLECT | D37: ABU DHABI INVESTMENT COUNCIL WHITING | E37: SELL | F37: 1,081,485 | G37: 199 | H37: BSE
A38: 2018-06-04 | B38: 538835 | C38: INTELLECT | D38: AL MEHWAR COMMERCIAL INVSTMENTS LLC WHITING | E38: BUY | F38: 1,081,485 | G38: 199 | H38: BSE
A39: 2018-06-04 | B39: 533155 | C39: JUBLFOOD | D39: ABU DHABI INVESTMENT COUNCIL STONEFISH | E39: SELL | F39: 331,100 | G39: 2529 | H39: BSE
A40: 2018-06-04 | B40: 533155 | C40: JUBLFOOD | D40: AL MEHWAR COMMERCIAL INVSTMENTS LLC STONEFISH | E40: BUY | F40: 331,100 | G40: 2529 | H40: BSE
A41: 2018-06-04 | B41: 513693 | C41: KAJARIR | D41: AMBITION MERCHANTS PRIVATE LIMITED | E41: BUY | F41: 36,000 | G41: 252.5 | H41: BSE
A42: 2018-06-04 | B42: 531692 | C42: KHYATI | D42: VIMAL C SHAH HUF | E42: SELL | F42: 71,155 | G42: 0.54 | H42: BSE
A43: 2018-06-04 | B43: 532400 | C43: KPIT | D43: ABU DHABI INVESTMENT COUNCIL NOOSA | E43: SELL | F43: 1,810,000 | G43: 287.2 | H43: BSE
A44: 2018-06-04 | B44: 532400 | C44: KPIT | D44: AL MEHWAR COMMERCIAL INVSTMENTS LLC NOOSA | E44: BUY | F44: 1,810,000 | G44: 287.2 | H44: BSE
A45: 2018-06-04 | B45: 532796 | C45: LUMAXTECH | D45: ABU DHABI INVESTMENT COUNCIL WHITING | E45: SELL | F45: 72,259 | G45: 770 | H45: BSE
A46: 2018-06-04 | B46: 532796 | C46: LUMAXTECH | D46: AL MEHWAR COMMERCIAL INVSTMENTS LLC WHITING | E46: BUY | F46: 72,259 | G46: 770 | H46: BSE
A47: 2018-06-04 | B47: 539207 | C47: MANPASAND | D47: ABU DHABI INVESTMENT COUNCIL NOOSA | E47: SELL | F47: 976,000 | G47: 203 | H47: BSE
A48: 2018-06-04 | B48: 539207 | C48: MANPASAND | D48: AL MEHWAR COMMERCIAL INVSTMENTS LLC NOOSA | E48: BUY | F48: 976,000 | G48: 203 | H48: BSE
A49: 2018-06-04 | B49: 539889 | C49: PARAGMILK | D49: ABU DHABI INVESTMENT COUNCIL WHITING | E49: SELL | F49: 476,953 | G49: 331 | H49: BSE
A50: 2018-06-04 | B50: 539889 | C50: PARAGMILK | D50: AL MEHWAR COMMERCIAL INVSTMENTS LLC WHITING | E50: BUY | F50: 476,953 | G50: 331 | H50: BSE
A51: 2018-06-04 | B51: 539195 | C51: POEL | D51: ARDEE INDUSTRIES PRIVATE LTD | E51: SELL | F51: 29,440 | G51: 74.9 | H51: BSE
A52: 2018-06-04 | B52: 539195 | C52: POEL | D52: PARANTHAMAN T | E52: BUY | F52: 29,440 | G52: 74.9 | H52: BSE
A53: 2018-06-04 | B53: 532370 | C53: RAMCOSYS | D53: ABU DHABI INVESTMENT COUNCIL JOHO | E53: SELL | F53: 379,548 | G53: 365 | H53: BSE
A54: 2018-06-04 | B54: 532370 | C54: RAMCOSYS | D54: AL MEHWAR COMMERCIAL INVSTMENTS LLC JOHO | E54: BUY | F54: 379,548 | G54: 365 | H54: BSE
A55: 2018-06-04 | B55: 517548 | C55: STARLITE | D55: DEEPAK KUMAR | E55: SELL | F55: 126,063 | G55: 21.8 | H55: BSE
A56: 2018-06-04 | B56: 512179 | C56: SUNTECK | D56: ABU DHABI INVESTMENT COUNCIL NOOSA | E56: SELL | F56: 1,176,800 | G56: 385 | H56: BSE
A57: 2018-06-04 | B57: 512179 | C57: SUNTECK | D57: AL MEHWAR COMMERCIAL INVSTMENTS LLC NOOSA | E57: BUY | F57: 1,176,800 | G57: 385 | H57: BSE
A58: 2018-06-04 | B58: 539871 | C58: THYROCARE | D58: ABU DHABI INVESTMENT COUNCIL NOOSA | E58: SELL | F58: 795,000 | G58: 618 | H58: BSE
A59: 2018-06-04 | B59: 539871 | C59: THYROCARE | D59: AL MEHWAR COMMERCIAL INVSTMENTS LLC NOOSA | E59: BUY | F59: 795,000 | G59: 618 | H59: BSE
A60: 2018-06-04 | B60: 539402 | C60: VAL | D60: MAXIMUS INTERNATIONAL LIMITED | E60: BUY | F60: 120,000 | G60: 20 | H60: BSE
A61: 2018-06-04 | B61: 539402 | C61: VAL | D61: OPTIMUS FINANCE LIMITED | E61: SELL | F61: 120,000 | G61: 20 | H61: BSE
A62: 2018-06-04 | B62: BHUSANSTL | C62: Bhushan Steel Limited | D62: BP FINTRADE PRIVATE LIMITED | E62: BUY | F62: 2,207,486 | G62: 45.05 | H62: NSE
A63: 2018-06-04 | B63: GSS | C63: GSS Infotech Limited | D63: BP FINTRADE PRIVATE LIMITED | E63: BUY | F63: 92,967 | G63: 84.96 | H63: NSE
A64: 2018-06-04 | B64: GSS | C64: GSS Infotech Limited | D64: LIMITED HANS METALS | E64: BUY | F64: 147,034 | G64: 85.4 | H64: NSE
A65: 2018-06-04 | B65: GSS | C65: GSS Infotech Limited | D65: RAKESH HATHIBHAI PATEL | E65: BUY | F65: 201,000 | G65: 84.69 | H65: NSE
A66: 2018-06-04 | B66: GSS | C66: GSS Infotech Limited | D66: VICKY R. JHAVERI | E66: BUY | F66: 217,454 | G66: 84.55 | H66: NSE
A67: 2018-06-04 | B67: JBFIND | C67: JBF INDUSTRIES LTD | D67: AL MEHWAR COMMERCIAL INVSTMENTS LLC | E67: BUY | F67: 1,057,000 | G67: 82.1 | H67: NSE
A68: 2018-06-04 | B68: JUSTDIAL | C68: Justdial Ltd. | D68: CROSSLAND TRADING CO | E68: BUY | F68: 439,210 | G68: 568.85 | H68: NSE
A69: 2018-06-04 | B69: JUSTDIAL | C69: Justdial Ltd. | D69: SHAASTRA SECURITIES TRADING PRIVATE LIMITED | E69: BUY | F69: 364,285 | G69: 569.24 | H69: NSE
A70: 2018-06-04 | B70: MITTAL | C70: Mittal Life Style Limited | D70: CHOICE EQUITY BROKING PRIVATE LIMITED | E70: BUY | F70: 48,000 | G70: 21.5 | H70: NSE
A71: 2018-06-04 | B71: PCJEWELLER | C71: PC Jeweller Ltd | D71: CROSSLAND TRADING CO | E71: BUY | F71: 2,201,989 | G71: 136.91 | H71: NSE
A72: 2018-06-04 | B72: SUULD | C72: Suumaya Lifestyle Limited | D72: EVERGREEN TRAFIN PRIVATE LIMITED | E72: BUY | F72: 144,000 | G72: 17.87 | H72: NSE
A73: 2018-06-04 | B73: SUULD | C73: Suumaya Lifestyle Limited | D73: MACRO DEALCOMM PRIVATE LIMITED | E73: BUY | F73: 560,000 | G73: 17.88 | H73: NSE
A74: 2018-06-04 | B74: SUULD | C74: Suumaya Lifestyle Limited | D74: MACRO DEALCOMM PRIVATE LIMITED | E74: BUY | F74: 136,000 | G74: 17.86 | H74: NSE
A75: 2018-06-04 | B75: SUULD | C75: Suumaya Lifestyle Limited | D75: SHRI MAHALAXMI AGRICULTURAL DEVELOPMENTS LIMITED | E75: BUY | F75: 152,000 | G75: 18 | H75: NSE
A76: 2018-06-04 | B76: SUULD | C76: Suumaya Lifestyle Limited | D76: SUNCARE TRADERS LIMITED | E76: BUY | F76: 168,000 | G76: 17.89 | H76: NSE
A77: 2018-06-04 | B77: SVLL | C77: Shree Vasu Logistics Ltd | D77: AJAY PARAKH | E77: BUY | F77: 117,000 | G77: 48.08 | H77: NSE
A78: 2018-06-04 | B78: SVLL | C78: Shree Vasu Logistics Ltd | D78: B D PLYWOODS PRIVATE LIMITED | E78: BUY | F78: 93,000 | G78: 48 | H78: NSE
A79: 2018-06-04 | B79: SVLL | C79: Shree Vasu Logistics Ltd | D79: SANJIV RATHI HUF | E79: BUY | F79: 39000 | G79: 48.14 | H79: NSE
A80: 2018-06-04 | B80: BHUSANSTL | C80: Bhushan Steel Limited | D80: BP FINTRADE PRIVATE LIMITED | E80: SELL | F80: 2208218 | G80: 45.53 | H80: NSE
A81: 2018-06-04 | B81: GSS | C81: GSS Infotech Limited | D81: BP FINTRADE PRIVATE LIMITED | E81: SELL | F81: 92967 | G81: 86.09 | H81: NSE
A82: 2018-06-04 | B82: GSS | C82: GSS Infotech Limited | D82: LIMITED HANS METALS | E82: SELL | F82: 147034 | G82: 85.08 | H82: NSE
A83: 2018-06-04 | B83: GSS | C83: GSS Infotech Limited | D83: VICKY R. JHAVERI | E83: SELL | F83: 217454 | G83: 84.67 | H83: NSE
A84: 2018-06-04 | B84: JBFIND | C84: JBF INDUSTRIES LTD | D84: AL MEHWAR COMMERCIAL INVSTMENTS LLC | E84: SELL | F84: 1057000 | G84: 82.1 | H84: NSE
A85: 2018-06-04 | B85: JUSTDIAL | C85: Justdial Ltd. | D85: CROSSLAND TRADING CO | E85: SELL | F85: 439210 | G85: 568.95 | H85: NSE
A86: 2018-06-04 | B86: JUSTDIAL | C86: Justdial Ltd. | D86: SHAASTRA SECURITIES TRADING PRIVATE LIMITED | E86: SELL | F86: 364285 | G86: 569.36 | H86: NSE
A87: 2018-06-04 | B87: PCJEWELLER | C87: PC Jeweller Ltd | D87: CROSSLAND TRADING CO | E87: SELL | F87: 2201989 | G87: 137.05 | H87: NSE
A88: 2018-06-04 | B88: SARDAEN | C88: Sarda Energy & Min Ltd | D88: ASIA MINERALS LIMITED | E88: SELL | F88: 265000 | G88: 398.69 | H88: NSE
A89: 2018-06-04 | B89: SHANKARA | C89: Shankara Bldg Product Ltd | D89: ALLIANT TECHSYSTEMS INC. DEFINED BENEFIT MASTER TRUST | E89: SELL | F89: 117424 | G89: 1535.15 | H89: NSE
A90: 2018-06-04 | B90: SUULD | C90: Suumaya Lifestyle Limited | D90: JAIN DEVICHAND VIKRAMKUMAR | E90: SELL | F90: 200000 | G90: 17.84 | H90: NSE

Sheet Call Tracker (Equity & F&O)
M5: Back To Main Page
A6: Retail Research Technical Calls & Fundamental Performance Report for the month of June -2018
M7: =Main!B10 -> 2018-06-05
B8: Positional Call
A9: Sr.no | B9: Date | D9: Company | E9: Rec | F9: Rec Price | G9: Stop Loss*** | H9: Call Closed At | I9: Target | J9: Remark | K9: Profit / Loss per Share | L9: Gain / Loss % | M9: Status | N9: Closed Date | O9: NSE Closed Price
A10: 1 | B10: 2018-05-04 | D10: HCLTECH | E10: Buy | F10: 920-930 | G10: 890 | I10: 980-990 | J10: Open | O10: =VLOOKUP(D10,Sheet2!$A$1:M2159,6,0) -> 900.7 | R10: H
A11: 2 | B11: 2018-05-25 | D11: MARUTI | E11: Buy | F11: 8440 | G11: 8190 | H11: =(8640+8805)/2 -> 8722.5 | I11: 8850-8900 | J11: Profit of Rs.282.5/- | K11: =H11-F11 -> 282.5 | L11: =K11/F11 -> 3.35% | M11: Successful | N11: 2018-06-01 | R11: R
A12: 3 | B12: 2018-05-29 | D12: CHOLAFIN | E12: Buy | F12: 1530 | G12: 1460 | H12: 1582.5 | I12: 1620-1640 | J12: Profit of Rs.52.5/- | K12: =H12-F12 -> 52.5 | L12: 3.43% | M12: Successful | N12: 2018-06-01 | R12: R
A13: 4 | B13: 2018-05-30 | D13: HEXAWARE | E13: Sell | F13: 447 | G13: 465 | H13: 434.5 | I13: 415-405 | J13: Profit of Rs.12.5/- | K13: =F13-H13 -> 12.5 | L13: 2.80% | M13: Successful | N13: 2018-06-01 | R13: H
A14: 5 | B14: 2018-05-30 | D14: VEDL | E14: Buy | F14: 248 | G14: 237 | H14: 258 | I14: 268-272 | J14: Profit of Rs.10/- | K14: =H14-F14 -> 10 | L14: =K14/F14 -> 4.03% | M14: Successful | N14: 2018-06-01 | R14: R
A15: 6 | B15: 2018-06-01 | D15: ZEEL | E15: Buy | F15: 555-560 | G15: 539 | I15: 590-600 | J15: Open | O15: =VLOOKUP(D15,Sheet2!$A$1:M2164,6,0) -> 560.25 | R15: H
A16: 7 | B16: 2018-06-01 | D16: UPL | E16: Buy | F16: 700-704 | G16: 668 | I16: 750-760 | J16: Open | O16: =VLOOKUP(D16,Sheet2!$A$1:M2165,6,0) -> 686.45 | R16: H
A17: 8 | B17: 2018-06-04 | D17: CROMPTON | E17: Buy | F17: 220-222 | G17: 209 | I17: 235-240 | J17: Open | O17: =VLOOKUP(D17,Sheet2!$A$1:M2166,6,0) -> 223.85 | R17: R
A33: CLBS = Closing Basis *** | F33: Reinitiated $
A34: Dividend adjusted <> | F34: Revised stoploss #
A36: Master Trade High Risk
A37: Sr.no | B37: Date | D37: Company | E37: Rec | F37: Rec Price | G37: Stop Loss | H37: Call Closed At | I37: Target | J37: Remark | K37: Profit / Loss per share | L37: Gain / Loss per Lot | M37: Lot | N37: Status | O37: Closed Date
A47: Master Trade Medium Risk
A48: Sr.no | B48: Date | D48: Company | E48: Rec | F48: Rec Price | G48: Stop Loss | H48: Call Closed At | I48: Target | J48: Remark | K48: Profit/Loss per lot | L48: Gain / Loss per Lot | M48: Lot | N48: Status | O48: Closed Date
B58: Smart Delivery Trade
A59: Sr.no | B59: Date | D59: Company | E59: Rec | F59: Rec Price | G59: Stop Loss*** | H59: Call Closed At | I59: Target | J59: Remark | K59: Profit / Loss per Share | L59: Gain / Loss % | M59: Status | N59: Closed Date | O59: NSE Closed Price
A60: 1 | B60: 2018-05-29 | D60: TATASTEEL | E60: Buy | F60: 575-580 | G60: 555 | I60: 600-610 | J60: Open | O60: =VLOOKUP(D60,Sheet2!$A$1:M2233,6,0) -> 566.15 | R60: R
A61: 2 | B61: 2018-05-29 | D61: RELIANCE | E61: Buy | F61: 925 | G61: 898 | H61: 943 | I61: 960-970 | J61: Profit of Rs.18/- | K61: =H61-F61 -> 18 | L61: =K61/F61 -> 1.95% | M61: Successful | N61: 2018-06-04 | R61: R
A62: 3 | B62: 2018-05-30 | D62: CADILAHC | E62: Buy | F62: 367 | G62: 357 | H62: 355 | I62: 380-388 | J62: Loss of Rs.12/- | K62: =H62-F62 -> -12.00 | L62: =K62/F62 -> -3.27% | M62: Unsuccessful | N62: 2018-06-01 | R62: H
A63: 4 | B63: 2018-05-30 | D63: TATAMOTORS | E63: Buy | F63: 289-291 | G63: 279 | I63: 305-310 | J63: Open | O63: =VLOOKUP(D63,Sheet2!$A$1:M2236,6,0) -> 286.65 | R63: H
A64: 5 | B64: 2018-05-30 | D64: ITC | E64: Buy | F64: 270-272 | G64: 262 | I64: 285-290 | J64: Open | O64: =VLOOKUP(D64,Sheet2!$A$1:M2237,6,0) -> 268.9 | R64: H
A65: 6 | B65: 2018-05-30 | D65: AMARAJABAT | E65: Buy | F65: 792 | G65: 768 | H65: 768 | I65: 830-840 | J65: Loss of Rs.24/- | K65: =H65-F65 -> -24.00 | L65: =K65/F65 -> -3.03% | M65: Unsuccessful | N65: 2018-06-04 | R65: R
A66: 7 | B66: 2018-05-30 | D66: LICHSGFIN | E66: Buy | F66: 474-476 | G66: 460 | I66: 495-500 | J66: Open | O66: =VLOOKUP(D66,Sheet2!$A$1:M2239,6,0) -> 474.1 | R66: R
A67: 8 | B67: 2018-06-01 | D67: HINDALCO | E67: Buy | F67: 233.5 | G67: 227 | H67: 240.5 | I67: 245 | J67: Profit of Rs.7/- | K67: =H67-F67 -> 7 | L67: =K67/F67 -> 3.00% | M67: Successful | N67: 2018-06-04 | R67: H
A81: CLBS = Closing Basis *** | F81: Reinitiated $
A82: Dividend adjusted <> | F82: Revised stoploss #
B85: Momentum Call
A86: Sr.no | B86: Date | D86: Company | E86: Rec | F86: Rec Price | G86: Stop Loss | H86: Call Closed At | I86: Target | J86: Remark | K86: Profit / Loss per Share/Lot | L86: Gain / Loss % | M86: Gain / Loss per Lot | N86: Lot | O86: Status | P86: Closed Date | Q86: NSE Closed Price
A87: 1 | B87: 2018-06-04 | D87: APOLLOTYRE | E87: Buy | F87: 267-269 | G87: 260 | I87: 280-285 | J87: Open | R87: H
A97: CLBS = Closing Basis *** | F97: Reinitiated $
A98: Dividend adjusted <> | F98: Revised stoploss #
B100: Quick Pick Intraday
A101: Sr.no | B101: Date | D101: Company | E101: Rec | F101: Rec Price | G101: Stop Loss*** | H101: Call Closed At | I101: Target | J101: Remark | K101: Profit / Loss per Share | L101: Status | M101: Closed Date
A102: 1 | B102: 2018-06-04 | D102: BAJFINANCE | E102: Buy | F102: 2082.5 | G102: 2057 | H102: 2067.5 | I102: 2150 | J102: Loss of Rs.15/- | K102: =H102-F102 -> -15 | L102: Neutral | M102: 2018-06-04 | R102: R
A115: Techno -Funda (positional)
A116: Sr.no | B116: Date | D116: Company | E116: Rec | F116: Rec Price | G116: Stop Loss*** | H116: Call Closed At | I116: Target | J116: Remark | K116: Profit / Loss per Share | L116: Gain / Loss % | M116: Status | N116: Closed Date | O116: NSE Closed Price
A117: 1 | B117: 2018-06-04 | D117: BAJAJ-AUTO | E117: Buy | F117: 2875-2895 | G117: 2730 | I117: 3170-3200 | J117: Open | R117: H
A119: CLBS = Closing Basis *** | F119: Reinitiated $
A120: Dividend adjusted <> | F120: Revised stoploss #
B125: Investment Idea
A126: Sr.no | B126: Date | D126: Company | E126: Rec | F126: Rec Price | G126: Point of Review | H126: Close Rate | I126: Target | J126: Remark | K126: Profit / Loss per Share | L126: Gain / Loss % | M126: Status | N126: Closed Date
A127: 1 | B127: 2013-11-01 | D127: L&T Finance Holding | E127: Accu | F127: 82.00 | G127: - | H127: 100 | I127: 100.00 | J127: Target Achieved | K127: =H127-F127 -> 18.00 | L127: =K127/F127 -> 21.95% | M127: Successful | N127: 2016-10-14
A128: 2 | B128: 2014-06-04 | D128: Finolex Inds | E128: Buy | F128: 257.00 | G128: - | H128: 300 | I128: 300.00 | J128: Target Achieved | K128: =H128-F128 -> 43.00 | L128: 16.73% | M128: Successful | N128: 2014-07-02
A129: =1+A128 -> 3 | B129: 2014-07-08 | D129: JK Cement | E129: Buy | F129: 393.00 | G129: - | H129: 468 | I129: 468.00 | J129: Target Achieved | K129: =H129-F129 -> 75.00 | L129: 19.08% | M129: Successful | N129: 2014-08-12
A130: 4 | B130: 2014-08-06 | D130: Finolex Cables | E130: Buy | F130: 205.00 | G130: - | H130: 275 | I130: 250.00 | J130: Target Achieved | K130: 70.00 | L130: 34.15% | M130: Successful | N130: 2014-11-19
A131: 5 | B131: 2014-09-04 | D131: Exide Inds | E131: Buy | F131: 162.00 | G131: - | H131: 190 | I131: 190.00 | J131: Target Achieved | K131: 28.00 | L131: 17.28% | M131: Successful | N131: 2015-01-02
A132: 6 | B132: 2014-09-04 | D132: Deepak Nitrite | E132: Buy | F132: 75.00 | G132: - | H132: 91.5 | I132: 95-100 | J132: Profit of Rs.16.50/- | K132: 16.50 | L132: 22.00% | M132: Successful | N132: 2014-11-11
A133: 7 | B133: 2014-10-01 | D133: Mercks | E133: Buy | F133: 850.00 | G133: - | H133: 982.5 | I133: 1050.00 | J133: Profit of Rs.132.50/- | K133: 132.50 | L133: 15.59% | M133: Successful | N133: 2015-02-04
A134: 8 | B134: 2014-10-01 | D134: Grindwell Norton | E134: Buy | F134: 475.00 | G134: - | H134: 515 | I134: 600.00 | J134: Profit of Rs.40/- | K134: 40.00 | L134: 8.42% | M134: Successful | N134: 2014-10-27
A135: 9 | B135: 2014-10-01 | D135: Snowman Logistics | E135: Buy | F135: 86.00 | G135: - | H135: 99 | I135: 140.00 | J135: Profit of Rs.13.00/- | K135: 13.00 | L135: 15.12% | M135: Successful | N135: 2014-10-27
A136: 10 | B136: 2014-10-14 | D136: Birla Corp | E136: Buy | F136: 496.60 | G136: - | H136: 621 | I136: 580.00 | J136: Target Achieved | K136: 124.40 | L136: 25.05% | M136: Successful | N136: 2016-08-23
A137: 11 | B137: 2014-10-14 | D137: Ultratech Cem | E137: Buy | F137: 2481.90 | G137: - | H137: 2840 | I137: 2870.00 | J137: Profit of Rs.358.10/- | K137: 358.10 | L137: 14.43% | M137: Successful | N137: 2015-01-13
A138: =1+A135 -> 10 | B138: 2014-10-16 | D138: Sintex Inds | E138: Buy | F138: 84.50 | G138: - | H138: 93 | I138: 110.00 | J138: Profit of Rs.8.50/- | K138: 8.50 | L138: 10.06% | M138: Successful | N138: 2014-10-27
A139: =1+A138 -> 11 | B139: 2014-10-16 | D139: HSIL | E139: Buy | F139: 401.00 | G139: - | H139: 428 | I139: 450.00 | J139: Profit of Rs.27.00/- | K139: 27.00 | L139: 6.73% | M139: Successful | N139: 2015-01-16
A140: 12 | B140: 2014-10-16 | D140: Eveready Inds | E140: Buy | F140: 101.00 | G140: - | H140: 112 | I140: 120.00 | J140: Profit of Rs.11.00/- | K140: 11.00 | L140: 10.89% | M140: Successful | N140: 2014-10-27
A141: 13 | B141: 2014-11-11 | D141: Pennar Inds | E141: Buy | F141: 59.00 | G141: - | H141: 76 | I141: 76.00 | J141: Target Achieved | K141: 17.00 | L141: 28.81% | M141: Successful | N141: 2017-10-24
A142: 14 | B142: 2014-11-11 | D142: Snowman Logistics | E142: Buy | F142: 99.00 | G142: - | H142: 120 | I142: 120.00 | J142: Profit of Rs.21/- | K142: 21.00 | L142: 21.21% | M142: Successful | N142: 2014-11-17
A143: 15 | B143: 2014-11-13 | D143: Dharamsi Morarji Chem | E143: Buy | F143: 22.00 | G143: - | H143: 33.55 | I143: 32.00 | J143: Profit of Rs 11.55/- | K143: 11.55 | L143: 52.50% | M143: Successful | N143: 2015-07-03
A144: 16 | B144: 2014-12-03 | D144: Tatachem | E144: Buy | F144: 440.00 | G144: - | H144: 520 | I144: 520.00 | J144: Profit of Rs 80.00/- | K144: 80.00 | L144: 18.18% | M144: Successful | N144: 2015-07-23
A145: 17 | B145: 2014-12-03 | D145: Advanta | E145: Buy | F145: 360.00 | G145: - | H145: 427 | I145: 425.00 | J145: Profit of Rs.67.00/- | K145: 67.00 | L145: 18.61% | M145: Successful | N145: 2015-02-23
A146: 18 | B146: 2015-01-08 | D146: GDL | E146: Buy | F146: 360.00 | G146: - | H146: 455 | I146: 420.00 | J146: Profit of Rs.95.00/- | K146: 95.00 | L146: 26.39% | M146: Successful | N146: 2015-01-20
A147: 19 | B147: 2015-01-08 | D147: NRB Bearing | E147: Buy | F147: 130.00 | H147: 175.5 | I147: 165.00 | J147: Profit of Rs 45.50/- | K147: 45.50 | L147: 35.00% | M147: Successful | N147: 2017-12-19
A148: 20 | B148: 2015-02-05 | D148: GSFC | E148: Accu | F148: 98.00 | H148: 120 | I148: 120.00 | J148: Target Achieved | K148: 22.00 | L148: 22.45% | M148: Successful | N148: 2017-01-18
A149: 21 | B149: 2015-02-05 | D149: Sundrmfast | E149: Accu | F149: 196.00 | H149: 262 | I149: 255.00 | J149: Target Achieved | K149: 66.00 | L149: 33.67% | M149: Successful | N149: 2016-08-17
A150: 22 | B150: 2015-03-04 | D150: GPPL | E150: Accu | F150: 230-240 | I150: 280-285 | J150: Open
A151: 23 | B151: 2015-03-04 | D151: ORIENTCEM | E151: Accu | F151: 185.00 | H151: 224 | I151: 220-225 | J151: Target Achieved | K151: 39.00 | L151: =K151/F151 -> 21.08% | M151: Successful | N151: 2016-10-04
A152: 24 | B152: 2015-03-27 | D152: PFS | E152: Accu | F152: 49-50 | I152: 67.00 | J152: Open
A153: 25 | B153: 2015-03-30 | D153: Walchandnagar Ind Ltd | E153: Accu | F153: 183.50 | H153: 219 | I153: 218.00 | J153: Profit of Rs.35.50/- | K153: 35.50 | L153: =K153/F153 -> 19.35% | M153: Successful | N153: 2015-04-09
A154: 26 | B154: 2015-04-20 | D154: Kalpataru Power Transmission Ltd | E154: Accu | F154: =(227+237)/2 -> 232.00 | H154: 298 | I154: 298.00 | J154: Target Achieved | K154: 66.00 | L154: 28.45% | M154: Successful | N154: 2017-03-29
A155: 27 | B155: 2015-05-04 | D155: Mastek Ltd | E155: Buy | F155: 385.00 | H155: =212.5+331 -> 543.5 | I155: 510.00 | J155: Profit of Rs 158.50/- | K155: 158.50 | L155: 41.17% | M155: Successful | N155: 2015-08-19
A156: 28 | B156: 2015-05-04 | D156: Suprajit Eng | E156: Buy | F156: 115.50 | H156: 146 | I156: 142.00 | J156: Profit of Rs 30.50/- | K156: 30.50 | L156: 26.41% | M156: Successful | N156: 2015-07-17
A157: 29 | B157: 2015-05-27 | D157: TCI | E157: Buy | F157: 237.50 | H157: 279.5 | I157: 278.00 | J157: Target Achieved | K157: 42.00 | L157: 17.68% | M157: Successful | N157: 2015-08-06
A158: 30 | B158: 2015-06-19 | D158: HSIL | E158: Accu | F158: 340.00 | H158: 448 | I158: 448.00 | J158: Target Achieved | K158: 108.00 | L158: 31.76% | M158: Successful | N158: 2017-10-10
A159: 31 | B159: 2015-07-06 | D159: Capital First | E159: Accu | F159: 390.00 | H159: 460 | I159: 460.00 | J159: Target Achieved | K159: 70.00 | L159: 17.95% | M159: Successful | N159: 2016-04-18
A160: 32 | B160: 2015-07-10 | D160: Dolphin OffShore | E160: Accu | F160: 118-127 | I160: 172.00 | J160: Open
A161: 33 | B161: 2015-08-03 | D161: Allcargo logistics | E161: Accu | F161: 297.50 | H161: 350 | I161: 360.00 | J161: Profit of Rs 52.50/- | K161: 52.50 | L161: =K161/F161 -> 17.65% | M161: Successful | N161: 2015-08-16
A162: 34 | B162: 2015-08-03 | D162: Camline Fine | E162: Accu | F162: 115.50 | H162: 149 | I162: 140.00 | J162: Profit of Rs 33.50/- | K162: 33.50 | L162: 29.00% | M162: Successful | N162: 2017-01-05
A163: 35 | B163: 2015-09-04 | D163: TCI | E163: Accu | F163: 226.00 | H163: 292 | I163: 292.00 | J163: Target Achieved | K163: 66.00 | L163: 29.20% | M163: Successful | N163: 2015-10-09
A164: 36 | B164: 2015-09-07 | D164: Kalpataru Power Transmission Ltd | E164: Accu | F164: 232.50 | H164: 312.5 | I164: 310.00 | J164: Target Achieved | K164: 80.00 | L164: 34.41% | M164: Successful | N164: 2017-03-29
A165: 37 | B165: 2015-09-21 | D165: LLOYD ELECTRIC & ENG LTD | E165: Accu | F165: 196.50 | H165: 238 | I165: 238.00 | J165: Target Achieved | K165: 41.50 | L165: 21.12% | M165: Successful | N165: 2015-10-14
A166: 38 | B166: 2015-09-24 | D166: L&T Finance Holding | E166: Accu | F166: 65.00 | H166: 82 | I166: 82.00 | J166: Target Achieved | K166: 17.00 | L166: 26.15% | M166: Successful | N166: 2016-07-27
A167: 39 | B167: 2015-10-14 | D167: KEC International ltd | E167: Accu | F167: 144.00 | H167: 182.5 | I167: 181.00 | J167: Target Achieved | K167: 38.50 | L167: 26.74% | M167: Successful | N167: 2017-03-23
A168: 40 | B168: 2015-10-14 | D168: Gruh Finance | E168: Accu | F168: 264.00 | H168: 311 | I168: 311.00 | J168: Target Achieved | K168: 47.00 | L168: 17.80% | M168: Successful | N168: 2016-08-22
A169: 41 | B169: 2015-11-10 | D169: Pidilitind | E169: Buy | F169: 549.50 | H169: 630 | I169: 630.00 | J169: Target Achieved | K169: 80.50 | L169: 14.65% | M169: Successful | N169: 2016-02-19
A170: 42 | B170: 2015-12-04 | D170: Zensar Technology | E170: Accu | F170: 1027.50 | H170: 1315 | I170: 1250.00 | J170: Target Achieved | K170: =H170-F170 -> 287.50 | L170: 27.98% | M170: Successful | N170: 2018-05-24
A171: 43 | B171: 2015-12-29 | D171: Vinati Organics Ltd | E171: Accu | F171: 465.00 | H171: 540 | I171: 540.00 | J171: Target Achieved | K171: 75.00 | L171: =K171/F171 -> 16.13% | M171: Successful | N171: 2016-06-09
A172: 44 | B172: 2016-01-11 | D172: GSFC | E172: Buy | F172: 81.00 | H172: 110 | I172: 110.00 | J172: Target Achieved | K172: 29.00 | L172: 35.80% | M172: Successful | N172: 2017-01-10
A173: 45 | B173: 2016-01-13 | D173: SSWL | E173: Buy | F173: 417.50 | H173: 547 | I173: 535.00 | J173: Target Achieved | K173: 129.50 | L173: 31.02% | M173: Successful | N173: 2016-07-27
A174: 46 | B174: 2016-02-08 | D174: Persistent System Ltd | E174: Accu | F174: 650.00 | H174: 800 | I174: 800.00 | J174: Target Achieved | K174: 150.00 | L174: 23.08% | M174: Successful | N174: 2018-02-23
A175: 47 | B175: 2016-03-04 | D175: UPL | E175: Accu | F175: 437.50 | H175: 504.5 | I175: 522.00 | J175: Profit of Rs.67/- | K175: 67.00 | L175: 15.31% | M175: Successful | N175: 2016-04-20
A176: 48 | B176: 2016-03-09 | D176: Ashoka Buildcon Ltd | E176: Accu | F176: 189.50 | H176: 218 | I176: 218.00 | J176: Target Achieved | K176: 28.50 | L176: 15.04% | M176: Successful | N176: 2017-10-26
A177: 49 | B177: 2016-04-11 | D177: PTC INDIA FIN SERV LTD | E177: Accu | F177: 36-37 | I177: 60.00 | J177: Open
A178: 50 | B178: 2016-04-12 | D178: CAMLINFINE $ | E178: Accu | F178: 93.00 | H178: 149 | I178: 140.00 | J178: Profit of Rs 56/- | K178: 56.00 | L178: =K178/F178 -> 60.22% | M178: Successful | N178: 2017-01-05
A179: 51 | B179: 2016-04-12 | D179: Greaves Cotton Ltd. | E179: Accu | F179: 130.00 | H179: 150 | I179: 150-155 | J179: Target Achieved | K179: 20.00 | L179: 15.38% | M179: Successful | N179: 2016-07-13
A180: 52 | B180: 2016-04-13 | D180: DHFL | E180: Accu | F180: 196.00 | H180: 299 | I180: 299.00 | J180: Target Achieved | K180: 103.00 | L180: 52.55% | M180: Successful | N180: 2016-09-07
A181: 53 | B181: 2016-04-13 | D181: Magma | E181: Accu | F181: 88.00 | H181: 103 | I181: 103.00 | J181: Target Achieved | K181: 15.00 | L181: 17.05% | M181: Successful | N181: 2016-06-09
A182: 54 | B182: 2016-05-02 | D182: KEC International ltd $ | E182: Accu | F182: 127.50 | H182: 148 | I182: 148-150 | J182: Target Achieved | K182: 20.50 | L182: 16.08% | M182: Successful | N182: 2016-07-13
A183: 55 | B183: 2016-05-03 | D183: Mindtree | E183: Accu | F183: 675.00 | H183: 815 | I183: 790-800 | J183: Target Achieved | K183: 140.00 | L183: 20.74% | M183: Successful | N183: 2018-02-23
A184: 56 | B184: 2016-06-01 | D184: Atulauto | E184: Accu | F184: 495-505 | I184: 565-570 | J184: Open
A185: 57 | B185: 2016-06-06 | D185: TRITURBINE | E185: Accu | F185: 110.00 | H185: 126.5 | I185: 125.00 | J185: Profit of Rs.16.50/- | K185: 16.50 | L185: =K185/F185 -> 15.00% | M185: Successful | N185: 2016-07-01
A186: 58 | B186: 2016-06-17 | D186: Pennar Industries Ltd | E186: Accu | F186: 44.00 | H186: 69.5 | I186: 69.50 | J186: Profit of Rs.25.50/- | K186: 25.50 | L186: =K186/F186 -> 57.95% | M186: Successful | N186: 2017-08-30
A187: 59 | B187: 2016-06-28 | D187: EVEREADY INDS. IND. LTD. | E187: Accu | F187: 262.50 | H187: 340 | I187: 333.00 | J187: Profit of Rs.77.50/- | K187: 77.50 | L187: =K187/F187 -> 29.52% | M187: Successful | N187: 2017-10-09
A188: 60 | B188: 2016-06-28 | D188: FIEM INDUSTRIES LIMITED | E188: Accu | F188: 840.00 | H188: 1230 | I188: 1230.00 | J188: Target Achieved | K188: 390.00 | L188: =K188/F188 -> 46.43% | M188: Successful | N188: 2016-10-06
A189: 61 | B189: 2016-07-05 | D189: Bajaj Corp Ltd | E189: Accu | F189: 395 | H189: 468.50 | I189: 510.00 | J189: Part profit of Rs.73.50/- | K189: 73.50 | L189: =K189/F189 -> 19% | M189: Successful | N189: 2017-08-30
A190: 62 | B190: 2016-08-02 | D190: GPPL $ | E190: Buy | F190: 167-172 | I190: 198-200 | J190: Open
A191: 63 | B191: 2016-08-04 | D191: WONDERLA HOLIDAYS LTD | E191: Accu | F191: 395-405 | I191: 475.00 | J191: Open
A192: 64 | B192: 2016-08-11 | D192: CAMLINFINE | E192: Accu | F192: 86.50 | H192: 130 | I192: 130.00 | J192: Profit of Rs.43.50/- | K192: =H192-F192 -> 43.50 | L192: =K192/F192 -> 50.29% | M192: Successful | N192: 2017-12-22
A193: 65 | B193: 2016-08-18 | D193: GRANULES | E193: Accu | F193: 133.5 | H193: 126.50 | I193: 178.00 | J193: Exit | K193: -7.00 | L193: -5.24% | M193: Unsuccessful | N193: 2016-09-02
A194: 66 | B194: 2016-08-31 | D194: VA TECH WABAG | E194: Accu | F194: 560.00 | H194: 725 | I194: 725.00 | J194: Target Achieved | K194: 165.00 | L194: 29.46% | M194: Successful | N194: 2016-03-27
A195: 67 | B195: 2016-09-01 | D195: SKIPPER LIMITED | E195: Accu | F195: 160.50 | H195: 210 | I195: 210.00 | J195: Target Achieved | K195: 49.50 | L195: 30.84% | M195: Successful | N195: 2017-05-16
A196: 68 | B196: 2016-10-03 | D196: IFB Industries | E196: Accu | F196: 430.00 | H196: 596 | I196: 575.00 | J196: Profit of Rs.166/- | K196: 166.00 | L196: 38.60% | M196: Successful | N196: 2017-02-03
A197: 69 | B197: 2016-10-14 | D197: ASIANTILES | E197: Accu | F197: 280.00 | H197: 345 | I197: 345.00 | J197: Target Achieved | K197: 65.00 | L197: 23.21% | M197: Successful | N197: 2017-03-20
A198: 70 | B198: 2016-10-14 | D198: DEEPIND | E198: Accu | F198: 245.00 | H198: 325.5 | I198: 330.00 | J198: Profit of Rs.80.5/- | K198: 80.50 | L198: 32.86% | M198: Successful | N198: 2017-02-03
A199: 71 | B199: 2016-10-17 | D199: DCBBANK | E199: Accu | F199: 125.00 | H199: 160 | I199: 160.00 | J199: Target Achieved | K199: 35.00 | L199: 28.00% | M199: Successful | N199: 2017-03-09
A200: 72 | B200: 2016-10-17 | D200: ORIENTREF | E200: Accu | F200: 114.00 | H200: 145 | I200: 145.00 | J200: Target Achieved | K200: 31.00 | L200: =K200/F200 -> 27.19% | M200: Successful | N200: 2017-05-04
A201: 73 | B201: 2016-10-17 | D201: GANECOS | E201: Accu | F201: 212.00 | H201: 280 | I201: 276.00 | J201: Profit of Rs.68/- | K201: 68.00 | L201: =K201/F201 -> 32.08% | M201: Successful | N201: 2017-05-03
A202: 74 | B202: 2016-11-04 | D202: NBCC | E202: Accu | F202: 155.00 | H202: 210 | I202: 210.00 | J202: Profit of Rs.55/- | K202: 55.00 | L202: =K202/F202 -> 35.48% | M202: Successful | N202: 2017-07-28
A203: 75 | B203: 2016-12-06 | D203: PRECAM | E203: Accu | F203: 148-153 | I203: 174.00 | J203: Open
A204: 76 | B204: 2016-12-08 | D204: INFRATEL | E204: Accu | F204: 380.00 | H204: 478 | I204: 468.00 | J204: Target Achieved | K204: 98.00 | L204: =K204/F204 -> 25.79% | M204: Successful | N204: 2017-10-17
A205: 77 | B205: 2016-12-30 | D205: GODREJPROP | E205: Accu | F205: 305.00 | H205: 375 | I205: 375.00 | J205: Target Achieved | K205: 70.00 | L205: 22.95% | M205: Successful | N205: 2017-02-02
A206: 78 | B206: 2017-01-04 | D206: DEEPAKNTR | E206: Accu | F206: 99.50 | H206: 158 | I206: 158.00 | J206: Target Achieved | K206: 58.50 | L206: 58.79% | M206: Successful | N206: 2017-06-12
A207: 79 | B207: 2017-02-20 | D207: SUBROS | E207: Accu | F207: 202.50 | H207: 234 | I207: 234.00 | J207: Target Achieved | K207: 31.50 | L207: 15.56% | M207: Successful | N207: 2017-04-11
A208: 80 | B208: 2017-02-20 | D208: RECLTD | E208: Accu | F208: 140.50 | H208: 220 | I208: 220.00 | J208: Target Achieved | K208: 79.50 | L208: 56.58% | M208: Successful | N208: 2017-05-09
A209: 81 | B209: 2017-03-24 | D209: VRLLOG | E209: Accu | F209: 300.50 | H209: 417.5 | I209: 420.00 | J209: Profit of Rs.117/- | K209: 117.00 | L209: 38.94% | M209: Successful | N209: 2017-12-01
A210: 82 | B210: 2017-03-24 | D210: FIEMIND | E210: Accu | F210: 850.00 | H210: 1042.5 | I210: 1023.00 | J210: Profit of Rs 192.50/- | K210: 192.50 | L210: 22.65% | M210: Successful | N210: 2017-04-05
A211: 83 | B211: 2017-04-05 | D211: RATNAMANI | E211: Accu | F211: 785.00 | H211: 930 | I211: 920.00 | J211: Profit of Rs.145/- | K211: 145.00 | L211: 18.47% | M211: Successful | N211: 2017-08-29
A212: 84 | B212: 2017-04-06 | D212: ZEEMEDIA | E212: Accu | F212: 39-41 | I212: 60.00 | J212: Open
A213: 85 | B213: 2017-04-12 | D213: DABUR | E213: Accu | F213: 289.50 | H213: 354 | I213: 360.00 | J213: Profit of Rs.64.5/- | K213: 64.50 | L213: =K213/F213 -> 22.28% | M213: Successful | N213: 2017-11-01
A214: 86 | B214: 2017-04-20 | D214: KPRMILL | E214: Accu | F214: 700.00 | H214: 840 | I214: 840.00 | J214: Profit of Rs.140/- | K214: 140.00 | L214: =K214/F214 -> 20.00% | M214: Successful | N214: 2017-06-07
A215: 87 | B215: 2017-05-22 | D215: GREAVESCOT | E215: Accu | F215: 153-158 | I215: 190.00 | J215: Open
A216: 88 | B216: 2017-06-01 | D216: ESSELPACK | E216: Accu | F216: 260 | H216: 311.00 | I216: 340.00 | J216: Part profit of Rs.51/- | K216: =H216-F216 -> 51.00 | L216: =K216/F216 -> 20% | M216: Successful | N216: 2017-11-17
A217: 89 | B217: 2017-06-15 | D217: KEI | E217: Accu | F217: 214.50 | H217: 262 | I217: 262.00 | J217: Profit of Rs.47.5/- | K217: =H217-F217 -> 47.50 | L217: 22.14% | M217: Successful | N217: 2017-08-30
A218: 90 | B218: 2017-07-17 | D218: MAYURUNIQ | E218: Accu | F218: 370.00 | H218: 447.5 | I218: 450.00 | J218: Target Achieved | K218: 77.50 | L218: 20.95% | M218: Successful | N218: 2017-10-27
A219: 91 | B219: 2017-07-27 | D219: RAMCOCEM | E219: Accu | F219: 657.50 | H219: 825 | I219: 820.00 | J219: Target Achieved | K219: 167.50 | L219: 25.48% | M219: Successful | N219: 2017-12-21
A220: 92 | B220: 2017-08-17 | D220: FINPIPE | E220: Accu | F220: 605.00 | H220: 750 | I220: 750.00 | J220: Profit of Rs.145/- | K220: 145.00 | L220: 23.97% | M220: Successful | N220: 2017-10-19
A221: 93 | B221: 2017-09-01 | D221: SHK | E221: Accu | F221: 255 | H221: 307.50 | I221: 320.00 | J221: Part profit of Rs.52.5/- | K221: 52.50 | L221: 21% | M221: Successful | N221: 2017-12-29
A222: 94 | B222: 2017-09-19 | D222: SKIPPER | E222: Accu | F222: 215.00 | H222: 258 | I222: 258.00 | J222: Target Achieved | K222: 43.00 | L222: 20.00% | M222: Successful | N222: 2017-11-01
A223: 95 | B223: 2017-09-20 | D223: CAMLINFINE | E223: Accu | F223: 75.00 | H223: 90 | I223: 90.00 | J223: Profit of Rs.15.00/- | K223: 15.00 | L223: 20.00% | M223: Successful | N223: 2017-10-11
A224: 96 | B224: 2017-10-03 | D224: GNA | E224: Accu | F224: 315.00 | H224: 392 | I224: 384.00 | J224: Profit of Rs.77/- | K224: 77.00 | L224: 24.44% | M224: Successful | N224: 2017-10-09
A225: 97 | B225: 2017-10-05 | D225: NOCIL | E225: Accu | F225: 145.00 | H225: 179 | I225: 180.00 | J225: Profit of Rs.34/- | K225: 34.00 | L225: 23.45% | M225: Successful | N225: 2017-10-17
A226: 98 | B226: 2017-10-06 | D226: CENTURYPLY | E226: Accu | F226: 256.00 | H226: 323 | I226: 320.00 | J226: Target Achieved | K226: 67.00 | L226: 26.17% | M226: Successful | N226: 2017-11-28
A227: 99 | B227: 2017-10-09 | D227: RECLTD | E227: Accu | F227: 152.5 | H227: 183.50 | I227: 210.00 | J227: Part Profit of Rs.31/- | K227: 31.00 | L227: 20% | M227: Successful | N227: 2017-11-03
A228: 100 | B228: 2017-10-09 | D228: EIHOTEL | E228: Accu | F228: 137.50 | H228: 184 | I228: 183.00 | J228: Profit of Rs.46.5/- | K228: 46.50 | L228: 33.82% | M228: Successful | N228: 2018-01-08
A229: 101 | B229: 2017-10-10 | D229: BOROSIL | E229: Accu | F229: 895.00 | H229: 1122.5 | I229: 1078.00 | J229: Profit of Rs.227.5/- | K229: 227.50 | L229: 25.42% | M229: Successful | N229: 2018-01-17
A230: 102 | B230: 2017-10-10 | D230: NRBBEARING | E230: Accu | F230: 125.50 | H230: 158 | I230: 155.00 | J230: Profit of Rs.32.5/- | K230: 32.50 | L230: 25.90% | M230: Successful | N230: 2017-11-28
A231: 103 | B231: 2017-10-12 | D231: CYIENT | E231: Accu | F231: 525.00 | H231: 629 | I231: 629.00 | J231: Target Achieved | K231: 104.00 | L231: 19.81% | M231: Successful | N231: 2018-01-19
A232: 104 | B232: 2017-11-07 | D232: HATSUN | E232: Accu | F232: 740.00 | H232: 892.5 | I232: 900.00 | J232: Profit of Rs.152.5/- | K232: 152.50 | L232: 20.61% | M232: Successful | N232: 2017-11-13
A233: 105 | B233: 2017-12-04 | D233: SANGHIIND | E233: Accu | F233: 118.50 | H233: 143.5 | I233: 145.00 | J233: Profit of Rs.25/- | K233: 25.00 | L233: 21.10% | M233: Successful | N233: 2017-12-28
A234: 106 | B234: 2017-12-05 | D234: ALLCARGO | E234: Accu | F234: 177.5 | H234: 215.00 | I234: 230.00 | J234: Part Profit of Rs.37.5/- | K234: 37.50 | L234: 21% | M234: Successful | N234: 2017-12-27
A235: 107 | B235: 2017-12-21 | D235: KAJARIACER | E235: Accu | F235: 710-720 | I235: 872.00 | J235: Open
A236: 108 | B236: 2017-12-29 | D236: GNA | E236: Accu | F236: 435.00 | H236: 542.5 | I236: 539.00 | J236: Target Achieved | K236: =H236-F236 -> 107.50 | L236: =K236/F236 -> 24.71% | M236: Successful | N236: 2018-04-16
A237: 109 | B237: 2017-12-29 | D237: ZENSARTECH | E237: Accu | F237: 885.00 | H237: 1090 | I237: 1084.00 | J237: Target Achieved | K237: 205.00 | L237: =K237/F237 -> 23.16% | M237: Successful | N237: 2018-04-23
A238: 110 | B238: 2018-02-07 | D238: GREAVESCOT | E238: Accu | F238: 130-132 | I238: 190.00 | J238: Open
A239: 111 | B239: 2018-02-27 | D239: MOLDTKPAC | E239: Accu | F239: 320-330 | I239: 398.00 | J239: Open
A240: 112 | B240: 2018-03-05 | D240: LICHSGFIN | E240: Accu | F240: 505-515 | I240: 672.00 | J240: Open
A241: 113 | B241: 2018-04-02 | D241: EVERESTIND | E241: Accu | F241: 485-500 | I241: 613.00 | J241: Open
A242: 114 | B242: 2018-04-04 | D242: GPPL | E242: Accu | F242: 140-143 | I242: 180.00 | J242: Open
A243: 115 | B243: 2018-04-19 | D243: MANPASAND | E243: Accu | F243: 430 | H243: 220.00 | I243: 537.00 | J243: Loss of Rs.210/- | K243: =H243-F243 -> -210.00 | L243: =K243/F243 -> -48.84% | M243: Unsuccessful | N243: 2018-06-01
A244: 116 | B244: 2018-04-30 | D244: HEIDELBERG | E244: Accu | F244: 154-158 | I244: 196.00 | J244: Open
A245: 117 | B245: 2018-05-17 | D245: PHILIPCARB | E245: Accu | F245: 230-240 | I245: 348.00 | J245: Open
F246: Reinitiated $
A248: Disclaimer:
A249: This document has been prepared by the Retail Research Desk of Asit C Mehta
A250: Investment Intermediates Ltd. and is meant for use of the recipient only
A251: and is not for circulation. This document is not to be reported or
A252: copied or made available to others. It should not be considered to be
A253: taken as an offer to sell or a solicitation to buy any security. The
A254: information contained herein is from sources believed reliable. We do
A255: not represent that it is accurate or complete and it should not be
A256: relied upon as such. We may from time to time have positions in and buy
A257: and sell securities referred to herein

Sheet Call Tracker (Currency) (hidden)
A1: Master Trade High Risk
A2: Sr.no | B2: Date | C2: Company | D2: Rec | E2: Rec Price | F2: Stop Loss | G2: Call Closed At | H2: Target | I2: Remark | K2: Profit / Loss per share | L2: Gain / Loss per Lot | M2: Lot | N2: Status | O2: Closed Date
A3: 1 | B3: 2017-05-08 | C3: USDINR MAY FUT | D3: Buy | E3: 64.3935 | F3: 64.29 | G3: 64.66 | H3: 64.59 | I3: Profit of Rs.0.27/- | K3: 0.27 | L3: 266.5 | M3: 1000 | N3: Successful | O3: 2017-05-09 | R3: P
A4: 2 | B4: 2017-05-08 | C4: USDINR JUN FUT | D4: Buy | E4: 64.6535 | F4: 64.45 | G4: 64.965 | H4: 65.05 | I4: Profit of Rs 0.31/- | K4: 0.31 | L4: 311.5 | M4: 1000 | N4: Successful | O4: 2017-05-09 | R4: P
A5: 3 | B5: 2017-05-09 | C5: EUROINR MAY FUT | D5: Sell | E5: 70.65 | F5: 70.8 | G5: 70.07 | H5: 70.4 | I5: Profit of Rs 0.58/- | K5: 0.58 | L5: 580 | M5: 1000 | N5: Successful | O5: 2017-05-12 | R5: P
A6: 4 | B6: 2017-05-09 | C6: GBPINR MAY FUT | D6: Buy | E6: 83.774 | F6: 83.37 | G6: 83.37 | H6: 84.77 | I6: Loss of Rs 0.40/- | K6: -0.40 | L6: -404 | M6: 1000 | N6: Unsuccessful | O6: 2017-05-11 | R6: P
A7: 5 | B7: 2017-05-11 | C7: USDINR MAY FUT | D7: Buy | E7: 64.6555 | F7: 64.55 | G7: 64.55 | H7: 64.86 | I7: Loss of Rs.0.1055/- | K7: -0.1055 | L7: =K7*M7 -> -105.50 | M7: 1000 | N7: Unsuccessful | O7: 2017-05-11 | R7: P
A8: 6 | B8: 2017-05-15 | C8: USDINR MAY FUT | D8: Buy | E8: 64.2275 | F8: 64.08 | G8: 64.46 | H8: 64.48 | I8: Profit of Rs 0.23/- | K8: 0.23 | L8: 232.5 | M8: 1000 | N8: Successful | O8: 2017-05-18 | R8: P
A9: 7 | B9: 2017-05-19 | C9: USDINR MAY FUT | D9: Sell | E9: 64.83 | F9: 65 | G9: 65 | H9: 64.5 | I9: Loss of Rs.0.17/- | K9: -0.17 | L9: -170 | M9: 1000 | N9: Unsuccessful | O9: 2017-05-19 | R9: P
A10: 8 | B10: 2017-05-23 | C10: USDINR MAY FUT | D10: Buy | E10: 64.83 | F10: 64.62 | G10: 64.95 | H10: 65.2 | I10: Profit of Rs 0.12/- | K10: 0.12 | L10: 120 | M10: 1000 | N10: Successful | O10: 2017-05-24 | R10: P
A11: 9 | B11: 2017-05-25 | C11: USDINR MAY FUT | D11: Buy | E11: 64.57 | F11: 64.25 | G11: 64.56 | H11: 65 | I11: Loss of Rs.0.01/- | K11: -0.01 | L11: -10 | M11: 1000 | N11: Neutral | O11: 2017-05-29 | R11: P
A12: 10 | B12: 2017-05-30 | C12: USDINR JUN FUT | D12: Buy | E12: 64.9125 | F12: 64.71 | G12: 64.71 | H12: 65.31 | I12: Loss of Rs.0.20/- | K12: -0.20 | L12: -202.5 | M12: 1000 | N12: Unsuccessful | O12: 2017-05-31 | R12: P
A13: 11 | B13: 2017-06-01 | C13: USDINR JUN FUT | D13: Buy | E13: 64.655 | F13: 64.45 | G13: 64.45 | H13: 65.05 | I13: Loss of Rs.0.20/- | K13: =G13-E13 -> -0.20 | L13: =K13*M13 -> -205 | M13: 1000.00 | N13: Unsuccessful | O13: 2017-06-08 | R13: P
A14: 12 | B14: 2017-06-12 | C14: USDINR JUN FUT | D14: Buy | E14: 64.45 | F14: 64 | G14: 64.7625 | H14: 65.2 | I14: Profit of Rs 0.31/- | K14: 0.31 | L14: 312.5 | M14: 1000 | N14: Successful | O14: 2017-06-16
A15: 13 | B15: 2017-06-16 | C15: USDINR JUN FUT | D15: Buy | E15: 64.51 | F15: 64.2 | G15: 64.7 | H15: 65.11 | I15: Profit of Rs 0.19/- | K15: 0.19 | L15: 190 | M15: 1000 | N15: Successful | O15: 2017-06-21
A16: 14 | B16: 2017-06-22 | C16: USDINR JUN FUT | D16: Buy | E16: 64.56 | F16: 64.2 | G16: 64.2 | H16: 65.1 | I16: Loss of Rs.0.36/- | K16: -0.36 | L16: -360 | M16: 1000.00 | N16: Unsuccessful | O16: 2017-06-30
A17: 15 | B17: 2017-07-10 | C17: USDINR JUL FUT | D17: Buy | E17: 64.67 | F17: 64.4 | G17: 64.4 | H17: 65.15 | I17: Loss of Rs.0.27/- | K17: -0.27 | L17: -270 | M17: 1000.00 | N17: Unsuccessful | O17: 2017-07-31
A18: 16 | B18: 2017-08-02 | C18: USDINR AUG FUT | D18: Buy | E18: 64.235 | F18: 63.98 | G18: 63.98 | H18: 64.75 | I18: Loss of Rs.0.26/- | K18: -0.26 | L18: -255 | M18: 1000.00 | N18: Unsuccessful | O18: 2017-08-02
A19: 17 | B19: 2017-08-08 | C19: USDINR AUG FUT | D19: Buy | E19: 63.9425 | F19: 63.6 | G19: 64.15 | H19: 64.5 | I19: Profit of Rs 0.21/- | K19: 0.21 | L19: 207.5 | M19: 1000 | N19: Successful | O19: 2017-08-10
A20: 18 | B20: 2017-08-22 | C20: USDINR AUG FUT | D20: Buy | E20: 64.1175 | F20: 63.9 | G20: 64.01 | H20: 64.5 | I20: Loss of Rs.0.11/- | K20: =G20-E20 -> -0.11 | L20: =K20*M20 -> -107.5 | M20: 1000.00 | N20: Unsuccessful | O20: 2017-08-29
A21: 19 | B21: 2017-09-01 | C21: USDINR SEP FUT | D21: Buy | E21: 64.1 | F21: 63.8 | G21: 64.205 | H21: 64.7 | I21: Profit of Rs 0.11/- | K21: 0.11 | L21: 105 | M21: 1000 | N21: Successful | O21: 2017-09-01
A22: 20 | B22: 2017-09-04 | C22: USDINR SEP FUT | D22: Buy | E22: 64.095 | F22: 63.8 | G22: 64.195 | H22: 64.7 | I22: Profit of Rs 0.10/- | K22: 0.10 | L22: =K22*M22 -> 100 | M22: 1000 | N22: Successful | O22: 2017-09-04
A23: 21 | B23: 2017-09-05 | C23: USDINR SEP FUT | D23: Buy | E23: 64.25 | F23: 64 | G23: 64.355 | H23: 64.75 | I23: Profit of Rs 0.11/- | K23: =G23-E23 -> 0.11 | L23: =K23*M23 -> 105 | M23: 1000 | N23: Successful | O23: 2017-09-06
A24: 22 | B24: 2017-09-06 | C24: USDINR SEP FUT | D24: Sell | E24: 64.365 | F24: 64.5 | G24: 64.265 | H24: 64 | I24: Profit of Rs 0.10/- | K24: =E24-G24 -> 0.10 | L24: 100 | M24: 1000 | N24: Successful | O24: 2017-09-06
A25: 23 | B25: 2017-09-07 | C25: USDINR SEP FUT | D25: Buy | E25: 64.145 | F25: 63.9 | G25: 64.2565 | H25: 64.65 | I25: Profit of Rs 0.11/- | K25: =G25-E25 -> 0.11 | L25: =K25*M25 -> 111.5 | M25: 1000 | N25: Successful | O25: 2017-09-14
A26: 24 | B26: 2017-09-11 | C26: JPYINR SEP FUT | D26: Sell | E26: 59.0285 | F26: 59.25 | G26: 58.645 | H26: 58.5 | I26: Profit of Rs 0.38/- | K26: =E26-G26 -> 0.38 | L26: 383.5 | M26: 1000 | N26: Successful | O26: 2017-09-12
A27: 25 | B27: 2017-09-14 | C27: USDINR SEP FUT | D27: Buy | E27: 64.145 | F27: 63.95 | G27: 64.26 | H27: 64.5 | I27: Profit of Rs 0.12/- | K27: =G27-E27 -> 0.12 | L27: 115 | M27: 1000 | N27: Successful | O27: 2017-09-19
A28: 26 | B28: 2017-09-20 | C28: USDINR SEP FUT | D28: Buy | E28: 64.3515 | F28: 64.15 | G28: 64.57 | H28: 64.75 | I28: Profit of Rs 0.22/- | K28: =G28-E28 -> 0.22 | L28: =K28*M28 -> 218.5 | M28: 1000 | N28: Successful | O28: 2017-09-21
A29: 27 | B29: 2017-09-21 | C29: USDINR SEP FUT | D29: Sell | E29: 64.795 | F29: 65.05 | G29: 65.05 | H29: 64.4 | I29: Loss of Rs.0.17/- | K29: -0.17 | L29: -170 | M29: 1000.00 | N29: Unsuccessful | O29: 2017-09-22
A30: 28 | B30: 2017-09-25 | C30: USDINR SEP FUT | D30: Buy | E30: 64.77 | F30: 64.4 | G30: 64.92 | H30: 65.1 | I30: Profit of Rs 0.15/- | K30: =G30-E30 -> 0.15 | L30: =K30*M30 -> 150 | M30: 1000 | N30: Successful | O30: 2017-09-25
A31: 29 | B31: 2017-09-25 | C31: USDINR SEP FUT | D31: Sell | E31: 65.1077 | F31: 65.3 | G31: 65.3 | H31: 64.5 | I31: Loss of Rs.0.19/- | K31: -0.19 | L31: -190 | M31: 1000.00 | N31: Unsuccessful | O31: 2017-09-26
A32: 30 | B32: 2017-09-27 | C32: USDINR SEP FUT | D32: Sell | E32: 65.7225 | F32: 65.83 | G32: 65.7 | H32: 65.52 | I32: Profit of Rs 0.02/- | K32: =E32-G32 -> 0.02 | L32: =K32*M32 -> 22.5 | M32: 1000 | N32: Neutral | O32: 2017-09-27
A33: 31 | B33: 2017-09-27 | C33: USDINR OCT FUT | D33: Sell | E33: 66 | F33: 66.5 | G33: 65.895 | H33: 65 | I33: Profit of Rs 0.11/- | K33: =E33-G33 -> 0.11 | L33: 105 | M33: 1000 | N33: Successful | O33: 2017-09-27
A34: 32 | B34: 2017-09-28 | C34: USDINR OCT FUT | D34: Sell | E34: 66.075 | F34: 66.3 | G34: 65.96 | H34: 65.4 | I34: Profit of Rs 0.12/- | K34: =E34-G34 -> 0.12 | L34: =K34*M34 -> 115 | M34: 1000 | N34: Successful | O34: 2017-09-28
A35: 33 | B35: 2017-09-29 | C35: GBPINR OCT fut | D35: Buy | E35: 87.745 | F35: 87.5 | G35: 87.84 | H35: 88.25 | I35: Profit of Rs 0.09/- | K35: =G35-E35 -> 0.09 | L35: 95 | M35: 1000 | N35: Successful | O35: 2017-09-29
A36: 34 | B36: 2017-09-29 | C36: USDINR OCT FUT | D36: Buy | E36: 65.514 | F36: 65.25 | G36: 65.85 | H36: 66 | I36: Profit of Rs 0.34/- | K36: 0.34 | L36: =K36*M36 -> 336 | M36: 1000 | N36: Successful | O36: 2017-10-03
A37: 35 | B37: 2017-10-09 | C37: USDINR OCT FUT | D37: Buy | E37: 65.48 | F37: 65.23 | G37: 65.5775 | H37: 65.95 | I37: Profit of Rs 0.10/- | K37: =G37-E37 -> 0.10 | L37: =K37*M37 -> 97.5 | M37: 1000 | N37: Successful | O37: 2017-10-09
A38: 36 | B38: 2017-10-10 | C38: USDINR OCT FUT | D38: Buy | E38: 65.41 | F38: 65.15 | G38: 65.5075 | H38: 66 | I38: Profit of Rs 0.10/- | K38: 0.10 | L38: 97.5 | M38: 1000 | N38: Successful | O38: 2017-10-10
A39: 37 | B39: 2017-10-11 | C39: USDINR OCT FUT | D39: Buy | E39: 65.38 | F39: 65.13 | G39: 65.13 | H39: 65.88 | I39: Loss of Rs.0.25/- | K39: -0.25 | L39: -250 | M39: 1000.00 | N39: Unsuccessful | O39: 2017-10-13
A40: 38 | B40: 2017-10-16 | C40: USDINR OCT FUT | D40: Buy | E40: 64.7925 | F40: 64.54 | G40: 64.905 | H40: 65.3 | I40: Profit of Rs 0.11/- | K40: =G40-E40 -> 0.11 | L40: =K40*M40 -> 112.5 | M40: 1000 | N40: Successful | O40: 2017-10-17
A41: 39 | B41: 2017-10-23 | C41: USDINR OCT FUT | D41: Buy | E41: 65.115 | F41: 64.85 | G41: 65.21 | H41: 65.5 | I41: Profit of Rs 0.09/- | K41: =G41-E41 -> 0.09 | L41: =K41*M41 -> 95 | M41: 1000 | N41: Successful | O41: 2017-10-25
A42: 40 | B42: 2017-10-23 | C42: JPYINR OCT FUT | D42: Buy | E42: 57.285 | F42: 57.03 | G42: 57.38 | H42: 58.4 | I42: Profit of Rs 0.10/- | K42: =G42-E42 -> 0.10 | L42: =K42*M42 -> 95 | M42: 1000 | N42: Successful | O42: 2017-10-23
A43: 41 | B43: 2017-10-26 | C43: USDINR OCT FUT | D43: Buy | E43: 64.755 | F43: 64.5 | G43: 64.87 | H43: 65.25 | I43: Profit of Rs 0.12/- | K43: 0.12 | L43: 115 | M43: 1000 | N43: Successful | O43: 2017-10-25
A44: 42 | B44: 2017-10-30 | C44: USDINR NOV FUT | D44: Buy | E44: 65.035 | F44: 64.79 | G44: 64.79 | H44: 65.5 | I44: Loss of Rs.0.24/- | K44: -0.24 | L44: -245 | M44: 1000.00 | N44: Unsuccessful | O44: 2017-11-01
A45: 43 | B45: 2017-11-01 | C45: JPYINR NOV FUT | D45: Buy | E45: 56.9875 | F45: 56.73 | G45: 57.0959 | H45: 57.5 | I45: Profit of Rs 0.11/- | K45: =G45-E45 -> 0.11 | L45: =K45*M45 -> 108.4 | M45: 1000 | N45: Successful | O45: 2017-11-07
A46: 44 | B46: 2017-11-02 | C46: USDINR NOV FUT | D46: Buy | E46: 64.7838 | F46: 64.5 | G46: 64.89 | H46: 65.25 | I46: Profit of Rs 0.11/- | K46: =G46-E46 -> 0.11 | L46: =K46*M46 -> 106.2 | M46: 1000 | N46: Successful | O46: 2017-11-06
A47: 45 | B47: 2017-11-08 | C47: USDINR NOV FUT | D47: Buy | E47: 65.1363 | F47: 64.8375 | G47: 65.235 | H47: 65.73 | I47: Profit of Rs 0.10/- | K47: =G47-E47 -> 0.10 | L47: =K47*M47 -> 98.7 | M47: 1000 | N47: Successful | O47: 2017-11-10
A48: 46 | B48: 2017-11-08 | C48: GBPINR NOV FUT | D48: Buy | E48: 85.4983 | F48: 85.25 | G48: 85.6 | H48: 86 | I48: Profit of Rs 0.10/- | K48: =G48-E48 -> 0.10 | L48: =K48*M48 -> 101.7 | M48: 1000 | N48: Successful | O48: 2017-11-09
A49: 47 | B49: 2017-11-16 | C49: EURINR NOV FUT | D49: Buy | E49: 76.8975 | F49: 76.3975 | G49: 76.3975 | H49: 77.8975 | I49: Loss of Rs.0.50/- | K49: =G49-E49 -> -0.50 | L49: -500 | M49: 1000.00 | N49: Unsuccessful | O49: 2017-11-01
A50: 48 | B50: 2017-11-16 | C50: JPYINR NOV FUT | D50: Buy | E50: 57.6625 | F50: 57.2675 | G50: 57.8075 | H50: 58.6675 | I50: Profit of Rs 0.14/- | K50: =G50-E50 -> 0.14 | L50: =K50*M50 -> 145 | M50: 1000 | N50: Successful | O50: 2017-11-17
A51: 49 | B51: 2017-11-22 | C51: EURINR NOV FUT | D51: Buy | E51: 76.175 | F51: 75.95 | G51: 76.335 | H51: 76.6 | I51: Profit of Rs 0.16/- | K51: 0.16 | L51: =K51*M51 -> 160 | M51: 1000 | N51: Successful | O51: 2017-11-22
A52: 50 | B52: 2017-11-22 | C52: USDINR NOV FUT | D52: Buy | E52: 64.87 | F52: 64.5 | G52: 64.5 | H52: 65.5 | I52: Loss of Rs.0.37/- | K52: -0.37 | L52: -370 | M52: 1000.00 | N52: Unsuccessful | O52: 2017-11-27
A53: 51 | B53: 2017-11-28 | C53: GBPINR DEC FUT | D53: Buy | E53: 86.17 | F53: 85.85 | G53: 86.46 | H53: 87 | I53: Profit of Rs 0.29/- | K53: 0.29 | L53: =K53*M53 -> 290 | M53: 1000 | N53: Successful | O53: 2017-11-29
A54: 52 | B54: 2017-11-28 | C54: JPYINR DEC FUT | D54: Buy | E54: 58.16 | F54: 57.85 | G54: 57.85 | H54: 58.6 | I54: Loss of Rs.0.31/- | K54: -0.31 | L54: -310 | M54: 1000.00 | N54: Unsuccessful | O54: 2017-11-29
A55: 53 | B55: 2017-11-28 | C55: USDINR DEC FUT | D55: Buy | E55: 64.63 | F55: 64.13 | G55: 64.13 | H55: 65.63 | I55: Loss of Rs.0.50/- | K55: -0.50 | L55: =K55*M55 -> -500 | M55: 1000.00 | N55: Unsuccessful | O55: 2017-12-15
A56: 54 | B56: 2017-11-28 | C56: EURINR DEC FUT | D56: Buy | E56: 76.93 | F56: 76.43 | G56: 76.43 | H56: 77.93 | I56: Loss of Rs.0.50/- | K56: =G56-E56 -> -0.50 | L56: =K56*M56 -> -500 | M56: 1000.00 | N56: Unsuccessful | O56: 2017-11-29
A57: 55 | B57: 2017-12-12 | C57: EURINR DEC FUT | D57: Buy | E57: 76.105 | F57: 75.7 | G57: 76.27 | H57: 76.8 | I57: Profit of Rs 0.16/- | K57: =G57-E57 -> 0.16 | L57: 165 | M57: 1000 | N57: Successful | O57: 2017-12-14
A58: 56 | B58: 2017-12-12 | C58: JPYINR DEC FUT | D58: Buy | E58: 56.975 | F58: 56.7 | G58: 57.21 | H58: 57.6 | I58: Profit of Rs 0.23/- | K58: =G58-E58 -> 0.23 | L58: =K58*M58 -> 235 | M58: 1000 | N58: Successful | O58: 2017-12-14

Sheet Sheet2 (hidden)
A1: SYMBOL | B1: SERIES | C1: OPEN | D1: HIGH | E1: LOW | F1: CLOSE | G1: LAST | H1: PREVCLOSE | I1: TOTTRDQTY | J1: TOTTRDVAL | K1: TIMESTAMP | L1: TOTALTRADES | M1: ISIN | N1: ISIN
A2: 20MICRONS | B2: EQ | C2: 41.8 | D2: 42.45 | E2: 39.3 | F2: 39.55 | G2: 39.35 | H2: 41.3 | I2: 71268 | J2: 2865167.8 | K2: 2018-06-04 | L2: 761 | M2: INE144J01027
A3: 21STCENMGM | B3: EQ | C3: 37 | D3: 37 | E3: 37 | F3: 37 | G3: 37 | H3: 37.75 | I3: 200 | J3: 7400 | K3: 2018-06-04 | L3: 3 | M3: INE253B01015
A4: 3IINFOTECH | B4: EQ | C4: 4.8 | D4: 4.85 | E4: 4.6 | F4: 4.65 | G4: 4.7 | H4: 4.65 | I4: 1404935 | J4: 6595252.15 | K4: 2018-06-04 | L4: 627 | M4: INE748C01020
A5: 3MINDIA | B5: EQ | C5: 19499.95 | D5: 19499.95 | E5: 18782.2 | F5: 18814.8 | G5: 18800 | H5: 19353.55 | I5: 1986 | J5: 37744825.05 | K5: 2018-06-04 | L5: 474 | M5: INE470A01017
A6: 3PLAND | B6: EQ | C6: 14.05 | D6: 14.05 | E6: 12.3 | F6: 13.15 | G6: 12.5 | H6: 14.05 | I6: 861 | J6: 11378.85 | K6: 2018-06-04 | L6: 13 | M6: INE105C01023
A7: 5PAISA | B7: EQ | C7: 388.3 | D7: 390 | E7: 368.9 | F7: 368.9 | G7: 368.9 | H7: 388.3 | I7: 8114 | J7: 3005762.4 | K7: 2018-06-04 | L7: 232 | M7: INE618L01018
A8: 63MOONS | B8: EQ | C8: 77 | D8: 77 | E8: 70.1 | F8: 71.4 | G8: 71.7 | H8: 75.95 | I8: 143750 | J8: 10497352.45 | K8: 2018-06-04 | L8: 2269 | M8: INE111B01023
A9: 8KMILES | B9: EQ | C9: 584.15 | D9: 587.5 | E9: 531.8 | F9: 535 | G9: 534 | H9: 581 | I9: 236560 | J9: 129777301.8 | K9: 2018-06-04 | L9: 10155 | M9: INE650K01021
A10: A2ZINFRA | B10: EQ | C10: 24 | D10: 24.5 | E10: 23.2 | F10: 23.45 | G10: 23.25 | H10: 23.9 | I10: 412810 | J10: 9814447.9 | K10: 2018-06-04 | L10: 2389 | M10: INE619I01012
A11: AARTIDRUGS | B11: EQ | C11: 526.45 | D11: 537 | E11: 511 | F11: 530 | G11: 530 | H11: 527 | I11: 7628 | J11: 4016145.75 | K11: 2018-06-04 | L11: 518 | M11: INE767A01016
A12: AARTIIND | B12: EQ | C12: 1235 | D12: 1238.95 | E12: 1190 | F12: 1198.85 | G12: 1199 | H12: 1227.6 | I12: 61376 | J12: 74098011.25 | K12: 2018-06-04 | L12: 3356 | M12: INE769A01020
A13: AARVEEDEN | B13: EQ | C13: 37.5 | D13: 37.5 | E13: 33.75 | F13: 33.8 | G13: 33.75 | H13: 36.05 | I13: 15240 | J13: 525073.9 | K13: 2018-06-04 | L13: 183 | M13: INE273D01019
A14: ABAN | B14: EQ | C14: 136.05 | D14: 136.5 | E14: 128.2 | F14: 128.95 | G14: 128.6 | H14: 136.05 | I14: 875085 | J14: 114352515.8 | K14: 2018-06-04 | L14: 10659 | M14: INE421A01028
A15: ABB | B15: EQ | C15: 1214.9 | D15: 1214.9 | E15: 1173.95 | F15: 1185.25 | G15: 1180 | H15: 1203.85 | I15: 57698 | J15: 68213056.85 | K15: 2018-06-04 | L15: 5213 | M15: INE117A01022
A16: ABBOTINDIA | B16: EQ | C16: 6729 | D16: 6799 | E16: 6500 | F16: 6521.7 | G16: 6510 | H16: 6664.2 | I16: 2563 | J16: 16858940.55 | K16: 2018-06-04 | L16: 992 | M16: INE358A01014
A17: ABCAPITAL | B17: EQ | C17: 145.8 | D17: 145.8 | E17: 141.5 | F17: 141.65 | G17: 141.65 | H17: 144.4 | I17: 1314196 | J17: 187142507.2 | K17: 2018-06-04 | L17: 17164 | M17: INE674K01013
A18: ABFRL | B18: EQ | C18: 144.5 | D18: 146.1 | E18: 138.7 | F18: 139.8 | G18: 140.2 | H18: 145.5 | I18: 199572 | J18: 28461192.75 | K18: 2018-06-04 | L18: 3675 | M18: INE647O01011
A19: ABMINTLTD | B19: BE | C19: 21.6 | D19: 21.6 | E19: 21.6 | F19: 21.6 | G19: 21.6 | H19: 21.6 | I19: 214 | J19: 4622.4 | K19: 2018-06-04 | L19: 7 | M19: INE251C01017
A20: ACC | B20: EQ | C20: 1343 | D20: 1353.5 | E20: 1303.25 | F20: 1308.05 | G20: 1308 | H20: 1326.7 | I20: 558346 | J20: 738708667.8 | K20: 2018-06-04 | L20: 21895 | M20: INE012A01025
A21: ACCELYA | B21: EQ | C21: 1160 | D21: 1160 | E21: 1138.1 | F21: 1149.2 | G21: 1145 | H21: 1162.8 | I21: 3777 | J21: 4335519.95 | K21: 2018-06-04 | L21: 404 | M21: INE793A01012
A22: ACE | B22: EQ | C22: 159 | D22: 159 | E22: 145.55 | F22: 147.7 | G22: 148 | H22: 159.25 | I22: 575024 | J22: 87763794.9 | K22: 2018-06-04 | L22: 7635 | M22: INE731H01025
A23: ADANIENT | B23: EQ | C23: 119.95 | D23: 121 | E23: 113.65 | F23: 116.25 | G23: 115.7 | H23: 119.55 | I23: 5153935 | J23: 606804137.5 | K23: 2018-06-04 | L23: 25271 | M23: INE423A01024
A24: ADANIPORTS | B24: EQ | C24: 388 | D24: 388.95 | E24: 376.05 | F24: 378.55 | G24: 378.5 | H24: 387.6 | I24: 2481566 | J24: 947234156.6 | K24: 2018-06-04 | L24: 83369 | M24: INE742F01042
A25: ADANIPOWER | B25: EQ | C25: 19.75 | D25: 19.75 | E25: 18.25 | F25: 18.45 | G25: 18.45 | H25: 19.6 | I25: 15817584 | J25: 297125927.1 | K25: 2018-06-04 | L25: 17035 | M25: INE814H01011
A26: ADANITRANS | B26: EQ | C26: 135.25 | D26: 140 | E26: 130.2 | F26: 135 | G26: 134 | H26: 135 | I26: 646384 | J26: 86404257.75 | K26: 2018-06-04 | L26: 5396 | M26: INE931S01010
A27: ADFFOODS | B27: EQ | C27: 265.15 | D27: 265.15 | E27: 248.25 | F27: 251 | G27: 252 | H27: 264.35 | I27: 96362 | J27: 24603481.3 | K27: 2018-06-04 | L27: 1948 | M27: INE982B01019
A28: ADHUNIK | B28: EQ | C28: 3.95 | D28: 3.95 | E28: 3.65 | F28: 3.65 | G28: 3.65 | H28: 3.8 | I28: 48415 | J28: 182842.7 | K28: 2018-06-04 | L28: 52 | M28: INE400H01019
A29: ADHUNIKIND | B29: EQ | C29: 60 | D29: 62.95 | E29: 58.8 | F29: 62.65 | G29: 61.5 | H29: 61.55 | I29: 110999 | J29: 6871029.55 | K29: 2018-06-04 | L29: 258 | M29: INE452L01012
A30: ADLABS | B30: EQ | C30: 39.65 | D30: 39.65 | E30: 35.95 | F30: 36.55 | G30: 36.6 | H30: 39.1 | I30: 85865 | J30: 3224731.95 | K30: 2018-06-04 | L30: 669 | M30: INE172N01012
A31: ADORWELD | B31: EQ | C31: 350 | D31: 354.8 | E31: 326 | F31: 328.3 | G31: 327 | H31: 342.7 | I31: 9844 | J31: 3281927.65 | K31: 2018-06-04 | L31: 411 | M31: INE045A01017
A32: ADROITINFO | B32: EQ | C32: 28 | D32: 29.9 | E32: 26.25 | F32: 28.5 | G32: 28.5 | H32: 27.4 | I32: 16965 | J32: 476049.4 | K32: 2018-06-04 | L32: 64 | M32: INE737B01033
A33: ADSL | B33: EQ | C33: 17.95 | D33: 18.3 | E33: 16.3 | F33: 16.5 | G33: 16.35 | H33: 17.1 | I33: 39045 | J33: 651376.6 | K33: 2018-06-04 | L33: 144 | M33: INE102I01027
A34: ADVANIHOTR | B34: EQ | C34: 57.3 | D34: 57.3 | E34: 53.8 | F34: 54.05 | G34: 53.85 | H34: 55.9 | I34: 12511 | J34: 681623.35 | K34: 2018-06-04 | L34: 188 | M34: INE199C01026
A35: ADVENZYMES | B35: EQ | C35: 218.95 | D35: 220.3 | E35: 213 | F35: 214 | G35: 213.55 | H35: 217.85 | I35: 111994 | J35: 24124990.25 | K35: 2018-06-04 | L35: 2659 | M35: INE837H01020
A36: AEGISCHEM | B36: EQ | C36: 272.7 | D36: 272.7 | E36: 250 | F36: 251.5 | G36: 251.95 | H36: 270.45 | I36: 121250 | J36: 31238383.75 | K36: 2018-06-04 | L36: 3543 | M36: INE208C01025
A37: AFL | B37: EQ | C37: 52.05 | D37: 53.35 | E37: 51 | F37: 51.35 | G37: 52 | H37: 52.85 | I37: 4319 | J37: 222880.4 | K37: 2018-06-04 | L37: 41 | M37: INE020G01017
A38: AGARIND | B38: EQ | C38: 236.05 | D38: 250 | E38: 236.05 | F38: 245 | G38: 245 | H38: 240.15 | I38: 1025 | J38: 250678.95 | K38: 2018-06-04 | L38: 41 | M38: INE204E01012
A39: AGCNET | B39: EQ | C39: 120 | D39: 122.85 | E39: 115.1 | F39: 115.75 | G39: 115.95 | H39: 121.5 | I39: 10789 | J39: 1261838.3 | K39: 2018-06-04 | L39: 59 | M39: INE676A01019
A40: AGLSL | B40: EQ | C40: 91.5 | D40: 95 | E40: 91 | F40: 91.5 | G40: 91.1 | H40: 92.15 | I40: 3321 | J40: 305892.45 | K40: 2018-06-04 | L40: 49 | M40: INE517U01013
A41: AGRITECH | B41: EQ | C41: 107.5 | D41: 110 | E41: 103 | F41: 104.45 | G41: 104.75 | H41: 109.3 | I41: 17128 | J41: 1815631.85 | K41: 2018-06-04 | L41: 513 | M41: INE449G01018
A42: AHLEAST | B42: EQ | C42: 285.55 | D42: 292.55 | E42: 285.55 | F42: 288.4 | G42: 288 | H42: 300 | I42: 2017 | J42: 584922.95 | K42: 2018-06-04 | L42: 58 | M42: INE926K01017
A43: AHLUCONT | B43: EQ | C43: 368 | D43: 378.4 | E43: 360 | F43: 365.8 | G43: 367.45 | H43: 364.15 | I43: 8875 | J43: 3278910.25 | K43: 2018-06-04 | L43: 540 | M43: INE758C01029
A44: AHLWEST | B44: BE | C44: 295 | D44: 310.9 | E44: 287 | F44: 310.9 | G44: 310.9 | H44: 296.65 | I44: 900 | J44: 259608.9 | K44: 2018-06-04 | L44: 8 | M44: INE915K01010
A45: AIAENG | B45: EQ | C45: 1571.6 | D45: 1578.35 | E45: 1538 | F45: 1555.4 | G45: 1567.75 | H45: 1562.2 | I45: 90218 | J45: 140613167 | K45: 2018-06-04 | L45: 1480 | M45: INE212H01026
A46: AICHAMP | B46: BE | C46: 21 | D46: 21 | E46: 21 | F46: 21 | G46: 21 | H46: 22.05 | I46: 1000 | J46: 21000 | K46: 2018-06-04 | L46: 4 | M46: INE768E01024
A47: AIFL | B47: EQ | C47: 475.2 | D47: 483 | E47: 462.2 | F47: 468.9 | G47: 466 | H47: 479.7 | I47: 126777 | J47: 60071650.15 | K47: 2018-06-04 | L47: 1113 | M47: INE428O01016
A48: AJANTPHARM | B48: EQ | C48: 941 | D48: 949.7 | E48: 924 | F48: 930 | G48: 928.45 | H48: 940.65 | I48: 157028 | J48: 146254584.1 | K48: 2018-06-04 | L48: 6601 | M48: INE031B01049
A49: AJMERA | B49: EQ | C49: 225.35 | D49: 225.35 | E49: 205.1 | F49: 207.8 | G49: 205.95 | H49: 225.35 | I49: 196695 | J49: 41653487.8 | K49: 2018-06-04 | L49: 4364 | M49: INE298G01027
A50: AKSHARCHEM | B50: EQ | C50: 645 | D50: 649.5 | E50: 640 | F50: 645 | G50: 646 | H50: 651.45 | I50: 10376 | J50: 6691936.3 | K50: 2018-06-04 | L50: 3359 | M50: INE542B01011
A51: AKSHOPTFBR | B51: EQ | C51: 34 | D51: 34.35 | E51: 30.4 | F51: 30.85 | G51: 30.85 | H51: 33.45 | I51: 1548948 | J51: 48949985.05 | K51: 2018-06-04 | L51: 5331 | M51: INE523B01011
A52: AKZOINDIA | B52: EQ | C52: 1958.9 | D52: 1958.9 | E52: 1930.25 | F52: 1935.35 | G52: 1935 | H52: 1936.3 | I52: 7528 | J52: 14602924.85 | K52: 2018-06-04 | L52: 890 | M52: INE133A01011
A53: ALANKIT | B53: EQ | C53: 31.7 | D53: 32.5 | E53: 30.1 | F53: 30.1 | G53: 30.1 | H53: 31.65 | I53: 128709 | J53: 3903492.2 | K53: 2018-06-04 | L53: 347 | M53: INE914E01040
A54: ALBERTDAVD | B54: EQ | C54: 392 | D54: 399.1 | E54: 376 | F54: 382.7 | G54: 383.9 | H54: 391.6 | I54: 2333 | J54: 899516.7 | K54: 2018-06-04 | L54: 93 | M54: INE155C01010
A55: ALBK | B55: EQ | C55: 40.3 | D55: 40.5 | E55: 39.05 | F55: 39.65 | G55: 39.95 | H55: 40.1 | I55: 3205689 | J55: 127732789.5 | K55: 2018-06-04 | L55: 7776 | M55: INE428A01015
A56: ALCHEM | B56: BE | C56: 6.15 | D56: 6.2 | E56: 5.8 | F56: 5.8 | G56: 5.8 | H56: 5.95 | I56: 8766 | J56: 53874.2 | K56: 2018-06-04 | L56: 25 | M56: INE964B01033
A57: ALEMBICLTD | B57: EQ | C57: 43.05 | D57: 43.5 | E57: 39.95 | F57: 40.25 | G57: 39.95 | H57: 42.85 | I57: 317113 | J57: 13065661.15 | K57: 2018-06-04 | L57: 6084 | M57: INE426A01027
A58: ALICON | B58: EQ | C58: 632.2 | D58: 632.2 | E58: 595 | F58: 595.65 | G58: 598.9 | H58: 632.05 | I58: 4331 | J58: 2608593.35 | K58: 2018-06-04 | L58: 259 | M58: INE062D01024
A59: ALKALI | B59: EQ | C59: 72.75 | D59: 73.8 | E59: 68.2 | F59: 69.15 | G59: 69.5 | H59: 72.5 | I59: 7055 | J59: 498461.45 | K59: 2018-06-04 | L59: 214 | M59: INE773I01017
A60: ALKEM | B60: EQ | C60: 1926 | D60: 1960 | E60: 1920.35 | F60: 1934.05 | G60: 1930 | H60: 1931.8 | I60: 18373 | J60: 35658654.7 | K60: 2018-06-04 | L60: 4235 | M60: INE540L01014
A61: ALKYLAMINE | B61: EQ | C61: 660.45 | D61: 666.95 | E61: 595 | F61: 601.75 | G61: 600 | H61: 659.8 | I61: 10551 | J61: 6506343.75 | K61: 2018-06-04 | L61: 589 | M61: INE150B01021
A62: ALLCARGO | B62: EQ | C62: 118.1 | D62: 118.5 | E62: 111.25 | F62: 113.15 | G62: 113.5 | H62: 117.9 | I62: 341758 | J62: 39121925.9 | K62: 2018-06-04 | L62: 4594 | M62: INE418H01029
A63: ALLSEC | B63: EQ | C63: 289.9 | D63: 289.9 | E63: 270 | F63: 275.6 | G63: 273.05 | H63: 278.15 | I63: 25971 | J63: 7157754.35 | K63: 2018-06-04 | L63: 508 | M63: INE835G01018
A64: ALMONDZ | B64: BE | C64: 31.95 | D64: 31.95 | E64: 30.05 | F64: 30.5 | G64: 30.5 | H64: 31.6 | I64: 2963 | J64: 89102 | K64: 2018-06-04 | L64: 12 | M64: INE326B01027
A65: ALOKTEXT | B65: EQ | C65: 1.95 | D65: 1.95 | E65: 1.95 | F65: 1.95 | G65: 1.95 | H65: 1.9 | I65: 477907 | J65: 931918.65 | K65: 2018-06-04 | L65: 174 | M65: INE270A01011
A66: ALPA | B66: EQ | C66: 30.25 | D66: 30.95 | E66: 28.35 | F66: 28.6 | G66: 28.35 | H66: 29.7 | I66: 20001 | J66: 585794.05 | K66: 2018-06-04 | L66: 117 | M66: INE385I01010
A67: ALPHAGEO | B67: EQ | C67: 716.7 | D67: 726.05 | E67: 678 | F67: 682.5 | G67: 684.6 | H67: 716.1 | I67: 17419 | J67: 12152343.3 | K67: 2018-06-04 | L67: 1582 | M67: INE137C01018
A68: ALPSINDUS | B68: BE | C68: 2 | D68: 2 | E68: 1.95 | F68: 1.95 | G68: 2 | H68: 1.95 | I68: 12477 | J68: 24871.2 | K68: 2018-06-04 | L68: 25 | M68: INE093B01015
A69: AMARAJABAT | B69: EQ | C69: 777 | D69: 784.2 | E69: 753.45 | F69: 762.2 | G69: 759.05 | H69: 776.15 | I69: 313006 | J69: 241503987.4 | K69: 2018-06-04 | L69: 9218 | M69: INE885A01032
A70: AMBER | B70: EQ | C70: 1075 | D70: 1075 | E70: 1058 | F70: 1059.1 | G70: 1059 | H70: 1069.4 | I70: 5329 | J70: 5664827.9 | K70: 2018-06-04 | L70: 592 | M70: INE371P01015
A71: AMBIKCO | B71: EQ | C71: 1333 | D71: 1333 | E71: 1301 | F71: 1314.25 | G71: 1319.75 | H71: 1326.85 | I71: 4218 | J71: 5537560.45 | K71: 2018-06-04 | L71: 191 | M71: INE540G01014
A72: AMBUJACEM | B72: EQ | C72: 204.5 | D72: 205.45 | E72: 200.35 | F72: 201.45 | G72: 201 | H72: 203.55 | I72: 6313873 | J72: 1274743678 | K72: 2018-06-04 | L72: 38556 | M72: INE079A01024
A73: AMDIND | B73: EQ | C73: 24.65 | D73: 24.65 | E73: 22.4 | F73: 22.55 | G73: 22.45 | H73: 23.55 | I73: 26155 | J73: 590983.6 | K73: 2018-06-04 | L73: 140 | M73: INE005I01014
A74: AMJLAND | B74: EQ | C74: 24.45 | D74: 25.1 | E74: 23.5 | F74: 24.15 | G74: 23.55 | H74: 24.65 | I74: 14806 | J74: 359221.6 | K74: 2018-06-04 | L74: 58 | M74: INE606A01024
A75: AMRUTANJAN | B75: EQ | C75: 258.65 | D75: 259 | E75: 245 | F75: 250.95 | G75: 252.4 | H75: 259 | I75: 11859 | J75: 2982526.65 | K75: 2018-06-04 | L75: 510 | M75: INE098F01031
A76: ANANTRAJ | B76: EQ | C76: 42 | D76: 45.3 | E76: 42 | F76: 43.8 | G76: 44.1 | H76: 40.65 | I76: 3533201 | J76: 156182053.3 | K76: 2018-06-04 | L76: 16120 | M76: INE242C01024
A77: ANDHRABANK | B77: EQ | C77: 35.5 | D77: 35.5 | E77: 33.8 | F77: 34 | G77: 33.95 | H77: 35.1 | I77: 3358639 | J77: 116025132.4 | K77: 2018-06-04 | L77: 6536 | M77: INE434A01013
A78: ANDHRACEMT | B78: EQ | C78: 9.7 | D78: 9.9 | E78: 9.5 | F78: 9.6 | G78: 9.6 | H78: 9.7 | I78: 77764 | J78: 750940.5 | K78: 2018-06-04 | L78: 168 | M78: INE666E01012
A79: ANDHRSUGAR | B79: EQ | C79: 384.45 | D79: 384.45 | E79: 361 | F79: 363.6 | G79: 362 | H79: 378.85 | I79: 28516 | J79: 10531370.5 | K79: 2018-06-04 | L79: 938 | M79: INE715B01013
A80: ANGIND | B80: BE | C80: 2.75 | D80: 2.8 | E80: 2.6 | F80: 2.8 | G80: 2.8 | H80: 2.7 | I80: 14579 | J80: 38397.15 | K80: 2018-06-04 | L80: 36 | M80: INE017D01010
A81: ANIKINDS | B81: BE | C81: 32.5 | D81: 33.95 | E81: 32.2 | F81: 33.05 | G81: 33.45 | H81: 33.8 | I81: 3874 | J81: 126570.15 | K81: 2018-06-04 | L81: 43 | M81: INE087B01017
A82: ANSALAPI | B82: EQ | C82: 17.45 | D82: 17.45 | E82: 15.95 | F82: 15.95 | G82: 15.95 | H82: 16.75 | I82: 126292 | J82: 2031457.3 | K82: 2018-06-04 | L82: 223 | M82: INE436A01026
A83: ANSALHSG | B83: EQ | C83: 16.2 | D83: 16.2 | E83: 14.6 | F83: 14.85 | G83: 14.9 | H83: 16.15 | I83: 69010 | J83: 1045789.7 | K83: 2018-06-04 | L83: 332 | M83: INE880B01015
A84: ANTGRAPHIC | B84: BE | C84: 0.6 | D84: 0.65 | E84: 0.6 | F84: 0.6 | G84: 0.6 | H84: 0.65 | I84: 69383 | J84: 41914.85 | K84: 2018-06-04 | L84: 24 | M84: INE414B01021
A85: APARINDS | B85: EQ | C85: 722.95 | D85: 724.15 | E85: 693.25 | F85: 697.3 | G85: 696.95 | H85: 723.35 | I85: 21400 | J85: 14949543.7 | K85: 2018-06-04 | L85: 1179 | M85: INE372A01015
A86: APCL | B86: EQ | C86: 170.1 | D86: 171.4 | E86: 160 | F86: 163 | G86: 160.1 | H86: 171.85 | I86: 4059 | J86: 667936.15 | K86: 2018-06-04 | L86: 97 | M86: INE071F01012
A87: APCOTEXIND | B87: EQ | C87: 535.95 | D87: 535.95 | E87: 504.15 | F87: 508.85 | G87: 511.85 | H87: 524.4 | I87: 8302 | J87: 4253897.75 | K87: 2018-06-04 | L87: 310 | M87: INE116A01024
A88: APEX | B88: EQ | C88: 505.5 | D88: 514.4 | E88: 501.85 | F88: 501.85 | G88: 501.85 | H88: 528.25 | I88: 22778 | J88: 11469238.35 | K88: 2018-06-04 | L88: 693 | M88: INE346W01013
A89: APLAPOLLO | B89: EQ | C89: 1840 | D89: 1850 | E89: 1785 | F89: 1799.6 | G89: 1800 | H89: 1816.25 | I89: 15755 | J89: 28431205.55 | K89: 2018-06-04 | L89: 2014 | M89: INE702C01019
A90: APLLTD | B90: EQ | C90: 421.4 | D90: 433.6 | E90: 417.95 | F90: 421.25 | G90: 425 | H90: 420 | I90: 13599 | J90: 5738791.2 | K90: 2018-06-04 | L90: 694 | M90: INE901L01018
A91: APOLLO | B91: EQ | C91: 192 | D91: 192 | E91: 186.2 | F91: 187.15 | G91: 186.75 | H91: 189.95 | I91: 22491 | J91: 4238308.45 | K91: 2018-06-04 | L91: 525 | M91: INE713T01010
A92: APOLLOHOSP | B92: EQ | C92: 941 | D92: 948 | E92: 915.2 | F92: 941.15 | G92: 940.6 | H92: 927.1 | I92: 474667 | J92: 442833375.6 | K92: 2018-06-04 | L92: 27105 | M92: INE437A01024
A93: APOLLOTYRE | B93: EQ | C93: 269 | D93: 270.45 | E93: 264.35 | F93: 266.05 | G93: 266.3 | H93: 266 | I93: 2099074 | J93: 561769421 | K93: 2018-06-04 | L93: 27687 | M93: INE438A01022
A94: APOLSINHOT | B94: EQ | C94: 1551.05 | D94: 1595 | E94: 1305 | F94: 1355.05 | G94: 1345 | H94: 1602.45 | I94: 6823 | J94: 9589769.2 | K94: 2018-06-04 | L94: 801 | M94: INE451F01016
A95: APTECHT | B95: EQ | C95: 245.8 | D95: 251 | E95: 238 | F95: 243.4 | G95: 242.35 | H95: 244.3 | I95: 564294 | J95: 138578735 | K95: 2018-06-04 | L95: 10430 | M95: INE266F01018
A96: ARCHIDPLY | B96: EQ | C96: 71.9 | D96: 71.9 | E96: 66.8 | F96: 68.9 | G96: 69.95 | H96: 69.35 | I96: 76998 | J96: 5222776.65 | K96: 2018-06-04 | L96: 755 | M96: INE877I01016
A97: ARCHIES | B97: BE | C97: 33.5 | D97: 33.5 | E97: 31.3 | F97: 31.6 | G97: 31.3 | H97: 32.9 | I97: 34960 | J97: 1120032.7 | K97: 2018-06-04 | L97: 174 | M97: INE731A01020
A98: ARCOTECH | B98: EQ | C98: 22.3 | D98: 22.7 | E98: 22.2 | F98: 22.3 | G98: 22.35 | H98: 22.3 | I98: 279623 | J98: 6240319.2 | K98: 2018-06-04 | L98: 756 | M98: INE574I01035
A99: ARENTERP | B99: EQ | C99: 13.55 | D99: 13.55 | E99: 13.55 | F99: 13.55 | G99: 13.55 | H99: 14.25 | I99: 100 | J99: 1355 | K99: 2018-06-04 | L99: 1 | M99: INE610C01014
A100: ARIES | B100: EQ | C100: 163.8 | D100: 163.8 | E100: 144.8 | F100: 145.3 | G100: 146.3 | H100: 156.75 | I100: 40337 | J100: 5975833.75 | K100: 2018-06-04 | L100: 687 | M100: INE298I01015
A101: ARIHANT | B101: EQ | C101: 36.1 | D101: 36.1 | E101: 36.1 | F101: 36.1 | G101: 36.1 | H101: 37.95 | I101: 30 | J101: 1083 | K101: 2018-06-04 | L101: 2 | M101: INE413D01011
A102: ARIHANTSUP | B102: EQ | C102: 117 | D102: 123 | E102: 116 | F102: 117.65 | G102: 117 | H102: 118.05 | I102: 50868 | J102: 6129299.45 | K102: 2018-06-04 | L102: 1468 | M102: INE643K01018
A103: ARMANFIN | B103: BE | C103: 391 | D103: 391 | E103: 371.45 | F103: 371.45 | G103: 371.45 | H103: 391 | I103: 319 | J103: 119691.85 | K103: 2018-06-04 | L103: 13 | M103: INE109C01017
A104: AROGRANITE | B104: EQ | C104: 62.25 | D104: 62.35 | E104: 58.5 | F104: 58.7 | G104: 59.7 | H104: 60.75 | I104: 30356 | J104: 1817831.85 | K104: 2018-06-04 | L104: 486 | M104: INE210C01013
A105: ARROWGREEN | B105: EQ | C105: 200.45 | D105: 200.45 | E105: 200.45 | F105: 200.45 | G105: 200.45 | H105: 211 | I105: 4091 | J105: 820040.95 | K105: 2018-06-04 | L105: 54 | M105: INE570D01018
A106: ARROWTEX | B106: EQ | C106: 32.15 | D106: 32.2 | E106: 29.8 | F106: 30 | G106: 30.1 | H106: 31.2 | I106: 14353 | J106: 433246.1 | K106: 2018-06-04 | L106: 85 | M106: INE933J01015
A107: ARSHIYA | B107: EQ | C107: 61.2 | D107: 63.05 | E107: 58.5 | F107: 60.35 | G107: 61.25 | H107: 62.2 | I107: 20608 | J107: 1256144.15 | K107: 2018-06-04 | L107: 299 | M107: INE968D01022
A108: ARSSINFRA | B108: BE | C108: 34.4 | D108: 36.4 | E108: 33.3 | F108: 34.65 | G108: 35.55 | H108: 35.05 | I108: 8508 | J108: 287492.6 | K108: 2018-06-04 | L108: 61 | M108: INE267I01010
A109: ARVIND | B109: EQ | C109: 386.65 | D109: 387 | E109: 377 | F109: 379.3 | G109: 378.75 | H109: 382.3 | I109: 913457 | J109: 347783350.2 | K109: 2018-06-04 | L109: 17472 | M109: INE034A01011
A110: ARVSMART | B110: EQ | C110: 170 | D110: 171.9 | E110: 167 | F110: 168.25 | G110: 168 | H110: 168.15 | I110: 26713 | J110: 4500403.2 | K110: 2018-06-04 | L110: 499 | M110: INE034S01021
A111: ASAHIINDIA | B111: EQ | C111: 338.5 | D111: 339.85 | E111: 330 | F111: 336.4 | G111: 334.1 | H111: 338 | I111: 32021 | J111: 10719015.35 | K111: 2018-06-04 | L111: 1228 | M111: INE439A01020
A112: ASAHISONG | B112: EQ | C112: 291.75 | D112: 291.75 | E112: 284.75 | F112: 285.85 | G112: 285.05 | H112: 287.15 | I112: 6040 | J112: 1724810.7 | K112: 2018-06-04 | L112: 158 | M112: INE228I01012
A113: ASAL | B113: EQ | C113: 67.05 | D113: 68.5 | E113: 65.85 | F113: 68 | G113: 68 | H113: 67.45 | I113: 15806 | J113: 1069476.55 | K113: 2018-06-04 | L113: 170 | M113: INE900C01027
A114: ASHAPURMIN | B114: EQ | C114: 57 | D114: 57.3 | E114: 48.7 | F114: 50.55 | G114: 50.35 | H114: 56.7 | I114: 280884 | J114: 14463362 | K114: 2018-06-04 | L114: 2300 | M114: INE348A01023
A115: ASHIANA | B115: EQ | C115: 151 | D115: 151 | E115: 147 | F115: 149.05 | G115: 149.4 | H115: 151.45 | I115: 29422 | J115: 4387300.4 | K115: 2018-06-04 | L115: 641 | M115: INE365D01021
A116: ASHIMASYN | B116: EQ | C116: 23.3 | D116: 23.3 | E116: 22 | F116: 22.2 | G116: 22.15 | H116: 23.1 | I116: 95813 | J116: 2133968.95 | K116: 2018-06-04 | L116: 306 | M116: INE440A01010
A117: ASHOKA | B117: EQ | C117: 240 | D117: 240 | E117: 232 | F117: 237 | G117: 236.1 | H117: 238.7 | I117: 78519 | J117: 18548261.5 | K117: 2018-06-04 | L117: 3458 | M117: INE442H01029
A118: ASHOKLEY | B118: EQ | C118: 151.4 | D118: 151.8 | E118: 146.55 | F118: 146.9 | G118: 147 | H118: 150.85 | I118: 9461068 | J118: 1405620128 | K118: 2018-06-04 | L118: 52290 | M118: INE208A01029
A119: ASIANHOTNR | B119: EQ | C119: 268.6 | D119: 268.6 | E119: 252 | F119: 252.2 | G119: 259.95 | H119: 265.05 | I119: 595 | J119: 150995.2 | K119: 2018-06-04 | L119: 41 | M119: INE363A01022
A120: ASIANPAINT | B120: EQ | C120: 1295 | D120: 1297.5 | E120: 1265 | F120: 1284.45 | G120: 1277.55 | H120: 1293.05 | I120: 939794 | J120: 1200273215 | K120: 2018-06-04 | L120: 40158 | M120: INE021A01026
A121: ASIANTILES | B121: EQ | C121: 417 | D121: 417 | E121: 393 | F121: 394.9 | G121: 394.2 | H121: 415.05 | I121: 81973 | J121: 32739133.7 | K121: 2018-06-04 | L121: 3662 | M121: INE022I01019
A122: ASPINWALL | B122: EQ | C122: 297 | D122: 297 | E122: 269 | F122: 282.3 | G122: 269 | H122: 293.95 | I122: 2924 | J122: 833141.1 | K122: 2018-06-04 | L122: 88 | M122: INE991I01015
A123: ASSAMCO | B123: EQ | C123: 3.85 | D123: 3.85 | E123: 3.75 | F123: 3.8 | G123: 3.75 | H123: 3.85 | I123: 185208 | J123: 708492.85 | K123: 2018-06-04 | L123: 139 | M123: INE442A01024
A124: ASTEC | B124: EQ | C124: 701.95 | D124: 711 | E124: 671 | F124: 677.7 | G124: 675 | H124: 701.8 | I124: 22323 | J124: 15430934.2 | K124: 2018-06-04 | L124: 1443 | M124: INE563J01010
A125: ASTERDM | B125: EQ | C125: 176.85 | D125: 180 | E125: 175.05 | F125: 177.85 | G125: 179 | H125: 177.85 | I125: 67815 | J125: 12075710.3 | K125: 2018-06-04 | L125: 2590 | M125: INE914M01019
A126: ASTRAL | B126: EQ | C126: 1009.1 | D126: 1029.2 | E126: 985.2 | F126: 994.95 | G126: 991 | H126: 1003 | I126: 20723 | J126: 20739692.3 | K126: 2018-06-04 | L126: 2804 | M126: INE006I01046
A127: ASTRAMICRO | B127: EQ | C127: 101.95 | D127: 102.05 | E127: 96.75 | F127: 97.5 | G127: 98.95 | H127: 100.45 | I127: 294136 | J127: 28986930.45 | K127: 2018-06-04 | L127: 2023 | M127: INE386C01029
A128: ASTRAZEN | B128: EQ | C128: 1200 | D128: 1220 | E128: 1166.8 | F128: 1171.45 | G128: 1174 | H128: 1198.05 | I128: 5045 | J128: 6043681.95 | K128: 2018-06-04 | L128: 406 | M128: INE203A01020
A129: ASTRON | B129: EQ | C129: 108.7 | D129: 109 | E129: 105.1 | F129: 107.5 | G129: 107.65 | H129: 108.8 | I129: 84026 | J129: 9011188.4 | K129: 2018-06-04 | L129: 1440 | M129: INE646X01014
A130: ATFL | B130: EQ | C130: 670.1 | D130: 683.15 | E130: 650.4 | F130: 655.95 | G130: 650.4 | H130: 672.9 | I130: 9145 | J130: 6074401.7 | K130: 2018-06-04 | L130: 395 | M130: INE209A01019
A131: ATLANTA | B131: EQ | C131: 44.2 | D131: 48 | E131: 41 | F131: 46.9 | G131: 47.55 | H131: 43.7 | I131: 1605959 | J131: 73750888.8 | K131: 2018-06-04 | L131: 11816 | M131: INE285H01022
A132: ATLASCYCLE | B132: BE | C132: 131.55 | D132: 137.4 | E132: 131.55 | F132: 135 | G132: 134.6 | H132: 138.15 | I132: 1854 | J132: 251204.05 | K132: 2018-06-04 | L132: 34 | M132: INE446A01025
A133: ATUL | B133: EQ | C133: 2799 | D133: 2799 | E133: 2700 | F133: 2744.4 | G133: 2727.05 | H133: 2744.7 | I133: 8080 | J133: 22062452.65 | K133: 2018-06-04 | L133: 1162 | M133: INE100A01010
A134: ATULAUTO | B134: EQ | C134: 427.25 | D134: 429.9 | E134: 419.6 | F134: 419.75 | G134: 419.9 | H134: 427.25 | I134: 8369 | J134: 3541705.8 | K134: 2018-06-04 | L134: 570 | M134: INE951D01028
A135: AUBANK | B135: EQ | C135: 699.4 | D135: 700 | E135: 690.9 | F135: 699.05 | G135: 698.5 | H135: 697.4 | I135: 61989 | J135: 43121212.75 | K135: 2018-06-04 | L135: 5804 | M135: INE949L01017
A136: AURIONPRO | B136: EQ | C136: 206.95 | D136: 206.95 | E136: 195.1 | F136: 195.75 | G136: 195.1 | H136: 203.7 | I136: 24895 | J136: 4938693.65 | K136: 2018-06-04 | L136: 525 | M136: INE132H01018
A137: AUROPHARMA | B137: EQ | C137: 538 | D137: 543.75 | E137: 527 | F137: 533.35 | G137: 535.05 | H137: 535.3 | I137: 2613575 | J137: 1399670421 | K137: 2018-06-04 | L137: 47704 | M137: INE406A01037
A138: AUSOMENT | B138: EQ | C138: 84.85 | D138: 84.85 | E138: 77.05 | F138: 77.75 | G138: 77.05 | H138: 80.85 | I138: 43985 | J138: 3585506.95 | K138: 2018-06-04 | L138: 567 | M138: INE218C01016
A139: AUTOAXLES | B139: EQ | C139: 1243 | D139: 1286.95 | E139: 1104 | F139: 1130.3 | G139: 1126 | H139: 1243.05 | I139: 48754 | J139: 57640540.65 | K139: 2018-06-04 | L139: 4987 | M139: INE449A01011
A140: AUTOIND | B140: EQ | C140: 71.85 | D140: 73 | E140: 64.7 | F140: 70.55 | G140: 70.65 | H140: 71.85 | I140: 25126 | J140: 1730976.55 | K140: 2018-06-04 | L140: 339 | M140: INE718H01014
A141: AUTOLITIND | B141: EQ | C141: 65.5 | D141: 65.6 | E141: 60.5 | F141: 61.25 | G141: 60.5 | H141: 63.05 | I141: 24754 | J141: 1558500.1 | K141: 2018-06-04 | L141: 229 | M141: INE448A01013
A142: AVADHSUGAR | B142: EQ | C142: 374.95 | D142: 374.95 | E142: 342.55 | F142: 346.95 | G142: 344.2 | H142: 370.45 | I142: 20892 | J142: 7436290 | K142: 2018-06-04 | L142: 1128 | M142: INE349W01017
A143: AVANTIFEED | B143: EQ | C143: 1550 | D143: 1556.95 | E143: 1476.6 | F143: 1486.4 | G143: 1484.95 | H143: 1546.65 | I143: 254843 | J143: 382862879.1 | K143: 2018-06-04 | L143: 23315 | M143: INE871C01020
A144: AVTNPL | B144: EQ | C144: 35.4 | D144: 35.4 | E144: 33.65 | F144: 34 | G144: 33.9 | H144: 33.75 | I144: 46752 | J144: 1597232.45 | K144: 2018-06-04 | L144: 305 | M144: INE488D01021
A145: AXISBANK | B145: EQ | C145: 539.55 | D145: 541.95 | E145: 531.25 | F145: 537.05 | G145: 537.55 | H145: 536.65 | I145: 4291186 | J145: 2298324929 | K145: 2018-06-04 | L145: 77376 | M145: INE238A01034
A146: AXISCADES | B146: EQ | C146: 133 | D146: 133 | E146: 122.8 | F146: 127.05 | G146: 125.7 | H146: 130.65 | I146: 105139 | J146: 13403155.3 | K146: 2018-06-04 | L146: 2319 | M146: INE555B01013
A147: AXISGOLD | B147: EQ | C147: 2744 | D147: 2744 | E147: 2713 | F147: 2715 | G147: 2715 | H147: 2721 | I147: 22 | J147: 59895 | K147: 2018-06-04 | L147: 14 | M147: INF846K01347
A148: AXISNIFTY | B148: EQ | C148: 1077.1 | D148: 1081.65 | E148: 1068.36 | F148: 1068.36 | G148: 1068.36 | H148: 1077.69 | I148: 144 | J148: 154197.35 | K148: 2018-06-04 | L148: 4 | M148: INF846K01ZL0
A149: AYMSYNTEX | B149: EQ | C149: 54.45 | D149: 56.5 | E149: 53.95 | F149: 54.35 | G149: 54.2 | H149: 55.05 | I149: 19761 | J149: 1086318.85 | K149: 2018-06-04 | L149: 166 | M149: INE193B01039
A150: BAFNAPHARM | B150: EQ | C150: 25.85 | D150: 25.85 | E150: 23.65 | F150: 24.35 | G150: 24.45 | H150: 25.1 | I150: 8842 | J150: 217569.05 | K150: 2018-06-04 | L150: 100 | M150: INE878I01014
A151: BAGFILMS | B151: EQ | C151: 4.85 | D151: 5 | E151: 4.7 | F151: 4.75 | G151: 4.8 | H151: 4.9 | I151: 97365 | J151: 469517.55 | K151: 2018-06-04 | L151: 112 | M151: INE116D01028
A152: BAJAJ-AUTO | B152: EQ | C152: 2890 | D152: 2922.55 | E152: 2871.05 | F152: 2878.5 | G152: 2876 | H152: 2896.55 | I152: 759197 | J152: 2196876878 | K152: 2018-06-04 | L152: 50856 | M152: INE917I01010
A153: BAJAJCORP | B153: EQ | C153: 465 | D153: 480 | E153: 453 | F153: 456.75 | G153: 455.7 | H153: 463.55 | I153: 43692 | J153: 20578850.8 | K153: 2018-06-04 | L153: 2102 | M153: INE933K01021
A154: BAJAJELEC | B154: EQ | C154: 542.5 | D154: 545.4 | E154: 527 | F154: 529.45 | G154: 528.9 | H154: 538.35 | I154: 322613 | J154: 172613689.6 | K154: 2018-06-04 | L154: 10054 | M154: INE193E01025
A155: BAJAJFINSV | B155: EQ | C155: 5802.25 | D155: 5914.4 | E155: 5730 | F155: 5748.55 | G155: 5764.3 | H155: 5882.2 | I155: 103183 | J155: 600253851.8 | K155: 2018-06-04 | L155: 14109 | M155: INE918I01018
A156: BAJAJHIND | B156: EQ | C156: 7.4 | D156: 7.45 | E156: 7 | F156: 7.1 | G156: 7.1 | H156: 7.35 | I156: 1098449 | J156: 7863876.55 | K156: 2018-06-04 | L156: 1204 | M156: INE306A01021
A157: BAJAJHLDNG | B157: EQ | C157: 2780 | D157: 2805 | E157: 2770.05 | F157: 2786.2 | G157: 2770.6 | H157: 2782.55 | I157: 24765 | J157: 68998741.65 | K157: 2018-06-04 | L157: 3336 | M157: INE118A01012
A158: BAJFINANCE | B158: EQ | C158: 2090.2 | D158: 2098.75 | E158: 2055.3 | F158: 2062.85 | G158: 2057 | H158: 2077.4 | I158: 513152 | J158: 1064192801 | K158: 2018-06-04 | L158: 23021 | M158: INE296A01024
A159: BALAJITELE | B159: EQ | C159: 129.15 | D159: 132.05 | E159: 121 | F159: 125.4 | G159: 125.55 | H159: 129 | I159: 184658 | J159: 23085723.05 | K159: 2018-06-04 | L159: 1992 | M159: INE794B01026
A160: BALAMINES | B160: EQ | C160: 591.95 | D160: 598.25 | E160: 560 | F160: 567.25 | G160: 569 | H160: 587 | I160: 23171 | J160: 13305324.6 | K160: 2018-06-04 | L160: 1242 | M160: INE050E01027
A161: BALKRISHNA | B161: EQ | C161: 72.1 | D161: 72.95 | E161: 72 | F161: 72.05 | G161: 72 | H161: 72.25 | I161: 13767 | J161: 993288.25 | K161: 2018-06-04 | L161: 67 | M161: INE875R01011
A162: BALKRISIND | B162: EQ | C162: 1131 | D162: 1135 | E162: 1110.6 | F162: 1117.6 | G162: 1122.95 | H162: 1121.5 | I162: 193901 | J162: 217865168.2 | K162: 2018-06-04 | L162: 10229 | M162: INE787D01026
A163: BALLARPUR | B163: EQ | C163: 11.2 | D163: 11.2 | E163: 10.65 | F163: 10.7 | G163: 10.75 | H163: 10.95 | I163: 409037 | J163: 4433424.05 | K163: 2018-06-04 | L163: 803 | M163: INE294A01037
A164: BALMLAWRIE | B164: EQ | C164: 224 | D164: 225.15 | E164: 216.55 | F164: 217.6 | G164: 217.95 | H164: 223.5 | I164: 71210 | J164: 15638704.25 | K164: 2018-06-04 | L164: 2260 | M164: INE164A01016
A165: BALPHARMA | B165: EQ | C165: 77.05 | D165: 78 | E165: 73.75 | F165: 74.1 | G165: 74.5 | H165: 78.55 | I165: 21289 | J165: 1598130.25 | K165: 2018-06-04 | L165: 450 | M165: INE083D01012
A166: BALRAMCHIN | B166: EQ | C166: 71.65 | D166: 71.85 | E166: 67.7 | F166: 69.95 | G166: 69.4 | H166: 73.15 | I166: 7708676 | J166: 537054201.4 | K166: 2018-06-04 | L166: 29224 | M166: INE119A01028
A167: BANARBEADS | B167: EQ | C167: 54.8 | D167: 54.8 | E167: 48.7 | F167: 49.35 | G167: 48.7 | H167: 54.1 | I167: 2298 | J167: 114039.45 | K167: 2018-06-04 | L167: 121 | M167: INE655B01011
A168: BANARISUG | B168: EQ | C168: 1560 | D168: 1566 | E168: 1470 | F168: 1490.4 | G168: 1470 | H168: 1550 | I168: 796 | J168: 1202196.45 | K168: 2018-06-04 | L168: 66 | M168: INE459A01010
A169: BANCOINDIA | B169: EQ | C169: 226.3 | D169: 227.6 | E169: 220.8 | F169: 221.9 | G169: 222 | H169: 224.9 | I169: 24437 | J169: 5443786.45 | K169: 2018-06-04 | L169: 493 | M169: INE213C01025
A170: BANDHANBNK | B170: EQ | C170: 479 | D170: 479 | E170: 470.4 | F170: 473.95 | G170: 474.2 | H170: 475.1 | I170: 331178 | J170: 157181246.7 | K170: 2018-06-04 | L170: 8550 | M170: INE545U01014
A171: BANG | B171: EQ | C171: 40 | D171: 40 | E171: 38.6 | F171: 39.05 | G171: 38.75 | H171: 40.25 | I171: 8206 | J171: 322292.1 | K171: 2018-06-04 | L171: 130 | M171: INE863I01016
A172: BANKBARODA | B172: EQ | C172: 137.5 | D172: 137.9 | E172: 131 | F172: 131.55 | G172: 131.95 | H172: 136.95 | I172: 22267362 | J172: 2949769609 | K172: 2018-06-04 | L172: 122292 | M172: INE028A01039
A173: BANKBEES | B173: EQ | C173: 2732.58 | D173: 2734.5 | E173: 2671.07 | F173: 2673.95 | G173: 2676.98 | H173: 2719.95 | I173: 1537 | J173: 4153659.25 | K173: 2018-06-04 | L173: 559 | M173: INF732E01078
A174: BANKINDIA | B174: EQ | C174: 97.1 | D174: 97.9 | E174: 94 | F174: 94.7 | G174: 94 | H174: 96.7 | I174: 5405199 | J174: 519641696.3 | K174: 2018-06-04 | L174: 18361 | M174: INE084A01016
A175: BANSWRAS | B175: EQ | C175: 92 | D175: 94 | E175: 85.5 | F175: 87 | G175: 86 | H175: 88.5 | I175: 6587 | J175: 572443.05 | K175: 2018-06-04 | L175: 155 | M175: INE629D01012
A176: BARTRONICS | B176: BE | C176: 11.3 | D176: 11.5 | E176: 10.75 | F176: 10.8 | G176: 11 | H176: 11.25 | I176: 87960 | J176: 968543.8 | K176: 2018-06-04 | L176: 229 | M176: INE855F01034
A177: BASF | B177: EQ | C177: 2032.2 | D177: 2032.2 | E177: 1981 | F177: 1992.3 | G177: 1999 | H177: 2007.1 | I177: 2655 | J177: 5303246.6 | K177: 2018-06-04 | L177: 378 | M177: INE373A01013
A178: BASML | B178: EQ | C178: 212.15 | D178: 232.5 | E178: 201.6 | F178: 206.2 | G178: 204 | H178: 223.05 | I178: 2773 | J178: 585159 | K178: 2018-06-04 | L178: 96 | M178: INE186H01014
A179: BATAINDIA | B179: EQ | C179: 767.65 | D179: 776 | E179: 748 | F179: 751.9 | G179: 749 | H179: 765.5 | I179: 505238 | J179: 385182537.5 | K179: 2018-06-04 | L179: 13720 | M179: INE176A01028
A180: BAYERCROP | B180: EQ | C180: 4742.15 | D180: 4800 | E180: 4657.95 | F180: 4750.45 | G180: 4749 | H180: 4697.25 | I180: 6968 | J180: 33097493.25 | K180: 2018-06-04 | L180: 2349 | M180: INE462A01022
A181: BBL | B181: EQ | C181: 1360 | D181: 1360 | E181: 1280.9 | F181: 1290.65 | G181: 1294 | H181: 1345.4 | I181: 7766 | J181: 10147588.15 | K181: 2018-06-04 | L181: 777 | M181: INE464A01028
A182: BBTC | B182: EQ | C182: 1553 | D182: 1555 | E182: 1470.6 | F182: 1479.4 | G182: 1472.1 | H182: 1539.4 | I182: 252628 | J182: 378323588.9 | K182: 2018-06-04 | L182: 6762 | M182: INE050A01025
A183: BDL | B183: EQ | C183: 403 | D183: 403 | E183: 390 | F183: 395.65 | G183: 394 | H183: 401.2 | I183: 33885 | J183: 13352838.3 | K183: 2018-06-04 | L183: 1753 | M183: INE171Z01018
A184: BEARDSELL | B184: EQ | C184: 40 | D184: 40 | E184: 38 | F184: 38.1 | G184: 38.1 | H184: 40.7 | I184: 5119 | J184: 198899.6 | K184: 2018-06-04 | L184: 62 | M184: INE520H01022
A185: BEDMUTHA | B185: BE | C185: 18.35 | D185: 18.35 | E185: 16.7 | F185: 17.3 | G185: 17.1 | H185: 17.55 | I185: 28585 | J185: 503725.85 | K185: 2018-06-04 | L185: 79 | M185: INE844K01012
A186: BEL | B186: EQ | C186: 112 | D186: 114.4 | E186: 110 | F186: 112.1 | G186: 112.2 | H186: 111.4 | I186: 8168201 | J186: 914275439.4 | K186: 2018-06-04 | L186: 64337 | M186: INE263A01024
A187: BEML | B187: EQ | C187: 878 | D187: 881.9 | E187: 859.1 | F187: 870.6 | G187: 869 | H187: 879.1 | I187: 1372123 | J187: 1193052563 | K187: 2018-06-04 | L187: 33020 | M187: INE258A01016
A188: BEPL | B188: EQ | C188: 132.2 | D188: 134.35 | E188: 131.7 | F188: 131.7 | G188: 131.7 | H188: 138.6 | I188: 221260 | J188: 29228667.75 | K188: 2018-06-04 | L188: 1420 | M188: INE922A01025
A189: BERGEPAINT | B189: EQ | C189: 290.75 | D189: 290.85 | E189: 283.25 | F189: 287.7 | G189: 288 | H189: 289.65 | I189: 528148 | J189: 151456200.4 | K189: 2018-06-04 | L189: 9706 | M189: INE463A01038
A190: BFINVEST | B190: EQ | C190: 280.5 | D190: 282.9 | E190: 250.45 | F190: 254.4 | G190: 255.05 | H190: 279 | I190: 159486 | J190: 42232668.05 | K190: 2018-06-04 | L190: 4621 | M190: INE878K01010
A191: BFUTILITIE | B191: EQ | C191: 371.8 | D191: 372.75 | E191: 350.05 | F191: 354.45 | G191: 355 | H191: 369.1 | I191: 344546 | J191: 124645572.8 | K191: 2018-06-04 | L191: 8122 | M191: INE243D01012
A192: BGLOBAL | B192: BE | C192: 4 | D192: 4 | E192: 3.8 | F192: 3.8 | G192: 3.8 | H192: 4 | I192: 9567 | J192: 36931.65 | K192: 2018-06-04 | L192: 31 | M192: INE224M01013
A193: BGRENERGY | B193: EQ | C193: 103.9 | D193: 105.1 | E193: 99.1 | F193: 99.6 | G193: 99.25 | H193: 103.55 | I193: 98540 | J193: 10014119 | K193: 2018-06-04 | L193: 1631 | M193: INE661I01014
A194: BHAGERIA | B194: EQ | C194: 302 | D194: 305.05 | E194: 287.25 | F194: 292.65 | G194: 291.1 | H194: 308.15 | I194: 17230 | J194: 5136558.95 | K194: 2018-06-04 | L194: 482 | M194: INE354C01027
A195: BHAGYANGR | B195: EQ | C195: 42.65 | D195: 42.65 | E195: 39.45 | F195: 40.3 | G195: 40.4 | H195: 41.9 | I195: 45975 | J195: 1865416.8 | K195: 2018-06-04 | L195: 423 | M195: INE458B01036
A196: BHAGYAPROP | B196: BE | C196: 20.7 | D196: 21.9 | E196: 20.25 | F196: 21.35 | G196: 21.35 | H196: 21 | I196: 9089 | J196: 186122.85 | K196: 2018-06-04 | L196: 35 | M196: INE363W01018
A197: BHANDARI | B197: EQ | C197: 2.6 | D197: 2.6 | E197: 2.45 | F197: 2.45 | G197: 2.45 | H197: 2.55 | I197: 370352 | J197: 917574.75 | K197: 2018-06-04 | L197: 187 | M197: INE474E01029
A198: BHARATFIN | B198: EQ | C198: 1157.25 | D198: 1179.85 | E198: 1133.1 | F198: 1143.8 | G198: 1141.05 | H198: 1155.7 | I198: 835227 | J198: 954530053.8 | K198: 2018-06-04 | L198: 20911 | M198: INE180K01011
A199: BHARATFORG | B199: EQ | C199: 643.1 | D199: 647.95 | E199: 624 | F199: 636.7 | G199: 637.7 | H199: 642.6 | I199: 1460273 | J199: 927851378 | K199: 2018-06-04 | L199: 31943 | M199: INE465A01025
A200: BHARATGEAR | B200: EQ | C200: 183.95 | D200: 183.95 | E200: 166.1 | F200: 167.1 | G200: 168 | H200: 172.65 | I200: 66260 | J200: 11662056.85 | K200: 2018-06-04 | L200: 1587 | M200: INE561C01019
... 1446 more rows

Sheet Sheet1 (hidden)

Sheet Sheet3 (hidden)
